Publisher Label,Publisher URI,Body Name,Service Area Categorisation,Service Division Categorisation,Expenses Type,Date,Transaction Number,Amount,Capital or Revenue,Supplier Name,Merchant Category
Peterborough,http://opendatacommunities.org/id/unitary-authority/peterborough,Peterborough City Council,Adult Social Care,Older People,Supplies and Services,02/03/2015 00:00,697224,1824.57,REVENUE,THE TUDORS,RESIDENTIAL CARE
Peterborough,http://opendatacommunities.org/id/unitary-authority/peterborough,Peterborough City Council,Adult Social Care,Support Services & Management Costs,Employees,02/03/2015 00:00,705706,4212,REVENUE,GatenbySanderson Ltd,EXTERNAL TEMPORARY STAFF
Peterborough,http://opendatacommunities.org/id/unitary-authority/peterborough,Peterborough City Council,Adult Social Care,Older People,Supplies and Services,02/03/2015 00:00,710506,-900.71,REVENUE,Avery House (Peterborough) t/a Brighterkind,RESIDENTIAL CARE
Peterborough,http://opendatacommunities.org/id/unitary-authority/peterborough,Peterborough City Council,Adult Social Care,Older People,Supplies and Services,02/03/2015 00:00,712093,2436,REVENUE,Castleview Nursing Home,RESIDENTIAL CARE
Peterborough,http://opendatacommunities.org/id/unitary-authority/peterborough,Peterborough City Council,Adult Social Care,Commissioning and Service Delivery,Supplies and Services,02/03/2015 00:00,712135,6534.96,REVENUE,Axiom Housing Association,INTERIM CARE
Peterborough,http://opendatacommunities.org/id/unitary-authority/peterborough,Peterborough City Council,Children's & Education Services - Children's Social Care,Other Children's & Families Services,Employees,02/03/2015 00:00,712137,1465.2,REVENUE,SWP Consulting,EXTERNAL TEMPORARY STAFF
Peterborough,http://opendatacommunities.org/id/unitary-authority/peterborough,Peterborough City Council,Capital,Capital,Capital Pending Update to BS,02/03/2015 00:00,712140,2970,CAPITAL,UK Power Networks (operations) Ltd,INFRASTRUCTURE
Peterborough,http://opendatacommunities.org/id/unitary-authority/peterborough,Peterborough City Council,Children's & Education Services - Children's Social Care,Children Looked After,Supplies and Services - Transfer Payments,02/03/2015 00:00,712163,10075,REVENUE,MJ Childrens Services,BOARDING - OUT ALLOWANCES
Peterborough,http://opendatacommunities.org/id/unitary-authority/peterborough,Peterborough City Council,Deficit/(Surplus) on Trading Undertakings,Trading Account Surpluses & Deficits,Supplies and Services,02/03/2015 00:00,712187,4038.3,REVENUE,BSD Performance,ITEMS FOR RESALE
Peterborough,http://opendatacommunities.org/id/unitary-authority/peterborough,Peterborough City Council,Housing Services,Private Sector Housing Renewal,Supplies and Services,02/03/2015 00:00,712375,930,REVENUE,Casbon Building Services,SPECIAL PROJECTS
Peterborough,http://opendatacommunities.org/id/unitary-authority/peterborough,Peterborough City Council,Children's & Education Services - Children's Social Care,Youth Justice,Supplies and Services,02/03/2015 00:00,712420,3692.3,REVENUE,The Froglife Trust,SPECIAL PROJECTS
Peterborough,http://opendatacommunities.org/id/unitary-authority/peterborough,Peterborough City Council,Children's & Education Services - Children's Social Care,Other Children's & Families Services,Employees,02/03/2015 00:00,712421,4800,REVENUE,In-Trac Training & Consultancy Services,TRAINING
Peterborough,http://opendatacommunities.org/id/unitary-authority/peterborough,Peterborough City Council,Children's & Education Services - Children's Social Care,Other Children's & Families Services,Employees,02/03/2015 00:00,712552,3300,REVENUE,Medicare First,EXTERNAL TEMPORARY STAFF
Peterborough,http://opendatacommunities.org/id/unitary-authority/peterborough,Peterborough City Council,Children's & Education Services - Children's Social Care,Other Children's & Families Services,Employees,02/03/2015 00:00,712554,1755.61,REVENUE,Medicare First,EXTERNAL TEMPORARY STAFF
Peterborough,http://opendatacommunities.org/id/unitary-authority/peterborough,Peterborough City Council,Children's & Education Services - Children's Social Care,Other Children's & Families Services,Employees,02/03/2015 00:00,712556,1692,REVENUE,Medicare First,EXTERNAL TEMPORARY STAFF
Peterborough,http://opendatacommunities.org/id/unitary-authority/peterborough,Peterborough City Council,Children's & Education Services - Children's Social Care,Other Children's & Families Services,Employees,02/03/2015 00:00,712568,2131.2,REVENUE,Medicare First,EXTERNAL TEMPORARY STAFF
Peterborough,http://opendatacommunities.org/id/unitary-authority/peterborough,Peterborough City Council,Highways and Transport Services,Parking Services,Supplies and Services,02/03/2015 00:00,713349,1280.64,REVENUE,Northgate Information Solutions,ADMINISTRATION EXPENSES
Peterborough,http://opendatacommunities.org/id/unitary-authority/peterborough,Peterborough City Council,Capital,Capital,Capital Pending Update to BS,02/03/2015 00:00,713442,3488.3,CAPITAL,British Telecom PLC,INFRASTRUCTURE
Peterborough,http://opendatacommunities.org/id/unitary-authority/peterborough,Peterborough City Council,Children's & Education Services - Children's Social Care,More than one Service Division,Supplies and Services - Transfer Payments,02/03/2015 00:00,713486,12043.36,REVENUE,Windows for Children,BOARDING - OUT ALLOWANCES
Peterborough,http://opendatacommunities.org/id/unitary-authority/peterborough,Peterborough City Council,Adult Social Care,Social Care Activities,Third Party Payments,02/03/2015 00:00,713516,99697.16,REVENUE,Cambs & P'boro NHS Foundation Trust,THIRD PARTY PAYMENTS - CONTRACT
Peterborough,http://opendatacommunities.org/id/unitary-authority/peterborough,Peterborough City Council,Public Health,Substance Misuse,Third Party Payments,02/03/2015 00:00,713517,8771.42,REVENUE,Cambs & P'boro NHS Foundation Trust,THIRD PARTY PAYMENTS - CONTRACT
Peterborough,http://opendatacommunities.org/id/unitary-authority/peterborough,Peterborough City Council,Adult Social Care,Other Adult Services,Third Party Payments,02/03/2015 00:00,713518,4269.33,REVENUE,Cambs & P'boro NHS Foundation Trust,THIRD PARTY PAYMENTS - CONTRACT
Peterborough,http://opendatacommunities.org/id/unitary-authority/peterborough,Peterborough City Council,Support Services,Support Services,Supplies and Services,02/03/2015 00:00,713522,993.47,REVENUE,Ken Girvan Printers Ltd,PRINTING
Peterborough,http://opendatacommunities.org/id/unitary-authority/peterborough,Peterborough City Council,Children's & Education Services - Children's Social Care,Services to Young People,Third Party Payments,02/03/2015 00:00,713533,3000,REVENUE,Clive Atkins Consultancy Ltd,HIRED SERVICES
Peterborough,http://opendatacommunities.org/id/unitary-authority/peterborough,Peterborough City Council,Adult Social Care,Learning Disability Support - Adults (18-64),Employees,02/03/2015 00:00,713668,1545.3,REVENUE,Pulse,EXTERNAL TEMPORARY STAFF
Peterborough,http://opendatacommunities.org/id/unitary-authority/peterborough,Peterborough City Council,Adult Social Care,Social Care Activities,Employees,02/03/2015 00:00,713678,1776,REVENUE,Medicare First,EXTERNAL TEMPORARY STAFF
Peterborough,http://opendatacommunities.org/id/unitary-authority/peterborough,Peterborough City Council,Adult Social Care,Adult Learning Disabilities,Supplies and Services,02/03/2015 00:00,713785,5684.8,REVENUE,WYCAR LEYS,RESIDENTIAL CARE
Peterborough,http://opendatacommunities.org/id/unitary-authority/peterborough,Peterborough City Council,Adult Social Care,Adult Learning Disabilities,Supplies and Services,02/03/2015 00:00,713800,8314.72,REVENUE,Home From Home Care,RESIDENTIAL CARE
Peterborough,http://opendatacommunities.org/id/unitary-authority/peterborough,Peterborough City Council,Adult Social Care,Adult Learning Disabilities,Supplies and Services,02/03/2015 00:00,713803,7007.44,REVENUE,Home From Home Care,RESIDENTIAL CARE
Peterborough,http://opendatacommunities.org/id/unitary-authority/peterborough,Peterborough City Council,Adult Social Care,Adult Learning Disabilities,Supplies and Services,02/03/2015 00:00,713806,6352.32,REVENUE,Home From Home Care,RESIDENTIAL CARE
Peterborough,http://opendatacommunities.org/id/unitary-authority/peterborough,Peterborough City Council,Adult Social Care,Adult Learning Disabilities,Supplies and Services,02/03/2015 00:00,713808,7819.44,REVENUE,Home From Home Care,RESIDENTIAL CARE
Peterborough,http://opendatacommunities.org/id/unitary-authority/peterborough,Peterborough City Council,Adult Social Care,Adult Learning Disabilities,Supplies and Services,02/03/2015 00:00,713811,3575.24,REVENUE,Voyage,RESIDENTIAL CARE
Peterborough,http://opendatacommunities.org/id/unitary-authority/peterborough,Peterborough City Council,Adult Social Care,Adult Learning Disabilities,Supplies and Services,02/03/2015 00:00,713813,3875.2,REVENUE,Voyage,RESIDENTIAL CARE
Peterborough,http://opendatacommunities.org/id/unitary-authority/peterborough,Peterborough City Council,Adult Social Care,Adult Learning Disabilities,Supplies and Services,02/03/2015 00:00,713820,3071.24,REVENUE,Voyage,RESIDENTIAL CARE
Peterborough,http://opendatacommunities.org/id/unitary-authority/peterborough,Peterborough City Council,Adult Social Care,Adult Learning Disabilities,Supplies and Services,02/03/2015 00:00,713823,4824.28,REVENUE,Voyage,RESIDENTIAL CARE
Peterborough,http://opendatacommunities.org/id/unitary-authority/peterborough,Peterborough City Council,Adult Social Care,Adult Learning Disabilities,Supplies and Services,02/03/2015 00:00,714351,3320.8,REVENUE,Voyage,RESIDENTIAL CARE
Peterborough,http://opendatacommunities.org/id/unitary-authority/peterborough,Peterborough City Council,Adult Social Care,Adult Learning Disabilities,Supplies and Services,02/03/2015 00:00,714354,1843.44,REVENUE,Voyage,RESIDENTIAL CARE
Peterborough,http://opendatacommunities.org/id/unitary-authority/peterborough,Peterborough City Council,Adult Social Care,Adult Learning Disabilities,Supplies and Services,02/03/2015 00:00,714357,4399.68,REVENUE,Voyage,RESIDENTIAL CARE
Peterborough,http://opendatacommunities.org/id/unitary-authority/peterborough,Peterborough City Council,Adult Social Care,Adult Learning Disabilities,Supplies and Services,02/03/2015 00:00,714363,3083.2,REVENUE,Voyage,RESIDENTIAL CARE
Peterborough,http://opendatacommunities.org/id/unitary-authority/peterborough,Peterborough City Council,Adult Social Care,Adult Learning Disabilities,Supplies and Services,02/03/2015 00:00,714366,2993.44,REVENUE,Voyage,RESIDENTIAL CARE
Peterborough,http://opendatacommunities.org/id/unitary-authority/peterborough,Peterborough City Council,Adult Social Care,Adult Learning Disabilities,Supplies and Services,02/03/2015 00:00,714369,6125.84,REVENUE,Voyage,RESIDENTIAL CARE
Peterborough,http://opendatacommunities.org/id/unitary-authority/peterborough,Peterborough City Council,Adult Social Care,Adult Learning Disabilities,Supplies and Services,02/03/2015 00:00,714372,1778.12,REVENUE,Voyage,RESIDENTIAL CARE
Peterborough,http://opendatacommunities.org/id/unitary-authority/peterborough,Peterborough City Council,Children's & Education Services - Children's Social Care,Children Looked After,Supplies and Services - Transfer Payments,02/03/2015 00:00,714377,5208,REVENUE,Nexus Fostering Ltd,BOARDING - OUT ALLOWANCES
Peterborough,http://opendatacommunities.org/id/unitary-authority/peterborough,Peterborough City Council,Environmental and Regulatory Services,Waste Collection,Premises,02/03/2015 00:00,714679,1680,REVENUE,FCC Recycling (UK) Limited,REFUSE COLLECTION
Peterborough,http://opendatacommunities.org/id/unitary-authority/peterborough,Peterborough City Council,Support Services,Support Services,Employees,02/03/2015 00:00,714690,1771.2,REVENUE,Sellick Partnership Group Limited,EXTERNAL TEMPORARY STAFF
Peterborough,http://opendatacommunities.org/id/unitary-authority/peterborough,Peterborough City Council,Support Services,Support Services,Employees,02/03/2015 00:00,714700,1680,REVENUE,P McCourt Services Limited,EXTERNAL TEMPORARY STAFF
Peterborough,http://opendatacommunities.org/id/unitary-authority/peterborough,Peterborough City Council,Children's & Education Services - Children's Social Care,Other Children's & Families Services,Employees,02/03/2015 00:00,714807,1687.2,REVENUE,NonStop Recruitment Ltd,EXTERNAL TEMPORARY STAFF
Peterborough,http://opendatacommunities.org/id/unitary-authority/peterborough,Peterborough City Council,Adult Social Care,Social Care Activities,Employees,02/03/2015 00:00,715284,1574.4,REVENUE,Medicare First,EXTERNAL TEMPORARY STAFF
Peterborough,http://opendatacommunities.org/id/unitary-authority/peterborough,Peterborough City Council,More than one Service Area Category,More than one Service Division,Supplies and Services,02/03/2015 00:00,715519,737.93,REVENUE,Whistl London Ltd,POSTAGE
Peterborough,http://opendatacommunities.org/id/unitary-authority/peterborough,Peterborough City Council,More than one Service Area Category,More than one Service Division,Supplies and Services,02/03/2015 00:00,715520,1671.37,REVENUE,Whistl London Ltd,POSTAGE
Peterborough,http://opendatacommunities.org/id/unitary-authority/peterborough,Peterborough City Council,Adult Social Care,Older People,Supplies and Services,02/03/2015 00:00,716052,741.16,REVENUE,Avery House (Peterborough) t/a Brighterkind,RESIDENTIAL CARE
Peterborough,http://opendatacommunities.org/id/unitary-authority/peterborough,Peterborough City Council,Adult Social Care,Older People,Supplies and Services,02/03/2015 00:00,716054,1326.08,REVENUE,Avery House (Peterborough) t/a Brighterkind,RESIDENTIAL CARE
Peterborough,http://opendatacommunities.org/id/unitary-authority/peterborough,Peterborough City Council,Adult Social Care,Older People,Supplies and Services,02/03/2015 00:00,716055,1085.6,REVENUE,Avery House (Peterborough) t/a Brighterkind,RESIDENTIAL CARE
Peterborough,http://opendatacommunities.org/id/unitary-authority/peterborough,Peterborough City Council,Adult Social Care,Older People,Supplies and Services,02/03/2015 00:00,716057,844.41,REVENUE,Avery House (Peterborough) t/a Brighterkind,RESIDENTIAL CARE
Peterborough,http://opendatacommunities.org/id/unitary-authority/peterborough,Peterborough City Council,Adult Social Care,Older People,Supplies and Services,02/03/2015 00:00,716059,1335.28,REVENUE,Avery House (Peterborough) t/a Brighterkind,RESIDENTIAL CARE
Peterborough,http://opendatacommunities.org/id/unitary-authority/peterborough,Peterborough City Council,Adult Social Care,Older People,Supplies and Services,02/03/2015 00:00,716060,1023.76,REVENUE,Avery House (Peterborough) t/a Brighterkind,RESIDENTIAL CARE
Peterborough,http://opendatacommunities.org/id/unitary-authority/peterborough,Peterborough City Council,Adult Social Care,Older People,Supplies and Services,02/03/2015 00:00,716062,934,REVENUE,Avery House (Peterborough) t/a Brighterkind,RESIDENTIAL CARE
Peterborough,http://opendatacommunities.org/id/unitary-authority/peterborough,Peterborough City Council,Adult Social Care,Older People,Supplies and Services,02/03/2015 00:00,716063,869.2,REVENUE,Avery House (Peterborough) t/a Brighterkind,RESIDENTIAL CARE
Peterborough,http://opendatacommunities.org/id/unitary-authority/peterborough,Peterborough City Council,Adult Social Care,Older People,Supplies and Services,02/03/2015 00:00,716064,1624.64,REVENUE,Avery House (Peterborough) t/a Brighterkind,RESIDENTIAL CARE
Peterborough,http://opendatacommunities.org/id/unitary-authority/peterborough,Peterborough City Council,Adult Social Care,Older People,Supplies and Services,02/03/2015 00:00,716065,1305.08,REVENUE,Avery House (Peterborough) t/a Brighterkind,RESIDENTIAL CARE
Peterborough,http://opendatacommunities.org/id/unitary-authority/peterborough,Peterborough City Council,Adult Social Care,Older People,Supplies and Services,02/03/2015 00:00,716066,976.01,REVENUE,Avery House (Peterborough) t/a Brighterkind,RESIDENTIAL CARE
Peterborough,http://opendatacommunities.org/id/unitary-authority/peterborough,Peterborough City Council,Adult Social Care,Older People,Supplies and Services,02/03/2015 00:00,716067,1349.48,REVENUE,Avery House (Peterborough) t/a Brighterkind,RESIDENTIAL CARE
Peterborough,http://opendatacommunities.org/id/unitary-authority/peterborough,Peterborough City Council,Adult Social Care,Older People,Supplies and Services,02/03/2015 00:00,716068,2589.54,REVENUE,Avery House (Peterborough) t/a Brighterkind,RESIDENTIAL CARE
Peterborough,http://opendatacommunities.org/id/unitary-authority/peterborough,Peterborough City Council,Adult Social Care,Older People,Supplies and Services,02/03/2015 00:00,716070,1320.52,REVENUE,Avery House (Peterborough) t/a Brighterkind,RESIDENTIAL CARE
Peterborough,http://opendatacommunities.org/id/unitary-authority/peterborough,Peterborough City Council,Adult Social Care,Older People,Supplies and Services,02/03/2015 00:00,716073,595.96,REVENUE,Avery House (Peterborough) t/a Brighterkind,RESIDENTIAL CARE
Peterborough,http://opendatacommunities.org/id/unitary-authority/peterborough,Peterborough City Council,Adult Social Care,Older People,Supplies and Services,02/03/2015 00:00,716075,993.64,REVENUE,Avery House (Peterborough) t/a Brighterkind,RESIDENTIAL CARE
Peterborough,http://opendatacommunities.org/id/unitary-authority/peterborough,Peterborough City Council,Adult Social Care,Older People,Supplies and Services,02/03/2015 00:00,716076,981.88,REVENUE,Avery House (Peterborough) t/a Brighterkind,RESIDENTIAL CARE
Peterborough,http://opendatacommunities.org/id/unitary-authority/peterborough,Peterborough City Council,Adult Social Care,Older People,Supplies and Services,02/03/2015 00:00,716078,1193.08,REVENUE,Avery House (Peterborough) t/a Brighterkind,RESIDENTIAL CARE
Peterborough,http://opendatacommunities.org/id/unitary-authority/peterborough,Peterborough City Council,Adult Social Care,Older People,Supplies and Services,02/03/2015 00:00,716079,1326.08,REVENUE,Avery House (Peterborough) t/a Brighterkind,RESIDENTIAL CARE
Peterborough,http://opendatacommunities.org/id/unitary-authority/peterborough,Peterborough City Council,Adult Social Care,Older People,Supplies and Services,02/03/2015 00:00,716093,1277.48,REVENUE,POLEBROOK NURSING HOME,RESIDENTIAL CARE
Peterborough,http://opendatacommunities.org/id/unitary-authority/peterborough,Peterborough City Council,Adult Social Care,Adult Mental Health,Supplies and Services,02/03/2015 00:00,716145,1540.52,REVENUE,The Regard Partnership Limited,PROFESSIONAL SERVICES
Peterborough,http://opendatacommunities.org/id/unitary-authority/peterborough,Peterborough City Council,Adult Social Care,Adult Mental Health,Supplies and Services,02/03/2015 00:00,716149,2424,REVENUE,The Regard Partnership Limited,RESIDENTIAL CARE
Peterborough,http://opendatacommunities.org/id/unitary-authority/peterborough,Peterborough City Council,Housing Services,Homelessness,Supplies and Services,02/03/2015 00:00,716336,525,REVENUE,Anchor Lodge,HOMELESSNESS BED AND BREAKFAST
Peterborough,http://opendatacommunities.org/id/unitary-authority/peterborough,Peterborough City Council,Housing Services,Homelessness,Supplies and Services,02/03/2015 00:00,716352,816,REVENUE,DA Rosalia Hotel,HOMELESSNESS BED AND BREAKFAST
Peterborough,http://opendatacommunities.org/id/unitary-authority/peterborough,Peterborough City Council,Adult Social Care,Adult Learning Disabilities,Supplies and Services,02/03/2015 00:00,716776,9105.76,REVENUE,Consensus Support Services Ltd,RESIDENTIAL CARE
Peterborough,http://opendatacommunities.org/id/unitary-authority/peterborough,Peterborough City Council,Adult Social Care,Adult Learning Disabilities,Supplies and Services,02/03/2015 00:00,716777,602.56,REVENUE,Consensus Support Services Ltd,RESIDENTIAL CARE
Peterborough,http://opendatacommunities.org/id/unitary-authority/peterborough,Peterborough City Council,Adult Social Care,Adult Learning Disabilities,Supplies and Services,02/03/2015 00:00,716778,3269.64,REVENUE,Consensus Support Services Ltd,RESIDENTIAL CARE
Peterborough,http://opendatacommunities.org/id/unitary-authority/peterborough,Peterborough City Council,Adult Social Care,Learning Disability Support - Adults (18-64),Supplies and Services,02/03/2015 00:00,716905,1222.01,REVENUE,Eastern Shires Purchasing Organisation,MEDICAL AND SURGICAL EQUIPMENT
Peterborough,http://opendatacommunities.org/id/unitary-authority/peterborough,Peterborough City Council,Adult Social Care,Adult Learning Disabilities,Supplies and Services,02/03/2015 00:00,717299,2919.68,REVENUE,BOULEVARD CARE,RESIDENTIAL CARE
Peterborough,http://opendatacommunities.org/id/unitary-authority/peterborough,Peterborough City Council,Adult Social Care,Adult Learning Disabilities,Supplies and Services,02/03/2015 00:00,717341,15597.68,REVENUE,Decoy Farm,RESIDENTIAL CARE
Peterborough,http://opendatacommunities.org/id/unitary-authority/peterborough,Peterborough City Council,Adult Social Care,Adult Learning Disabilities,Supplies and Services,02/03/2015 00:00,717348,5343.84,REVENUE,OAKFIELD (EASTON MAUDIT) LTD,RESIDENTIAL CARE
Peterborough,http://opendatacommunities.org/id/unitary-authority/peterborough,Peterborough City Council,Adult Social Care,Adult Learning Disabilities,Supplies and Services,02/03/2015 00:00,717387,-1821.88,REVENUE,Avery House (Peterborough) t/a Brighterkind,RESIDENTIAL CARE
Peterborough,http://opendatacommunities.org/id/unitary-authority/peterborough,Peterborough City Council,Adult Social Care,Older People,Supplies and Services,02/03/2015 00:00,717417,-1195.95,REVENUE,Avery House (Peterborough) t/a Brighterkind,RESIDENTIAL CARE
Peterborough,http://opendatacommunities.org/id/unitary-authority/peterborough,Peterborough City Council,Adult Social Care,Older People,Supplies and Services,02/03/2015 00:00,717427,3400,REVENUE,EXCELCARE GLENNFIELD HOUSE,RESIDENTIAL CARE
Peterborough,http://opendatacommunities.org/id/unitary-authority/peterborough,Peterborough City Council,Adult Social Care,Older People,Supplies and Services,02/03/2015 00:00,717429,3400,REVENUE,EXCELCARE GLENNFIELD HOUSE,RESIDENTIAL CARE
Peterborough,http://opendatacommunities.org/id/unitary-authority/peterborough,Peterborough City Council,Adult Social Care,Adult Mental Health,Supplies and Services,02/03/2015 00:00,717430,3200,REVENUE,EXCELCARE GLENNFIELD HOUSE,RESIDENTIAL CARE
Peterborough,http://opendatacommunities.org/id/unitary-authority/peterborough,Peterborough City Council,Adult Social Care,Older People,Supplies and Services,02/03/2015 00:00,717576,1146.88,REVENUE,The Huntercombe Group,RESIDENTIAL CARE
Peterborough,http://opendatacommunities.org/id/unitary-authority/peterborough,Peterborough City Council,Adult Social Care,Older People,Supplies and Services,02/03/2015 00:00,718194,1318.88,REVENUE,THE TUDORS,RESIDENTIAL CARE
Peterborough,http://opendatacommunities.org/id/unitary-authority/peterborough,Peterborough City Council,Adult Social Care,Older People,Supplies and Services,02/03/2015 00:00,718196,1289.12,REVENUE,THE TUDORS,RESIDENTIAL CARE
Peterborough,http://opendatacommunities.org/id/unitary-authority/peterborough,Peterborough City Council,Adult Social Care,Older People,Supplies and Services,02/03/2015 00:00,718198,1269,REVENUE,THE TUDORS,RESIDENTIAL CARE
Peterborough,http://opendatacommunities.org/id/unitary-authority/peterborough,Peterborough City Council,Adult Social Care,Older People,Supplies and Services,02/03/2015 00:00,718199,1286.08,REVENUE,THE TUDORS,RESIDENTIAL CARE
Peterborough,http://opendatacommunities.org/id/unitary-authority/peterborough,Peterborough City Council,Adult Social Care,Older People,Supplies and Services,02/03/2015 00:00,718202,1326.08,REVENUE,THE TUDORS,RESIDENTIAL CARE
Peterborough,http://opendatacommunities.org/id/unitary-authority/peterborough,Peterborough City Council,Adult Social Care,Older People,Supplies and Services,02/03/2015 00:00,718210,1068.2,REVENUE,THE TUDORS,RESIDENTIAL CARE
Peterborough,http://opendatacommunities.org/id/unitary-authority/peterborough,Peterborough City Council,Adult Social Care,Older People,Supplies and Services,02/03/2015 00:00,718212,1326.08,REVENUE,THE TUDORS,RESIDENTIAL CARE
Peterborough,http://opendatacommunities.org/id/unitary-authority/peterborough,Peterborough City Council,Adult Social Care,Older People,Supplies and Services,02/03/2015 00:00,718213,1219.76,REVENUE,THE TUDORS,RESIDENTIAL CARE
Peterborough,http://opendatacommunities.org/id/unitary-authority/peterborough,Peterborough City Council,Adult Social Care,Older People,Supplies and Services,02/03/2015 00:00,718215,1335.88,REVENUE,THE TUDORS,RESIDENTIAL CARE
Peterborough,http://opendatacommunities.org/id/unitary-authority/peterborough,Peterborough City Council,Adult Social Care,Older People,Supplies and Services,02/03/2015 00:00,718222,1184.68,REVENUE,THE TUDORS,RESIDENTIAL CARE
Peterborough,http://opendatacommunities.org/id/unitary-authority/peterborough,Peterborough City Council,Adult Social Care,Older People,Supplies and Services,02/03/2015 00:00,718223,1080.44,REVENUE,THE TUDORS,RESIDENTIAL CARE
Peterborough,http://opendatacommunities.org/id/unitary-authority/peterborough,Peterborough City Council,Adult Social Care,Older People,Supplies and Services,02/03/2015 00:00,718224,1182.44,REVENUE,THE TUDORS,RESIDENTIAL CARE
Peterborough,http://opendatacommunities.org/id/unitary-authority/peterborough,Peterborough City Council,Adult Social Care,Older People,Supplies and Services,02/03/2015 00:00,718226,-884.64,REVENUE,THE TUDORS,RESIDENTIAL CARE
Peterborough,http://opendatacommunities.org/id/unitary-authority/peterborough,Peterborough City Council,Adult Social Care,Older People,Supplies and Services,02/03/2015 00:00,718227,-829.35,REVENUE,THE TUDORS,RESIDENTIAL CARE
Peterborough,http://opendatacommunities.org/id/unitary-authority/peterborough,Peterborough City Council,Adult Social Care,Older People,Supplies and Services,02/03/2015 00:00,718228,-1050.51,REVENUE,THE TUDORS,RESIDENTIAL CARE
Peterborough,http://opendatacommunities.org/id/unitary-authority/peterborough,Peterborough City Council,Adult Social Care,Older People,Supplies and Services,02/03/2015 00:00,718229,-953.55,REVENUE,THE TUDORS,RESIDENTIAL CARE
Peterborough,http://opendatacommunities.org/id/unitary-authority/peterborough,Peterborough City Council,Adult Social Care,Older People,Supplies and Services,02/03/2015 00:00,718230,-939.93,REVENUE,THE TUDORS,RESIDENTIAL CARE
Peterborough,http://opendatacommunities.org/id/unitary-authority/peterborough,Peterborough City Council,Adult Social Care,Older People,Supplies and Services,02/03/2015 00:00,718234,1269.96,REVENUE,THE TUDORS,RESIDENTIAL CARE
Peterborough,http://opendatacommunities.org/id/unitary-authority/peterborough,Peterborough City Council,Adult Social Care,Older People,Supplies and Services,02/03/2015 00:00,718236,1326.08,REVENUE,THE TUDORS,RESIDENTIAL CARE
Peterborough,http://opendatacommunities.org/id/unitary-authority/peterborough,Peterborough City Council,Adult Social Care,Older People,Supplies and Services,02/03/2015 00:00,718238,622.96,REVENUE,THE TUDORS,RESIDENTIAL CARE
Peterborough,http://opendatacommunities.org/id/unitary-authority/peterborough,Peterborough City Council,Adult Social Care,Older People,Supplies and Services,02/03/2015 00:00,718240,952.24,REVENUE,THE TUDORS,RESIDENTIAL CARE
Peterborough,http://opendatacommunities.org/id/unitary-authority/peterborough,Peterborough City Council,Adult Social Care,Older People,Supplies and Services,02/03/2015 00:00,718241,1382.08,REVENUE,THE TUDORS,RESIDENTIAL CARE
Peterborough,http://opendatacommunities.org/id/unitary-authority/peterborough,Peterborough City Council,Adult Social Care,Older People,Supplies and Services,02/03/2015 00:00,718243,1012.08,REVENUE,THE TUDORS,RESIDENTIAL CARE
Peterborough,http://opendatacommunities.org/id/unitary-authority/peterborough,Peterborough City Council,Adult Social Care,Older People,Supplies and Services,02/03/2015 00:00,718244,1326.08,REVENUE,THE TUDORS,RESIDENTIAL CARE
Peterborough,http://opendatacommunities.org/id/unitary-authority/peterborough,Peterborough City Council,Children's & Education Services - Children's Social Care,Children Looked After,Supplies and Services - Transfer Payments,02/03/2015 00:00,718253,19250.65,REVENUE,Young Options College Ltd,BOARDING - OUT ALLOWANCES
Peterborough,http://opendatacommunities.org/id/unitary-authority/peterborough,Peterborough City Council,Adult Social Care,Adult Learning Disabilities,Supplies and Services,02/03/2015 00:00,718408,-564.57,REVENUE,The Huntercombe Group,RESIDENTIAL CARE
Peterborough,http://opendatacommunities.org/id/unitary-authority/peterborough,Peterborough City Council,Support Services,Support Services,Employees,02/03/2015 00:00,718492,8131.2,REVENUE,P McCourt Services Limited,EXTERNAL TEMPORARY STAFF
Peterborough,http://opendatacommunities.org/id/unitary-authority/peterborough,Peterborough City Council,Support Services,Support Services,Supplies and Services,02/03/2015 00:00,718569,960,REVENUE,"Gold, Ms Debra",LEGAL COSTS
Peterborough,http://opendatacommunities.org/id/unitary-authority/peterborough,Peterborough City Council,Adult Social Care,Adult Learning Disabilities,Supplies and Services,02/03/2015 00:00,718632,2025.6,REVENUE,Benell Care Services Ltd,RESIDENTIAL CARE
Peterborough,http://opendatacommunities.org/id/unitary-authority/peterborough,Peterborough City Council,Adult Social Care,Older People,Supplies and Services,02/03/2015 00:00,718680,621,REVENUE,MEARS GROUP,HOME CARE
Peterborough,http://opendatacommunities.org/id/unitary-authority/peterborough,Peterborough City Council,Adult Social Care,Social Care Activities,Employees,02/03/2015 00:00,718735,1509.6,REVENUE,Medicare First,EXTERNAL TEMPORARY STAFF
Peterborough,http://opendatacommunities.org/id/unitary-authority/peterborough,Peterborough City Council,Adult Social Care,Social Care Activities,Employees,02/03/2015 00:00,718737,1776,REVENUE,Medicare First,EXTERNAL TEMPORARY STAFF
Peterborough,http://opendatacommunities.org/id/unitary-authority/peterborough,Peterborough City Council,Adult Social Care,Social Care Activities,Employees,02/03/2015 00:00,718738,1776,REVENUE,Medicare First,EXTERNAL TEMPORARY STAFF
Peterborough,http://opendatacommunities.org/id/unitary-authority/peterborough,Peterborough City Council,Adult Social Care,Social Care Activities,Employees,02/03/2015 00:00,718794,979.2,REVENUE,Medicare First,EXTERNAL TEMPORARY STAFF
Peterborough,http://opendatacommunities.org/id/unitary-authority/peterborough,Peterborough City Council,More than one Service Area Category,More than one Service Division,Transport,02/03/2015 00:00,718868,1486.8,REVENUE,A2B Euro Cars,HIRED TRANSPORT
Peterborough,http://opendatacommunities.org/id/unitary-authority/peterborough,Peterborough City Council,Children's & Education Services - Education,Other Education and Community Budget,Transport,02/03/2015 00:00,718869,592.8,REVENUE,A2B Euro Cars,HIRED TRANSPORT
Peterborough,http://opendatacommunities.org/id/unitary-authority/peterborough,Peterborough City Council,Children's & Education Services - Education,Other Education and Community Budget,Transport,02/03/2015 00:00,718870,1078.8,REVENUE,A2B Euro Cars,HIRED TRANSPORT
Peterborough,http://opendatacommunities.org/id/unitary-authority/peterborough,Peterborough City Council,Children's & Education Services - Education,Other Education and Community Budget,Transport,02/03/2015 00:00,718871,1399.2,REVENUE,A2B Euro Cars,HIRED TRANSPORT
Peterborough,http://opendatacommunities.org/id/unitary-authority/peterborough,Peterborough City Council,Children's & Education Services - Education,Other Education and Community Budget,Transport,02/03/2015 00:00,718872,1216.8,REVENUE,A2B Euro Cars,HIRED TRANSPORT
Peterborough,http://opendatacommunities.org/id/unitary-authority/peterborough,Peterborough City Council,Children's & Education Services - Education,Other Education and Community Budget,Transport,02/03/2015 00:00,718873,1658.4,REVENUE,A2B Euro Cars,HIRED TRANSPORT
Peterborough,http://opendatacommunities.org/id/unitary-authority/peterborough,Peterborough City Council,Children's & Education Services - Education,Other Education and Community Budget,Transport,02/03/2015 00:00,718874,872.4,REVENUE,A2B Euro Cars,HIRED TRANSPORT
Peterborough,http://opendatacommunities.org/id/unitary-authority/peterborough,Peterborough City Council,Children's & Education Services - Education,Other Education and Community Budget,Transport,02/03/2015 00:00,718875,1778.4,REVENUE,A2B Euro Cars,HIRED TRANSPORT
Peterborough,http://opendatacommunities.org/id/unitary-authority/peterborough,Peterborough City Council,Children's & Education Services - Education,Other Education and Community Budget,Transport,02/03/2015 00:00,718876,1003.2,REVENUE,A2B Euro Cars,HIRED TRANSPORT
Peterborough,http://opendatacommunities.org/id/unitary-authority/peterborough,Peterborough City Council,More than one Service Area Category,More than one Service Division,Transport,02/03/2015 00:00,718877,3100,REVENUE,Orton Community Transport Association Ltd,HIRED TRANSPORT
Peterborough,http://opendatacommunities.org/id/unitary-authority/peterborough,Peterborough City Council,Children's & Education Services - Education,Other Education and Community Budget,Transport,02/03/2015 00:00,718878,1367.77,REVENUE,Peterborough Cars,HIRED TRANSPORT
Peterborough,http://opendatacommunities.org/id/unitary-authority/peterborough,Peterborough City Council,Children's & Education Services - Education,Other Education and Community Budget,Transport,02/03/2015 00:00,718879,1253.77,REVENUE,Peterborough Cars,HIRED TRANSPORT
Peterborough,http://opendatacommunities.org/id/unitary-authority/peterborough,Peterborough City Council,Children's & Education Services - Education,Other Education and Community Budget,Transport,02/03/2015 00:00,718880,1835.17,REVENUE,Peterborough Cars,HIRED TRANSPORT
Peterborough,http://opendatacommunities.org/id/unitary-authority/peterborough,Peterborough City Council,Children's & Education Services - Education,Other Education and Community Budget,Transport,02/03/2015 00:00,718881,957.37,REVENUE,Peterborough Cars,HIRED TRANSPORT
Peterborough,http://opendatacommunities.org/id/unitary-authority/peterborough,Peterborough City Council,Children's & Education Services - Education,Other Education and Community Budget,Transport,02/03/2015 00:00,718882,1367.77,REVENUE,Peterborough Cars,HIRED TRANSPORT
Peterborough,http://opendatacommunities.org/id/unitary-authority/peterborough,Peterborough City Council,Children's & Education Services - Education,Other Education and Community Budget,Transport,02/03/2015 00:00,718883,1945.04,REVENUE,Peterborough Cars,HIRED TRANSPORT
Peterborough,http://opendatacommunities.org/id/unitary-authority/peterborough,Peterborough City Council,More than one Service Area Category,More than one Service Division,Transport,02/03/2015 00:00,718884,2063.4,REVENUE,Goldstar Cabs Ltd,HIRED TRANSPORT
Peterborough,http://opendatacommunities.org/id/unitary-authority/peterborough,Peterborough City Council,Children's & Education Services - Education,Other Education and Community Budget,Transport,02/03/2015 00:00,718885,603,REVENUE,Goldstar Cabs Ltd,HIRED TRANSPORT
Peterborough,http://opendatacommunities.org/id/unitary-authority/peterborough,Peterborough City Council,Children's & Education Services - Education,Other Education and Community Budget,Transport,02/03/2015 00:00,718886,963,REVENUE,Goldstar Cabs Ltd,HIRED TRANSPORT
Peterborough,http://opendatacommunities.org/id/unitary-authority/peterborough,Peterborough City Council,Children's & Education Services - Education,Other Education and Community Budget,Transport,02/03/2015 00:00,718887,976.56,REVENUE,Goldstar Cabs Ltd,HIRED TRANSPORT
Peterborough,http://opendatacommunities.org/id/unitary-authority/peterborough,Peterborough City Council,More than one Service Area Category,More than one Service Division,Transport,02/03/2015 00:00,718888,2021.52,REVENUE,Goldstar Cabs Ltd,HIRED TRANSPORT
Peterborough,http://opendatacommunities.org/id/unitary-authority/peterborough,Peterborough City Council,Children's & Education Services - Education,Other Education and Community Budget,Transport,02/03/2015 00:00,718889,3030.31,REVENUE,Kier FPS Ltd,HIRED TRANSPORT
Peterborough,http://opendatacommunities.org/id/unitary-authority/peterborough,Peterborough City Council,Children's & Education Services - Education,Other Education and Community Budget,Transport,02/03/2015 00:00,718890,3051.59,REVENUE,Kier FPS Ltd,HIRED TRANSPORT
Peterborough,http://opendatacommunities.org/id/unitary-authority/peterborough,Peterborough City Council,Children's & Education Services - Education,Other Education and Community Budget,Transport,02/03/2015 00:00,718891,3565.59,REVENUE,Kier FPS Ltd,HIRED TRANSPORT
Peterborough,http://opendatacommunities.org/id/unitary-authority/peterborough,Peterborough City Council,Children's & Education Services - Education,Other Education and Community Budget,Transport,02/03/2015 00:00,718892,2041.27,REVENUE,Kier FPS Ltd,HIRED TRANSPORT
Peterborough,http://opendatacommunities.org/id/unitary-authority/peterborough,Peterborough City Council,Housing Services,Homelessness,Supplies and Services,02/03/2015 00:00,718914,500,REVENUE,ADA Glossops Ltd,FINANCIAL ASSISTANCE
Peterborough,http://opendatacommunities.org/id/unitary-authority/peterborough,Peterborough City Council,Children's & Education Services - Children's Social Care,Family Support Services,More than one Expenses Type,02/03/2015 00:00,718915,809.43,REVENUE,Cherry Lodge (Imprest),Numerous
Peterborough,http://opendatacommunities.org/id/unitary-authority/peterborough,Peterborough City Council,More than one Service Area Category,More than one Service Division,More than one Expenses Type,02/03/2015 00:00,718927,1364.67,"Mixture of Capital, Revenue and/or Balance Sheet",Bloom & Wake Ltd,GRANT PAYMENT
Peterborough,http://opendatacommunities.org/id/unitary-authority/peterborough,Peterborough City Council,More than one Service Area Category,More than one Service Division,More than one Expenses Type,02/03/2015 00:00,718928,1359.04,"Mixture of Capital, Revenue and/or Balance Sheet",Bloom & Wake Ltd,GRANT PAYMENT
Peterborough,http://opendatacommunities.org/id/unitary-authority/peterborough,Peterborough City Council,More than one Service Area Category,More than one Service Division,More than one Expenses Type,02/03/2015 00:00,718930,1449.56,"Mixture of Capital, Revenue and/or Balance Sheet",Bloom & Wake Ltd,GRANT PAYMENT
Peterborough,http://opendatacommunities.org/id/unitary-authority/peterborough,Peterborough City Council,More than one Service Area Category,More than one Service Division,More than one Expenses Type,02/03/2015 00:00,718931,3903,"Mixture of Capital, Revenue and/or Balance Sheet",Morley Building Services,GRANT PAYMENT
Peterborough,http://opendatacommunities.org/id/unitary-authority/peterborough,Peterborough City Council,More than one Service Area Category,More than one Service Division,More than one Expenses Type,02/03/2015 00:00,718932,8958,"Mixture of Capital, Revenue and/or Balance Sheet",Casbon Building Services,GRANT PAYMENT
Peterborough,http://opendatacommunities.org/id/unitary-authority/peterborough,Peterborough City Council,More than one Service Area Category,More than one Service Division,More than one Expenses Type,02/03/2015 00:00,718933,7500,"Mixture of Capital, Revenue and/or Balance Sheet",Morley Building Services,GRANT PAYMENT
Peterborough,http://opendatacommunities.org/id/unitary-authority/peterborough,Peterborough City Council,Housing Services,Homelessness,Supplies and Services,02/03/2015 00:00,718949,790,REVENUE,Priory Lettings,FINANCIAL ASSISTANCE
Peterborough,http://opendatacommunities.org/id/unitary-authority/peterborough,Peterborough City Council,Housing Services,Homelessness,Supplies and Services,02/03/2015 00:00,718951,790,REVENUE,Priory Lettings,FINANCIAL ASSISTANCE
Peterborough,http://opendatacommunities.org/id/unitary-authority/peterborough,Peterborough City Council,Housing Services,Homelessness,Supplies and Services,02/03/2015 00:00,718954,1350,REVENUE,Redacted Personal Data,FINANCIAL ASSISTANCE
Peterborough,http://opendatacommunities.org/id/unitary-authority/peterborough,Peterborough City Council,Housing Services,Homelessness,Supplies and Services,02/03/2015 00:00,718957,620,REVENUE,Property 77,FINANCIAL ASSISTANCE
Peterborough,http://opendatacommunities.org/id/unitary-authority/peterborough,Peterborough City Council,Adult Social Care,Older People,Supplies and Services,04/03/2015 00:00,681778,-582.48,REVENUE,Virgin Media Ltd,TELEPHONES
Peterborough,http://opendatacommunities.org/id/unitary-authority/peterborough,Peterborough City Council,Adult Social Care,Older People,Supplies and Services,04/03/2015 00:00,685157,1548.12,REVENUE,BUPA Care Homes,RESIDENTIAL CARE
Peterborough,http://opendatacommunities.org/id/unitary-authority/peterborough,Peterborough City Council,Adult Social Care,Older People,Supplies and Services,04/03/2015 00:00,686729,1052.32,REVENUE,St Margarets Rest Home,RESIDENTIAL CARE
Peterborough,http://opendatacommunities.org/id/unitary-authority/peterborough,Peterborough City Council,Adult Social Care,Older People,Supplies and Services,04/03/2015 00:00,686892,1052.32,REVENUE,St Margarets Rest Home,RESIDENTIAL CARE
Peterborough,http://opendatacommunities.org/id/unitary-authority/peterborough,Peterborough City Council,Adult Social Care,Older People,Supplies and Services,04/03/2015 00:00,686895,1052.32,REVENUE,St Margarets Rest Home,RESIDENTIAL CARE
Peterborough,http://opendatacommunities.org/id/unitary-authority/peterborough,Peterborough City Council,Highways and Transport Services,Street Lighting,More than one Expenses Type,04/03/2015 00:00,687131,657.6,REVENUE,UK Power Networks (operations) Ltd,INFRASTRUCTURE
Peterborough,http://opendatacommunities.org/id/unitary-authority/peterborough,Peterborough City Council,Capital,Capital,Capital Pending Update to BS,04/03/2015 00:00,699037,16800,CAPITAL,Enterprise Managed Services Limited,BUILDING AND SITE WORKS
Peterborough,http://opendatacommunities.org/id/unitary-authority/peterborough,Peterborough City Council,Children's & Education Services - Children's Social Care,Children Looked After,Supplies and Services - Transfer Payments,04/03/2015 00:00,706602,5766,REVENUE,Nexus Fostering Ltd,BOARDING - OUT ALLOWANCES
Peterborough,http://opendatacommunities.org/id/unitary-authority/peterborough,Peterborough City Council,Adult Social Care,Older People,Supplies and Services,04/03/2015 00:00,706706,1548.12,REVENUE,St Margarets Rest Home,RESIDENTIAL CARE
Peterborough,http://opendatacommunities.org/id/unitary-authority/peterborough,Peterborough City Council,Adult Social Care,Older People,Supplies and Services,04/03/2015 00:00,706707,1548.12,REVENUE,St Margarets Rest Home,RESIDENTIAL CARE
Peterborough,http://opendatacommunities.org/id/unitary-authority/peterborough,Peterborough City Council,Capital,Capital,Capital Pending Update to BS,04/03/2015 00:00,712149,-2874.96,CAPITAL,IIC by Education (P'boro) Ltd,BUILDING AND SITE WORKS
Peterborough,http://opendatacommunities.org/id/unitary-authority/peterborough,Peterborough City Council,Children's & Education Services - Children's Social Care,Other Children's & Families Services,Employees,04/03/2015 00:00,712546,1826.28,REVENUE,Eden Brown Ltd,EXTERNAL TEMPORARY STAFF
Peterborough,http://opendatacommunities.org/id/unitary-authority/peterborough,Peterborough City Council,Adult Social Care,Social Care Activities,Employees,04/03/2015 00:00,712566,1360.44,REVENUE,Liquid Personnel,EXTERNAL TEMPORARY STAFF
Peterborough,http://opendatacommunities.org/id/unitary-authority/peterborough,Peterborough City Council,Housing Services,Housing Strategy,Supplies and Services,04/03/2015 00:00,713229,600,REVENUE,Cambridge City Council,LICENCES
Peterborough,http://opendatacommunities.org/id/unitary-authority/peterborough,Peterborough City Council,Children's & Education Services - Children's Social Care,Other Children's & Families Services,Employees,04/03/2015 00:00,713240,1653.9,REVENUE,Eden Brown Ltd,EXTERNAL TEMPORARY STAFF
Peterborough,http://opendatacommunities.org/id/unitary-authority/peterborough,Peterborough City Council,Children's & Education Services - Children's Social Care,Other Children's & Families Services,Employees,04/03/2015 00:00,713241,2127.12,REVENUE,Eden Brown Ltd,EXTERNAL TEMPORARY STAFF
Peterborough,http://opendatacommunities.org/id/unitary-authority/peterborough,Peterborough City Council,Children's & Education Services - Children's Social Care,Other Children's & Families Services,Employees,04/03/2015 00:00,713242,1416.76,REVENUE,Eden Brown Ltd,EXTERNAL TEMPORARY STAFF
Peterborough,http://opendatacommunities.org/id/unitary-authority/peterborough,Peterborough City Council,Children's & Education Services - Children's Social Care,Other Children's & Families Services,Employees,04/03/2015 00:00,713244,1753.38,REVENUE,Eden Brown Ltd,EXTERNAL TEMPORARY STAFF
Peterborough,http://opendatacommunities.org/id/unitary-authority/peterborough,Peterborough City Council,Children's & Education Services - Children's Social Care,Other Children's & Families Services,Employees,04/03/2015 00:00,713245,1753.38,REVENUE,Eden Brown Ltd,EXTERNAL TEMPORARY STAFF
Peterborough,http://opendatacommunities.org/id/unitary-authority/peterborough,Peterborough City Council,Adult Social Care,Split,Third Party Payments,04/03/2015 00:00,713448,5039.2,REVENUE,MEARS GROUP,THIRD PARTY PAYMENTS - CONTRACT
Peterborough,http://opendatacommunities.org/id/unitary-authority/peterborough,Peterborough City Council,Adult Social Care,Split,Third Party Payments,04/03/2015 00:00,713449,7174.6,REVENUE,MEARS GROUP,THIRD PARTY PAYMENTS - CONTRACT
Peterborough,http://opendatacommunities.org/id/unitary-authority/peterborough,Peterborough City Council,Highways and Transport Services,Parking Services,Premises,04/03/2015 00:00,713451,10328.4,REVENUE,Parkeon Transit Ltd,MAINTENANCE
Peterborough,http://opendatacommunities.org/id/unitary-authority/peterborough,Peterborough City Council,Children's & Education Services - Education,Other Education and Community Budget,Supplies and Services,04/03/2015 00:00,713460,3664.5,REVENUE,Kent County Council,OUT OF AREA EDUCATION COSTS
Peterborough,http://opendatacommunities.org/id/unitary-authority/peterborough,Peterborough City Council,Highways and Transport Services,Public Transport,Employees,04/03/2015 00:00,713492,1918.8,REVENUE,Outspoken Training,TRAINING
Peterborough,http://opendatacommunities.org/id/unitary-authority/peterborough,Peterborough City Council,Support Services,Support Services,Employees,04/03/2015 00:00,713498,2277.89,REVENUE,Venn Group Ltd,EXTERNAL TEMPORARY STAFF
Peterborough,http://opendatacommunities.org/id/unitary-authority/peterborough,Peterborough City Council,Capital,Capital,Capital Pending Update to BS,04/03/2015 00:00,713500,4989.6,CAPITAL,Leicestershire County Council,PROFESSIONAL/LEGAL FEES
Peterborough,http://opendatacommunities.org/id/unitary-authority/peterborough,Peterborough City Council,Environmental and Regulatory Services,"Cemetery, Crematorium & Mortuary Services",Supplies and Services,04/03/2015 00:00,713515,1610,REVENUE,Anglia Co-operative Funerals,CONTRACT FUNERALS
Peterborough,http://opendatacommunities.org/id/unitary-authority/peterborough,Peterborough City Council,Children's & Education Services - Education,Other Education and Community Budget,Supplies and Services,04/03/2015 00:00,713521,4080,REVENUE,Cambridgeshire County Council,CONSULTANTS FEES
Peterborough,http://opendatacommunities.org/id/unitary-authority/peterborough,Peterborough City Council,Support Services,Support Services,Employees,04/03/2015 00:00,713529,2027.72,REVENUE,Venn Group Ltd,EXTERNAL TEMPORARY STAFF
Peterborough,http://opendatacommunities.org/id/unitary-authority/peterborough,Peterborough City Council,Support Services,Support Services,Employees,04/03/2015 00:00,713531,1530,REVENUE,Venn Group Ltd,EXTERNAL TEMPORARY STAFF
Peterborough,http://opendatacommunities.org/id/unitary-authority/peterborough,Peterborough City Council,Support Services,Support Services,Employees,04/03/2015 00:00,713551,5400,REVENUE,Redacted Personal Data,EXTERNAL TEMPORARY STAFF
Peterborough,http://opendatacommunities.org/id/unitary-authority/peterborough,Peterborough City Council,Children's & Education Services - Children's Social Care,Children Looked After,Supplies and Services - Transfer Payments,04/03/2015 00:00,713552,2878.66,REVENUE,Acorn Homes UK Ltd,BOARDING - OUT ALLOWANCES
Peterborough,http://opendatacommunities.org/id/unitary-authority/peterborough,Peterborough City Council,Children's & Education Services - Children's Social Care,Children Looked After,Supplies and Services - Transfer Payments,04/03/2015 00:00,713554,10407.01,REVENUE,Acorn Homes UK Ltd,BOARDING - OUT ALLOWANCES
Peterborough,http://opendatacommunities.org/id/unitary-authority/peterborough,Peterborough City Council,Children's & Education Services - Education,Other Education and Community Budget,Supplies and Services,04/03/2015 00:00,713638,720,REVENUE,Hallam Learning Consultancy Ltd,HIRED SERVICES
Peterborough,http://opendatacommunities.org/id/unitary-authority/peterborough,Peterborough City Council,More than one Service Area Category,More than one Service Division,Employees,04/03/2015 00:00,713737,1591.92,REVENUE,The Synergy Group,EXTERNAL TEMPORARY STAFF
Peterborough,http://opendatacommunities.org/id/unitary-authority/peterborough,Peterborough City Council,More than one Service Area Category,More than one Service Division,Employees,04/03/2015 00:00,713738,1812,REVENUE,The Synergy Group,EXTERNAL TEMPORARY STAFF
Peterborough,http://opendatacommunities.org/id/unitary-authority/peterborough,Peterborough City Council,More than one Service Area Category,More than one Service Division,Employees,04/03/2015 00:00,713739,1989.9,REVENUE,The Synergy Group,EXTERNAL TEMPORARY STAFF
Peterborough,http://opendatacommunities.org/id/unitary-authority/peterborough,Peterborough City Council,Support Services,Support Services,Supplies and Services,04/03/2015 00:00,714332,3563.81,REVENUE,Capita Business Services Ltd,COMPUTER SOFTWARE
Peterborough,http://opendatacommunities.org/id/unitary-authority/peterborough,Peterborough City Council,Support Services,Support Services,Supplies and Services,04/03/2015 00:00,714402,11032.88,REVENUE,GSL Dardan Ltd,SECURITY
Peterborough,http://opendatacommunities.org/id/unitary-authority/peterborough,Peterborough City Council,Capital,Capital,Capital Pending Update to BS,04/03/2015 00:00,714410,4046.4,CAPITAL,The Froglife Trust,ENVIRONMENTAL WORKS
Peterborough,http://opendatacommunities.org/id/unitary-authority/peterborough,Peterborough City Council,Children's & Education Services - Children's Social Care,Family Support Services,Supplies and Services,04/03/2015 00:00,714416,660,REVENUE,Movement 2 - Prism Medical UK,EQUIPMENT
Peterborough,http://opendatacommunities.org/id/unitary-authority/peterborough,Peterborough City Council,Capital,Capital,Capital Pending Update to BS,04/03/2015 00:00,714439,5151.5,CAPITAL,Pivo Tell Ltd,FURNITURE AND EQUIPMENT PURCHASE
Peterborough,http://opendatacommunities.org/id/unitary-authority/peterborough,Peterborough City Council,Cultural and Related Services,Culture & Heritage,Supplies and Services,04/03/2015 00:00,714482,1518,REVENUE,R J Mason Blacksmith & Farrier,STAGE EQUIPMENT
Peterborough,http://opendatacommunities.org/id/unitary-authority/peterborough,Peterborough City Council,Children's & Education Services - Education,All Schools - apportion across sectors,Supplies and Services,04/03/2015 00:00,714506,500,REVENUE,Heath Farm Family Services Ltd,GRANT PAYMENT
Peterborough,http://opendatacommunities.org/id/unitary-authority/peterborough,Peterborough City Council,Support Services,Support Services,Employees,04/03/2015 00:00,714507,1512,REVENUE,Venn Group Ltd,EXTERNAL TEMPORARY STAFF
Peterborough,http://opendatacommunities.org/id/unitary-authority/peterborough,Peterborough City Council,Support Services,Support Services,Employees,04/03/2015 00:00,714509,1491,REVENUE,Venn Group Ltd,EXTERNAL TEMPORARY STAFF
Peterborough,http://opendatacommunities.org/id/unitary-authority/peterborough,Peterborough City Council,Children's & Education Services - Education,Post - 16 Provision,Supplies and Services,04/03/2015 00:00,714515,20791.33,REVENUE,New College Stamford,EDUCATION EXPENSES
Peterborough,http://opendatacommunities.org/id/unitary-authority/peterborough,Peterborough City Council,Children's & Education Services - Education,Post - 16 Provision,Supplies and Services,04/03/2015 00:00,714517,20791.33,REVENUE,New College Stamford,EDUCATION EXPENSES
Peterborough,http://opendatacommunities.org/id/unitary-authority/peterborough,Peterborough City Council,Capital,Capital,Capital Pending Update to BS,04/03/2015 00:00,714522,1200,CAPITAL,Lambert Smith Hampton,CONSULTANTS FEES
Peterborough,http://opendatacommunities.org/id/unitary-authority/peterborough,Peterborough City Council,More than one Service Area Category,More than one Service Division,More than one Expenses Type,04/03/2015 00:00,714577,668.2,"Mixture of Capital, Revenue and/or Balance Sheet",Rossendales C B Ltd,DEBT COLLECTION
Peterborough,http://opendatacommunities.org/id/unitary-authority/peterborough,Peterborough City Council,Capital,Capital,Capital Pending Update to BS,04/03/2015 00:00,714624,1200,CAPITAL,Lambert Smith Hampton,CONSULTANTS FEES
Peterborough,http://opendatacommunities.org/id/unitary-authority/peterborough,Peterborough City Council,Capital,Capital,Capital Pending Update to BS,04/03/2015 00:00,714626,1200,CAPITAL,Lambert Smith Hampton,CONSULTANTS FEES
Peterborough,http://opendatacommunities.org/id/unitary-authority/peterborough,Peterborough City Council,Housing Services,Private Sector Housing Renewal,Supplies and Services,04/03/2015 00:00,714637,726.75,REVENUE,Home and Garden Mann,CONTRACTORS
Peterborough,http://opendatacommunities.org/id/unitary-authority/peterborough,Peterborough City Council,Children's & Education Services - Children's Social Care,Children Looked After,Supplies and Services - Transfer Payments,04/03/2015 00:00,714684,782.88,REVENUE,Axiom Housing Association,BOARDING - OUT ALLOWANCES
Peterborough,http://opendatacommunities.org/id/unitary-authority/peterborough,Peterborough City Council,Support Services,Support Services,Employees,04/03/2015 00:00,714691,1148.4,REVENUE,Sellick Partnership Group Limited,EXTERNAL TEMPORARY STAFF
Peterborough,http://opendatacommunities.org/id/unitary-authority/peterborough,Peterborough City Council,Children's & Education Services - Children's Social Care,Children Looked After,Supplies and Services - Transfer Payments,04/03/2015 00:00,714693,782.88,REVENUE,Axiom Housing Association,BOARDING - OUT ALLOWANCES
Peterborough,http://opendatacommunities.org/id/unitary-authority/peterborough,Peterborough City Council,Children's & Education Services - Children's Social Care,Sure Start Children's Centres / Flying Start and Early Years,Supplies and Services,04/03/2015 00:00,714694,2750,REVENUE,Newark Play Association Ltd,HIRED SERVICES
Peterborough,http://opendatacommunities.org/id/unitary-authority/peterborough,Peterborough City Council,Children's & Education Services - Children's Social Care,Children Looked After,Supplies and Services - Transfer Payments,04/03/2015 00:00,714701,838.8,REVENUE,Axiom Housing Association,BOARDING - OUT ALLOWANCES
Peterborough,http://opendatacommunities.org/id/unitary-authority/peterborough,Peterborough City Council,Children's & Education Services - Children's Social Care,Other Children's & Families Services,Employees,04/03/2015 00:00,714705,1210.9,REVENUE,Randstad Care Ltd,EXTERNAL TEMPORARY STAFF
Peterborough,http://opendatacommunities.org/id/unitary-authority/peterborough,Peterborough City Council,Environmental and Regulatory Services,"Cemetery, Crematorium & Mortuary Services",Premises,04/03/2015 00:00,714712,840,REVENUE,Material Change Ltd,GROUNDS MAINTENANCE
Peterborough,http://opendatacommunities.org/id/unitary-authority/peterborough,Peterborough City Council,Children's & Education Services - Education,Secondary,Supplies and Services,04/03/2015 00:00,714715,30610.68,REVENUE,IIC by Education (P'boro) Ltd,SERVICE CHARGE
Peterborough,http://opendatacommunities.org/id/unitary-authority/peterborough,Peterborough City Council,Children's & Education Services - Education,Secondary,Supplies and Services,04/03/2015 00:00,714718,6054.58,REVENUE,IIC by Education (P'boro) Ltd,SERVICE CHARGE
Peterborough,http://opendatacommunities.org/id/unitary-authority/peterborough,Peterborough City Council,Children's & Education Services - Children's Social Care,Other Children's & Families Services,Employees,04/03/2015 00:00,714723,1051.31,REVENUE,Tempest Resourcing,EXTERNAL TEMPORARY STAFF
Peterborough,http://opendatacommunities.org/id/unitary-authority/peterborough,Peterborough City Council,Children's & Education Services - Children's Social Care,Other Children's & Families Services,Employees,04/03/2015 00:00,714725,2070,REVENUE,Tempest Resourcing,EXTERNAL TEMPORARY STAFF
Peterborough,http://opendatacommunities.org/id/unitary-authority/peterborough,Peterborough City Council,Children's & Education Services - Education,Secondary,Employees,04/03/2015 00:00,714729,690,REVENUE,Textbook Teachers,SUPPLY TEACHERS
Peterborough,http://opendatacommunities.org/id/unitary-authority/peterborough,Peterborough City Council,Children's & Education Services - Education,Secondary,Employees,04/03/2015 00:00,714743,7026,REVENUE,Vision for Education Ltd,SUPPLY TEACHERS
Peterborough,http://opendatacommunities.org/id/unitary-authority/peterborough,Peterborough City Council,Highways and Transport Services,"Transport planning, policy and strategy",Supplies and Services,04/03/2015 00:00,714752,545.34,REVENUE,Johnston Press Midlands Division,ADVERTISING
Peterborough,http://opendatacommunities.org/id/unitary-authority/peterborough,Peterborough City Council,Support Services,Support Services,Supplies and Services,04/03/2015 00:00,714785,540.52,REVENUE,Northgate Information Solutions,COMPUTER SOFTWARE
Peterborough,http://opendatacommunities.org/id/unitary-authority/peterborough,Peterborough City Council,Adult Social Care,Older People,Supplies and Services,04/03/2015 00:00,714829,1284.16,REVENUE,BUPA Care Homes,RESIDENTIAL CARE
Peterborough,http://opendatacommunities.org/id/unitary-authority/peterborough,Peterborough City Council,Adult Social Care,Social Care Activities,Employees,04/03/2015 00:00,714836,1009,REVENUE,Liquid Personnel,EXTERNAL TEMPORARY STAFF
Peterborough,http://opendatacommunities.org/id/unitary-authority/peterborough,Peterborough City Council,Adult Social Care,Older People,Supplies and Services,04/03/2015 00:00,715172,844.24,REVENUE,Housing 21,HOME CARE
Peterborough,http://opendatacommunities.org/id/unitary-authority/peterborough,Peterborough City Council,Adult Social Care,Older People,Supplies and Services,04/03/2015 00:00,715174,633.18,REVENUE,Housing 21,HOME CARE
Peterborough,http://opendatacommunities.org/id/unitary-authority/peterborough,Peterborough City Council,Adult Social Care,Older People,Supplies and Services,04/03/2015 00:00,715176,740.44,REVENUE,Housing 21,HOME CARE
Peterborough,http://opendatacommunities.org/id/unitary-authority/peterborough,Peterborough City Council,Adult Social Care,Older People,Supplies and Services,04/03/2015 00:00,715179,1608.9,REVENUE,Housing 21,HOME CARE
Peterborough,http://opendatacommunities.org/id/unitary-authority/peterborough,Peterborough City Council,Adult Social Care,Older People,Supplies and Services,04/03/2015 00:00,715181,2276.68,REVENUE,Housing 21,HOME CARE
Peterborough,http://opendatacommunities.org/id/unitary-authority/peterborough,Peterborough City Council,Adult Social Care,Older People,Supplies and Services,04/03/2015 00:00,715182,550.14,REVENUE,Housing 21,HOME CARE
Peterborough,http://opendatacommunities.org/id/unitary-authority/peterborough,Peterborough City Council,Adult Social Care,Older People,Supplies and Services,04/03/2015 00:00,715183,591.66,REVENUE,Housing 21,HOME CARE
Peterborough,http://opendatacommunities.org/id/unitary-authority/peterborough,Peterborough City Council,Adult Social Care,Older People,Supplies and Services,04/03/2015 00:00,715185,965.34,REVENUE,Housing 21,HOME CARE
Peterborough,http://opendatacommunities.org/id/unitary-authority/peterborough,Peterborough City Council,Adult Social Care,Older People,Supplies and Services,04/03/2015 00:00,715186,1626.2,REVENUE,Housing 21,HOME CARE
Peterborough,http://opendatacommunities.org/id/unitary-authority/peterborough,Peterborough City Council,Adult Social Care,Older People,Supplies and Services,04/03/2015 00:00,715187,532.84,REVENUE,Housing 21,HOME CARE
Peterborough,http://opendatacommunities.org/id/unitary-authority/peterborough,Peterborough City Council,Adult Social Care,Older People,Supplies and Services,04/03/2015 00:00,715188,532.84,REVENUE,Housing 21,HOME CARE
Peterborough,http://opendatacommunities.org/id/unitary-authority/peterborough,Peterborough City Council,Adult Social Care,Older People,Supplies and Services,04/03/2015 00:00,715190,820.02,REVENUE,Housing 21,HOME CARE
Peterborough,http://opendatacommunities.org/id/unitary-authority/peterborough,Peterborough City Council,Adult Social Care,Older People,Supplies and Services,04/03/2015 00:00,715193,577.82,REVENUE,Housing 21,HOME CARE
Peterborough,http://opendatacommunities.org/id/unitary-authority/peterborough,Peterborough City Council,Adult Social Care,Older People,Supplies and Services,04/03/2015 00:00,715194,2415.08,REVENUE,Housing 21,HOME CARE
Peterborough,http://opendatacommunities.org/id/unitary-authority/peterborough,Peterborough City Council,Adult Social Care,Older People,Supplies and Services,04/03/2015 00:00,715196,1660.8,REVENUE,Housing 21,HOME CARE
Peterborough,http://opendatacommunities.org/id/unitary-authority/peterborough,Peterborough City Council,Adult Social Care,Older People,Supplies and Services,04/03/2015 00:00,715198,878.84,REVENUE,Housing 21,HOME CARE
Peterborough,http://opendatacommunities.org/id/unitary-authority/peterborough,Peterborough City Council,Adult Social Care,Older People,Supplies and Services,04/03/2015 00:00,715200,519,REVENUE,Housing 21,HOME CARE
Peterborough,http://opendatacommunities.org/id/unitary-authority/peterborough,Peterborough City Council,Children's & Education Services - Children's Social Care,Children Looked After,Transport,04/03/2015 00:00,715240,764.2,REVENUE,Goldstar Cabs Ltd,HIRED TRANSPORT
Peterborough,http://opendatacommunities.org/id/unitary-authority/peterborough,Peterborough City Council,Adult Social Care,Older People,Supplies and Services,04/03/2015 00:00,715429,1234.04,REVENUE,THE CLAIR FRANCIS RETIREMENT HOME,RESIDENTIAL CARE
Peterborough,http://opendatacommunities.org/id/unitary-authority/peterborough,Peterborough City Council,More than one Service Area Category,More than one Service Division,Balance Sheet,04/03/2015 00:00,715521,7946.44,Balance Sheet,IIC by Education (P'boro) Ltd,INPUT VAT
Peterborough,http://opendatacommunities.org/id/unitary-authority/peterborough,Peterborough City Council,Court Services,Coroner's Court Service,Supplies and Services,04/03/2015 00:00,715534,749.6,REVENUE,Redacted Personal Data,POST MORTEM CHARGES
Peterborough,http://opendatacommunities.org/id/unitary-authority/peterborough,Peterborough City Council,Children's & Education Services - Education,Secondary,Supplies and Services,04/03/2015 00:00,715553,4904.45,REVENUE,IIC by Education (P'boro) Ltd,SERVICE CHARGE
Peterborough,http://opendatacommunities.org/id/unitary-authority/peterborough,Peterborough City Council,Children's & Education Services - Education,Secondary,Employees,04/03/2015 00:00,716082,876,REVENUE,Vision for Education Ltd,SUPPLY TEACHERS
Peterborough,http://opendatacommunities.org/id/unitary-authority/peterborough,Peterborough City Council,Adult Social Care,Older People,Supplies and Services,04/03/2015 00:00,716084,532.23,REVENUE,Barchester Healthcare (Werrington Lodge),RESIDENTIAL CARE
Peterborough,http://opendatacommunities.org/id/unitary-authority/peterborough,Peterborough City Council,Adult Social Care,Older People,Supplies and Services,04/03/2015 00:00,716085,1609.76,REVENUE,Barchester Healthcare (Werrington Lodge),RESIDENTIAL CARE
Peterborough,http://opendatacommunities.org/id/unitary-authority/peterborough,Peterborough City Council,Adult Social Care,Older People,Supplies and Services,04/03/2015 00:00,716086,2065.56,REVENUE,Barchester Healthcare (Werrington Lodge),RESIDENTIAL CARE
Peterborough,http://opendatacommunities.org/id/unitary-authority/peterborough,Peterborough City Council,Adult Social Care,Older People,Supplies and Services,04/03/2015 00:00,716087,1455.08,REVENUE,Barchester Healthcare (Werrington Lodge),RESIDENTIAL CARE
Peterborough,http://opendatacommunities.org/id/unitary-authority/peterborough,Peterborough City Council,Adult Social Care,Older People,Supplies and Services,04/03/2015 00:00,716089,1569.76,REVENUE,Barchester Healthcare (Werrington Lodge),RESIDENTIAL CARE
Peterborough,http://opendatacommunities.org/id/unitary-authority/peterborough,Peterborough City Council,Adult Social Care,Older People,Supplies and Services,04/03/2015 00:00,716090,1569.76,REVENUE,Barchester Healthcare (Werrington Lodge),RESIDENTIAL CARE
Peterborough,http://opendatacommunities.org/id/unitary-authority/peterborough,Peterborough City Council,Adult Social Care,Older People,Supplies and Services,04/03/2015 00:00,716091,1510.24,REVENUE,Barchester Healthcare (Werrington Lodge),RESIDENTIAL CARE
Peterborough,http://opendatacommunities.org/id/unitary-authority/peterborough,Peterborough City Council,Adult Social Care,Older People,Supplies and Services,04/03/2015 00:00,716092,1246.16,REVENUE,Barchester Healthcare (Werrington Lodge),RESIDENTIAL CARE
Peterborough,http://opendatacommunities.org/id/unitary-authority/peterborough,Peterborough City Council,Adult Social Care,Older People,Supplies and Services,04/03/2015 00:00,716094,1381.08,REVENUE,Barchester Healthcare (Werrington Lodge),RESIDENTIAL CARE
Peterborough,http://opendatacommunities.org/id/unitary-authority/peterborough,Peterborough City Council,Adult Social Care,Older People,Supplies and Services,04/03/2015 00:00,716097,1076.8,REVENUE,Barchester Healthcare (Werrington Lodge),RESIDENTIAL CARE
Peterborough,http://opendatacommunities.org/id/unitary-authority/peterborough,Peterborough City Council,Adult Social Care,Older People,Supplies and Services,04/03/2015 00:00,716099,644.92,REVENUE,Barchester Healthcare (Werrington Lodge),RESIDENTIAL CARE
Peterborough,http://opendatacommunities.org/id/unitary-authority/peterborough,Peterborough City Council,Adult Social Care,Older People,Supplies and Services,04/03/2015 00:00,716102,1218.96,REVENUE,Barchester Healthcare (Werrington Lodge),RESIDENTIAL CARE
Peterborough,http://opendatacommunities.org/id/unitary-authority/peterborough,Peterborough City Council,Adult Social Care,Older People,Supplies and Services,04/03/2015 00:00,716152,633.8,REVENUE,Twelve Trees Residential Care Home,RESIDENTIAL CARE
Peterborough,http://opendatacommunities.org/id/unitary-authority/peterborough,Peterborough City Council,Adult Social Care,Older People,Supplies and Services,04/03/2015 00:00,716154,1044.56,REVENUE,Twelve Trees Residential Care Home,RESIDENTIAL CARE
Peterborough,http://opendatacommunities.org/id/unitary-authority/peterborough,Peterborough City Council,Adult Social Care,Older People,Supplies and Services,04/03/2015 00:00,716157,1044.56,REVENUE,Twelve Trees Residential Care Home,RESIDENTIAL CARE
Peterborough,http://opendatacommunities.org/id/unitary-authority/peterborough,Peterborough City Council,Support Services,Support Services,Employees,04/03/2015 00:00,716177,564.84,REVENUE,Reed Specialist Recruitment,EXTERNAL TEMPORARY STAFF
Peterborough,http://opendatacommunities.org/id/unitary-authority/peterborough,Peterborough City Council,Children's & Education Services - Children's Social Care,Children Looked After,Supplies and Services - Transfer Payments,04/03/2015 00:00,716247,2738.75,REVENUE,Transition Care Peterborough Ltd,BOARDING - OUT ALLOWANCES
Peterborough,http://opendatacommunities.org/id/unitary-authority/peterborough,Peterborough City Council,Children's & Education Services - Children's Social Care,Children Looked After,Supplies and Services - Transfer Payments,04/03/2015 00:00,716250,2871.05,REVENUE,Transition Care Peterborough Ltd,BOARDING - OUT ALLOWANCES
Peterborough,http://opendatacommunities.org/id/unitary-authority/peterborough,Peterborough City Council,Adult Social Care,Adult Learning Disabilities,Supplies and Services,04/03/2015 00:00,716548,641.16,REVENUE,Sense,DAY CARE
Peterborough,http://opendatacommunities.org/id/unitary-authority/peterborough,Peterborough City Council,Adult Social Care,Adult Physical Disability & Sensory Impairment,Supplies and Services,04/03/2015 00:00,716549,1153.12,REVENUE,Sense,DAY CARE
Peterborough,http://opendatacommunities.org/id/unitary-authority/peterborough,Peterborough City Council,Adult Social Care,Adult Learning Disabilities,Supplies and Services,04/03/2015 00:00,716551,1549.56,REVENUE,Sense,DAY CARE
Peterborough,http://opendatacommunities.org/id/unitary-authority/peterborough,Peterborough City Council,Adult Social Care,Adult Learning Disabilities,Supplies and Services,04/03/2015 00:00,716554,1582.32,REVENUE,Sense,DAY CARE
Peterborough,http://opendatacommunities.org/id/unitary-authority/peterborough,Peterborough City Council,Support Services,Support Services,Supplies and Services,04/03/2015 00:00,716850,660,REVENUE,"Elliott, Ms Margot",LEGAL COSTS
Peterborough,http://opendatacommunities.org/id/unitary-authority/peterborough,Peterborough City Council,Support Services,Support Services,Supplies and Services,04/03/2015 00:00,716856,4680,REVENUE,"Elliott, Ms Margot",LEGAL COSTS
Peterborough,http://opendatacommunities.org/id/unitary-authority/peterborough,Peterborough City Council,Support Services,Support Services,Supplies and Services,04/03/2015 00:00,716859,660,REVENUE,"Elliott, Ms Margot",LEGAL COSTS
Peterborough,http://opendatacommunities.org/id/unitary-authority/peterborough,Peterborough City Council,Deficit/(Surplus) on Trading Undertakings,Trading Account Surpluses & Deficits,Supplies and Services,04/03/2015 00:00,716881,1216.8,REVENUE,Barron Clark Castings Ltd,ITEMS FOR RESALE
Peterborough,http://opendatacommunities.org/id/unitary-authority/peterborough,Peterborough City Council,More than one Service Area Category,More than one Service Division,Supplies and Services,04/03/2015 00:00,716882,553.63,REVENUE,O2 (UK) Ltd,MOBILE TELEPHONES
Peterborough,http://opendatacommunities.org/id/unitary-authority/peterborough,Peterborough City Council,Highways and Transport Services,Public Transport,Supplies and Services,04/03/2015 00:00,716885,8337.14,REVENUE,Stagecoach in Peterborough,CONTRACTORS
Peterborough,http://opendatacommunities.org/id/unitary-authority/peterborough,Peterborough City Council,Corporate & Democratic Core,Democratic Representation & Managemetn,Transport,04/03/2015 00:00,716911,561.08,REVENUE,Nene Jag Specialists Ltd,MAYORAL CAR
Peterborough,http://opendatacommunities.org/id/unitary-authority/peterborough,Peterborough City Council,Adult Social Care,Older People,Supplies and Services,04/03/2015 00:00,717086,527.16,REVENUE,Sagecare,HOME CARE
Peterborough,http://opendatacommunities.org/id/unitary-authority/peterborough,Peterborough City Council,Adult Social Care,Older People,Supplies and Services,04/03/2015 00:00,717093,549.74,REVENUE,Sagecare,HOME CARE
Peterborough,http://opendatacommunities.org/id/unitary-authority/peterborough,Peterborough City Council,Adult Social Care,Older People,Supplies and Services,04/03/2015 00:00,717097,558.24,REVENUE,Sagecare,HOME CARE
Peterborough,http://opendatacommunities.org/id/unitary-authority/peterborough,Peterborough City Council,Adult Social Care,Older People,Supplies and Services,04/03/2015 00:00,717098,1236.12,REVENUE,Sagecare,HOME CARE
Peterborough,http://opendatacommunities.org/id/unitary-authority/peterborough,Peterborough City Council,Adult Social Care,Older People,Supplies and Services,04/03/2015 00:00,717100,820.32,REVENUE,Sagecare,HOME CARE
Peterborough,http://opendatacommunities.org/id/unitary-authority/peterborough,Peterborough City Council,Adult Social Care,Older People,Supplies and Services,04/03/2015 00:00,717104,609.21,REVENUE,Sagecare,HOME CARE
Peterborough,http://opendatacommunities.org/id/unitary-authority/peterborough,Peterborough City Council,Adult Social Care,Older People,Supplies and Services,04/03/2015 00:00,717108,736.08,REVENUE,Sagecare,HOME CARE
Peterborough,http://opendatacommunities.org/id/unitary-authority/peterborough,Peterborough City Council,Adult Social Care,Older People,Supplies and Services,04/03/2015 00:00,717113,874.89,REVENUE,Sagecare,HOME CARE
Peterborough,http://opendatacommunities.org/id/unitary-authority/peterborough,Peterborough City Council,Adult Social Care,Older People,Supplies and Services,04/03/2015 00:00,717123,1518.72,REVENUE,Sagecare,HOME CARE
Peterborough,http://opendatacommunities.org/id/unitary-authority/peterborough,Peterborough City Council,Adult Social Care,Older People,Supplies and Services,04/03/2015 00:00,717134,1404.36,REVENUE,Sagecare,HOME CARE
Peterborough,http://opendatacommunities.org/id/unitary-authority/peterborough,Peterborough City Council,Adult Social Care,Older People,Supplies and Services,04/03/2015 00:00,717148,508.42,REVENUE,Sagecare,HOME CARE
Peterborough,http://opendatacommunities.org/id/unitary-authority/peterborough,Peterborough City Council,Adult Social Care,Older People,Supplies and Services,04/03/2015 00:00,717150,1869.99,REVENUE,Sagecare,HOME CARE
Peterborough,http://opendatacommunities.org/id/unitary-authority/peterborough,Peterborough City Council,Adult Social Care,Older People,Supplies and Services,04/03/2015 00:00,717151,819.36,REVENUE,Sagecare,HOME CARE
Peterborough,http://opendatacommunities.org/id/unitary-authority/peterborough,Peterborough City Council,Adult Social Care,Older People,Supplies and Services,04/03/2015 00:00,717153,629.67,REVENUE,Sagecare,HOME CARE
Peterborough,http://opendatacommunities.org/id/unitary-authority/peterborough,Peterborough City Council,Adult Social Care,Older People,Supplies and Services,04/03/2015 00:00,717154,962.85,REVENUE,Sagecare,HOME CARE
Peterborough,http://opendatacommunities.org/id/unitary-authority/peterborough,Peterborough City Council,Adult Social Care,Older People,Supplies and Services,04/03/2015 00:00,717156,1268.92,REVENUE,Sagecare,HOME CARE
Peterborough,http://opendatacommunities.org/id/unitary-authority/peterborough,Peterborough City Council,Adult Social Care,Older People,Supplies and Services,04/03/2015 00:00,717245,696.64,REVENUE,MEARS GROUP,HOME CARE
Peterborough,http://opendatacommunities.org/id/unitary-authority/peterborough,Peterborough City Council,Adult Social Care,Older People,Supplies and Services,04/03/2015 00:00,717246,780.61,REVENUE,MEARS GROUP,HOME CARE
Peterborough,http://opendatacommunities.org/id/unitary-authority/peterborough,Peterborough City Council,Adult Social Care,Older People,Supplies and Services,04/03/2015 00:00,717247,1135.15,REVENUE,MEARS GROUP,HOME CARE
Peterborough,http://opendatacommunities.org/id/unitary-authority/peterborough,Peterborough City Council,Adult Social Care,Older People,Supplies and Services,04/03/2015 00:00,717248,2777.23,REVENUE,MEARS GROUP,HOME CARE
Peterborough,http://opendatacommunities.org/id/unitary-authority/peterborough,Peterborough City Council,Adult Social Care,Older People,Supplies and Services,04/03/2015 00:00,717250,1567.44,REVENUE,MEARS GROUP,HOME CARE
Peterborough,http://opendatacommunities.org/id/unitary-authority/peterborough,Peterborough City Council,Adult Social Care,Older People,Supplies and Services,04/03/2015 00:00,717258,531.81,REVENUE,MEARS GROUP,HOME CARE
Peterborough,http://opendatacommunities.org/id/unitary-authority/peterborough,Peterborough City Council,Adult Social Care,Older People,Supplies and Services,04/03/2015 00:00,717267,609.56,REVENUE,MEARS GROUP,HOME CARE
Peterborough,http://opendatacommunities.org/id/unitary-authority/peterborough,Peterborough City Council,Adult Social Care,Older People,Supplies and Services,04/03/2015 00:00,717268,600.23,REVENUE,MEARS GROUP,HOME CARE
Peterborough,http://opendatacommunities.org/id/unitary-authority/peterborough,Peterborough City Council,Adult Social Care,Older People,Supplies and Services,04/03/2015 00:00,717269,2164.56,REVENUE,MEARS GROUP,HOME CARE
Peterborough,http://opendatacommunities.org/id/unitary-authority/peterborough,Peterborough City Council,Adult Social Care,Older People,Supplies and Services,04/03/2015 00:00,717270,1912.65,REVENUE,MEARS GROUP,HOME CARE
Peterborough,http://opendatacommunities.org/id/unitary-authority/peterborough,Peterborough City Council,Adult Social Care,Older People,Supplies and Services,04/03/2015 00:00,717271,516.26,REVENUE,MEARS GROUP,HOME CARE
Peterborough,http://opendatacommunities.org/id/unitary-authority/peterborough,Peterborough City Council,Adult Social Care,Older People,Supplies and Services,04/03/2015 00:00,717272,1051.18,REVENUE,MEARS GROUP,HOME CARE
Peterborough,http://opendatacommunities.org/id/unitary-authority/peterborough,Peterborough City Council,Adult Social Care,Older People,Supplies and Services,04/03/2015 00:00,717273,1480.36,REVENUE,MEARS GROUP,HOME CARE
Peterborough,http://opendatacommunities.org/id/unitary-authority/peterborough,Peterborough City Council,Adult Social Care,Older People,Supplies and Services,04/03/2015 00:00,717274,606.45,REVENUE,MEARS GROUP,HOME CARE
Peterborough,http://opendatacommunities.org/id/unitary-authority/peterborough,Peterborough City Council,Adult Social Care,Older People,Supplies and Services,04/03/2015 00:00,717275,715.3,REVENUE,MEARS GROUP,HOME CARE
Peterborough,http://opendatacommunities.org/id/unitary-authority/peterborough,Peterborough City Council,Adult Social Care,Older People,Supplies and Services,04/03/2015 00:00,717277,2083.7,REVENUE,MEARS GROUP,HOME CARE
Peterborough,http://opendatacommunities.org/id/unitary-authority/peterborough,Peterborough City Council,Adult Social Care,Older People,Supplies and Services,04/03/2015 00:00,717278,547.36,REVENUE,MEARS GROUP,HOME CARE
Peterborough,http://opendatacommunities.org/id/unitary-authority/peterborough,Peterborough City Council,Children's & Education Services - Children's Social Care,Other Children's & Families Services,Employees,04/03/2015 00:00,717288,2280,REVENUE,Sanctuary Personnel Ltd,EXTERNAL TEMPORARY STAFF
Peterborough,http://opendatacommunities.org/id/unitary-authority/peterborough,Peterborough City Council,Children's & Education Services - Children's Social Care,Other Children's & Families Services,Employees,04/03/2015 00:00,717290,2619.6,REVENUE,Sanctuary Personnel Ltd,EXTERNAL TEMPORARY STAFF
Peterborough,http://opendatacommunities.org/id/unitary-authority/peterborough,Peterborough City Council,Children's & Education Services - Children's Social Care,Other Children's & Families Services,Employees,04/03/2015 00:00,717291,2144.52,REVENUE,Sanctuary Personnel Ltd,EXTERNAL TEMPORARY STAFF
Peterborough,http://opendatacommunities.org/id/unitary-authority/peterborough,Peterborough City Council,Children's & Education Services - Children's Social Care,Other Children's & Families Services,Employees,04/03/2015 00:00,717293,2190,REVENUE,Sanctuary Personnel Ltd,EXTERNAL TEMPORARY STAFF
Peterborough,http://opendatacommunities.org/id/unitary-authority/peterborough,Peterborough City Council,Children's & Education Services - Children's Social Care,Other Children's & Families Services,Employees,04/03/2015 00:00,717304,1800,REVENUE,Sanctuary Personnel Ltd,EXTERNAL TEMPORARY STAFF
Peterborough,http://opendatacommunities.org/id/unitary-authority/peterborough,Peterborough City Council,Children's & Education Services - Children's Social Care,Other Children's & Families Services,Employees,04/03/2015 00:00,717306,1800,REVENUE,Sanctuary Personnel Ltd,EXTERNAL TEMPORARY STAFF
Peterborough,http://opendatacommunities.org/id/unitary-authority/peterborough,Peterborough City Council,Children's & Education Services - Children's Social Care,Other Children's & Families Services,Employees,04/03/2015 00:00,717307,2144.52,REVENUE,Sanctuary Personnel Ltd,EXTERNAL TEMPORARY STAFF
Peterborough,http://opendatacommunities.org/id/unitary-authority/peterborough,Peterborough City Council,Children's & Education Services - Children's Social Care,Other Children's & Families Services,Employees,04/03/2015 00:00,717308,1620,REVENUE,Sanctuary Personnel Ltd,EXTERNAL TEMPORARY STAFF
Peterborough,http://opendatacommunities.org/id/unitary-authority/peterborough,Peterborough City Council,Children's & Education Services - Children's Social Care,Other Children's & Families Services,Employees,04/03/2015 00:00,717310,2144.52,REVENUE,Sanctuary Personnel Ltd,EXTERNAL TEMPORARY STAFF
Peterborough,http://opendatacommunities.org/id/unitary-authority/peterborough,Peterborough City Council,Children's & Education Services - Children's Social Care,Other Children's & Families Services,Employees,04/03/2015 00:00,717311,1286.71,REVENUE,Sanctuary Personnel Ltd,EXTERNAL TEMPORARY STAFF
Peterborough,http://opendatacommunities.org/id/unitary-authority/peterborough,Peterborough City Council,Adult Social Care,Social Care Activities,Third Party Payments,04/03/2015 00:00,717434,748,REVENUE,Redacted Personal Data,THIRD PARTY PAYMENTS - CONTRACT
Peterborough,http://opendatacommunities.org/id/unitary-authority/peterborough,Peterborough City Council,Adult Social Care,Adult Learning Disabilities,Supplies and Services,04/03/2015 00:00,717445,-4725,REVENUE,SOCIAL CARE SOLUTIONS LTD,HOME CARE
Peterborough,http://opendatacommunities.org/id/unitary-authority/peterborough,Peterborough City Council,Adult Social Care,Older People,Supplies and Services,04/03/2015 00:00,717447,-762.88,REVENUE,Barchester Healthcare (Werrington Lodge),RESIDENTIAL CARE
Peterborough,http://opendatacommunities.org/id/unitary-authority/peterborough,Peterborough City Council,Capital,Capital,Capital Pending Update to BS,04/03/2015 00:00,717476,29669.83,CAPITAL,Frederick F Smith (Builders) Ltd,BUILDING AND SITE WORKS
Peterborough,http://opendatacommunities.org/id/unitary-authority/peterborough,Peterborough City Council,Children's & Education Services - Children's Social Care,Support Services & Management Costs,Supplies and Services,04/03/2015 00:00,717504,2940,REVENUE,Emap Publishing Ltd,HOSPITALITY
Peterborough,http://opendatacommunities.org/id/unitary-authority/peterborough,Peterborough City Council,More than one Service Area Category,More than one Service Division,Third Party Payments,04/03/2015 00:00,717554,798931.52,REVENUE,Enterprise Managed Services Limited,THIRD PARTY PAYMENTS - CONTRACT
Peterborough,http://opendatacommunities.org/id/unitary-authority/peterborough,Peterborough City Council,Adult Social Care,Adult Learning Disabilities,Supplies and Services,04/03/2015 00:00,717577,2863.2,REVENUE,SOCIAL CARE SOLUTIONS LTD,HOME CARE
Peterborough,http://opendatacommunities.org/id/unitary-authority/peterborough,Peterborough City Council,Adult Social Care,Adult Learning Disabilities,Supplies and Services,04/03/2015 00:00,717578,3223.2,REVENUE,SOCIAL CARE SOLUTIONS LTD,HOME CARE
Peterborough,http://opendatacommunities.org/id/unitary-authority/peterborough,Peterborough City Council,Adult Social Care,Adult Learning Disabilities,Supplies and Services,04/03/2015 00:00,717579,3223.2,REVENUE,SOCIAL CARE SOLUTIONS LTD,HOME CARE
Peterborough,http://opendatacommunities.org/id/unitary-authority/peterborough,Peterborough City Council,Adult Social Care,Adult Learning Disabilities,Supplies and Services,04/03/2015 00:00,717581,3211.2,REVENUE,SOCIAL CARE SOLUTIONS LTD,HOME CARE
Peterborough,http://opendatacommunities.org/id/unitary-authority/peterborough,Peterborough City Council,Adult Social Care,Adult Learning Disabilities,Supplies and Services,04/03/2015 00:00,717582,3903.2,REVENUE,SOCIAL CARE SOLUTIONS LTD,HOME CARE
Peterborough,http://opendatacommunities.org/id/unitary-authority/peterborough,Peterborough City Council,Adult Social Care,Adult Learning Disabilities,Supplies and Services,04/03/2015 00:00,717583,2983.2,REVENUE,SOCIAL CARE SOLUTIONS LTD,HOME CARE
Peterborough,http://opendatacommunities.org/id/unitary-authority/peterborough,Peterborough City Council,Adult Social Care,Adult Learning Disabilities,Supplies and Services,04/03/2015 00:00,717584,540,REVENUE,SOCIAL CARE SOLUTIONS LTD,HOME CARE
Peterborough,http://opendatacommunities.org/id/unitary-authority/peterborough,Peterborough City Council,Adult Social Care,Adult Learning Disabilities,Supplies and Services,04/03/2015 00:00,717585,3740.12,REVENUE,SOCIAL CARE SOLUTIONS LTD,HOME CARE
Peterborough,http://opendatacommunities.org/id/unitary-authority/peterborough,Peterborough City Council,Adult Social Care,Adult Learning Disabilities,Supplies and Services,04/03/2015 00:00,717586,7929.6,REVENUE,SOCIAL CARE SOLUTIONS LTD,HOME CARE
Peterborough,http://opendatacommunities.org/id/unitary-authority/peterborough,Peterborough City Council,Adult Social Care,Adult Learning Disabilities,Supplies and Services,04/03/2015 00:00,717587,6064.8,REVENUE,SOCIAL CARE SOLUTIONS LTD,HOME CARE
Peterborough,http://opendatacommunities.org/id/unitary-authority/peterborough,Peterborough City Council,More than one Service Area Category,More than one Service Division,Balance Sheet,04/03/2015 00:00,717613,1282.78,Balance Sheet,Redacted Personal Data,REFUNDS
Peterborough,http://opendatacommunities.org/id/unitary-authority/peterborough,Peterborough City Council,More than one Service Area Category,More than one Service Division,Balance Sheet,04/03/2015 00:00,717632,750,Balance Sheet,Redacted Personal Data,REFUNDS
Peterborough,http://opendatacommunities.org/id/unitary-authority/peterborough,Peterborough City Council,Court Services,Coroner's Court Service,More than one Expenses Type,04/03/2015 00:00,717645,649.5,REVENUE,Redacted Personal Data,JURORS/EXPERT WITNESSES
Peterborough,http://opendatacommunities.org/id/unitary-authority/peterborough,Peterborough City Council,Highways and Transport Services,Street Lighting,Premises,04/03/2015 00:00,718251,2513.32,REVENUE,EDF Energy Networks Ltd,ELECTRICITY
Peterborough,http://opendatacommunities.org/id/unitary-authority/peterborough,Peterborough City Council,Highways and Transport Services,Street Lighting,Premises,04/03/2015 00:00,718252,103447.36,REVENUE,EDF Energy Networks Ltd,ELECTRICITY
Peterborough,http://opendatacommunities.org/id/unitary-authority/peterborough,Peterborough City Council,Capital,Capital,Capital Pending Update to BS,04/03/2015 00:00,718332,44744.95,CAPITAL,Garfield Builders Ltd,BUILDING AND SITE WORKS
Peterborough,http://opendatacommunities.org/id/unitary-authority/peterborough,Peterborough City Council,More than one Service Area Category,More than one Service Division,Balance Sheet,04/03/2015 00:00,718366,3100,Balance Sheet,DAC Beachcroft Claims Ltd,INSURANCE CLAIMS
Peterborough,http://opendatacommunities.org/id/unitary-authority/peterborough,Peterborough City Council,Adult Social Care,Adult Mental Health,Supplies and Services,04/03/2015 00:00,718402,2392,REVENUE,The Richmond Fellowship,PROFESSIONAL SERVICES
Peterborough,http://opendatacommunities.org/id/unitary-authority/peterborough,Peterborough City Council,More than one Service Area Category,More than one Service Division,Balance Sheet,04/03/2015 00:00,718413,28000,Balance Sheet,Amelans Solicitors,INSURANCE CLAIMS
Peterborough,http://opendatacommunities.org/id/unitary-authority/peterborough,Peterborough City Council,Housing Services,Homelessness,Supplies and Services,04/03/2015 00:00,718420,552.3,REVENUE,Eastfield Guesthouse,HOMELESSNESS BED AND BREAKFAST
Peterborough,http://opendatacommunities.org/id/unitary-authority/peterborough,Peterborough City Council,Children's & Education Services - Children's Social Care,Other Children's & Families Services,Employees,04/03/2015 00:00,718458,2131.2,REVENUE,Medicare First,EXTERNAL TEMPORARY STAFF
Peterborough,http://opendatacommunities.org/id/unitary-authority/peterborough,Peterborough City Council,Adult Social Care,Older People,Supplies and Services,04/03/2015 00:00,718576,960.2,REVENUE,Barchester Healthcare Ltd (Tixover),RESIDENTIAL CARE
Peterborough,http://opendatacommunities.org/id/unitary-authority/peterborough,Peterborough City Council,Adult Social Care,Older People,Supplies and Services,04/03/2015 00:00,718578,1021.88,REVENUE,Barchester Healthcare Ltd (Tixover),RESIDENTIAL CARE
Peterborough,http://opendatacommunities.org/id/unitary-authority/peterborough,Peterborough City Council,Adult Social Care,Social Care Activities,Employees,04/03/2015 00:00,718581,1575,REVENUE,Randstad Care Ltd,EXTERNAL TEMPORARY STAFF
Peterborough,http://opendatacommunities.org/id/unitary-authority/peterborough,Peterborough City Council,Adult Social Care,Older People,Supplies and Services,04/03/2015 00:00,718666,4595.52,REVENUE,Longueville Court (Barchester),RESIDENTIAL CARE
Peterborough,http://opendatacommunities.org/id/unitary-authority/peterborough,Peterborough City Council,Adult Social Care,Older People,Supplies and Services,04/03/2015 00:00,718667,4460,REVENUE,Longueville Court (Barchester),RESIDENTIAL CARE
Peterborough,http://opendatacommunities.org/id/unitary-authority/peterborough,Peterborough City Council,Adult Social Care,Older People,Supplies and Services,04/03/2015 00:00,718668,3853.48,REVENUE,Longueville Court (Barchester),RESIDENTIAL CARE
Peterborough,http://opendatacommunities.org/id/unitary-authority/peterborough,Peterborough City Council,Adult Social Care,Older People,Supplies and Services,04/03/2015 00:00,718669,2016.88,REVENUE,Longueville Court (Barchester),RESIDENTIAL CARE
Peterborough,http://opendatacommunities.org/id/unitary-authority/peterborough,Peterborough City Council,Adult Social Care,Older People,Supplies and Services,04/03/2015 00:00,718670,3340,REVENUE,Longueville Court (Barchester),RESIDENTIAL CARE
Peterborough,http://opendatacommunities.org/id/unitary-authority/peterborough,Peterborough City Council,Adult Social Care,Adult Physical Disability & Sensory Impairment,Supplies and Services,04/03/2015 00:00,718671,4428.57,REVENUE,Longueville Court (Barchester),RESIDENTIAL CARE
Peterborough,http://opendatacommunities.org/id/unitary-authority/peterborough,Peterborough City Council,Adult Social Care,Older People,Supplies and Services,04/03/2015 00:00,718672,3237.4,REVENUE,Longueville Court (Barchester),RESIDENTIAL CARE
Peterborough,http://opendatacommunities.org/id/unitary-authority/peterborough,Peterborough City Council,Adult Social Care,Adult Learning Disabilities,Supplies and Services,04/03/2015 00:00,718683,660.52,REVENUE,Mencap,HOME CARE
Peterborough,http://opendatacommunities.org/id/unitary-authority/peterborough,Peterborough City Council,Adult Social Care,Adult Learning Disabilities,Supplies and Services,04/03/2015 00:00,718689,1214.4,REVENUE,Mencap,HOME CARE
Peterborough,http://opendatacommunities.org/id/unitary-authority/peterborough,Peterborough City Council,Adult Social Care,Adult Learning Disabilities,Supplies and Services,04/03/2015 00:00,718690,3774.2,REVENUE,Mencap,HOME CARE
Peterborough,http://opendatacommunities.org/id/unitary-authority/peterborough,Peterborough City Council,Adult Social Care,Adult Learning Disabilities,Supplies and Services,04/03/2015 00:00,718692,6676.6,REVENUE,Sense,DAY CARE
Peterborough,http://opendatacommunities.org/id/unitary-authority/peterborough,Peterborough City Council,Children's & Education Services - Children's Social Care,Other Children's & Families Services,Employees,04/03/2015 00:00,718713,1800,REVENUE,Sanctuary Personnel Ltd,EXTERNAL TEMPORARY STAFF
Peterborough,http://opendatacommunities.org/id/unitary-authority/peterborough,Peterborough City Council,Adult Social Care,Adult Learning Disabilities,Supplies and Services,04/03/2015 00:00,718722,1727.2,REVENUE,Augusta Care Ltd,HOME CARE
Peterborough,http://opendatacommunities.org/id/unitary-authority/peterborough,Peterborough City Council,Adult Social Care,Older People,Supplies and Services,04/03/2015 00:00,718725,1821.88,REVENUE,LAVENDER HOUSE RESIDENTIAL HOME,RESIDENTIAL CARE
Peterborough,http://opendatacommunities.org/id/unitary-authority/peterborough,Peterborough City Council,Adult Social Care,Older People,Supplies and Services,04/03/2015 00:00,718728,917.65,REVENUE,LAVENDER HOUSE RESIDENTIAL HOME,RESIDENTIAL CARE
Peterborough,http://opendatacommunities.org/id/unitary-authority/peterborough,Peterborough City Council,Adult Social Care,Older People,Supplies and Services,04/03/2015 00:00,718730,1067.64,REVENUE,LAVENDER HOUSE RESIDENTIAL HOME,RESIDENTIAL CARE
Peterborough,http://opendatacommunities.org/id/unitary-authority/peterborough,Peterborough City Council,Adult Social Care,Adult Mental Health,Supplies and Services,04/03/2015 00:00,718733,1424.48,REVENUE,Dalmeny House,RESIDENTIAL CARE
Peterborough,http://opendatacommunities.org/id/unitary-authority/peterborough,Peterborough City Council,Adult Social Care,Adult Learning Disabilities,Supplies and Services,04/03/2015 00:00,718743,4536,REVENUE,Mencap,HOME CARE
Peterborough,http://opendatacommunities.org/id/unitary-authority/peterborough,Peterborough City Council,Adult Social Care,Social Care Activities,Employees,04/03/2015 00:00,718751,1370.26,REVENUE,Sanctuary Personnel Ltd,EXTERNAL TEMPORARY STAFF
Peterborough,http://opendatacommunities.org/id/unitary-authority/peterborough,Peterborough City Council,Adult Social Care,Adult Learning Disabilities,Supplies and Services,04/03/2015 00:00,718753,1195.2,REVENUE,Sense,DAY CARE
Peterborough,http://opendatacommunities.org/id/unitary-authority/peterborough,Peterborough City Council,Adult Social Care,Adult Learning Disabilities,Supplies and Services,04/03/2015 00:00,718755,6249.6,REVENUE,Voyage,RESIDENTIAL CARE
Peterborough,http://opendatacommunities.org/id/unitary-authority/peterborough,Peterborough City Council,Children's & Education Services - Children's Social Care,Services to Young People,Supplies and Services,04/03/2015 00:00,718783,1776,REVENUE,Redacted Personal Data,PURCHASED SOCIAL CARE SERVICES
Peterborough,http://opendatacommunities.org/id/unitary-authority/peterborough,Peterborough City Council,Adult Social Care,Adult Learning Disabilities,Supplies and Services,04/03/2015 00:00,718788,6548.04,REVENUE,Mencap,HOME CARE
Peterborough,http://opendatacommunities.org/id/unitary-authority/peterborough,Peterborough City Council,Adult Social Care,Older People,Supplies and Services,04/03/2015 00:00,718832,3480.6,REVENUE,Longueville Court (Barchester),RESIDENTIAL CARE
Peterborough,http://opendatacommunities.org/id/unitary-authority/peterborough,Peterborough City Council,Adult Social Care,Older People,Supplies and Services,04/03/2015 00:00,718833,2655.84,REVENUE,Longueville Court (Barchester),RESIDENTIAL CARE
Peterborough,http://opendatacommunities.org/id/unitary-authority/peterborough,Peterborough City Council,Adult Social Care,Older People,Supplies and Services,04/03/2015 00:00,718834,3541.2,REVENUE,Longueville Court (Barchester),RESIDENTIAL CARE
Peterborough,http://opendatacommunities.org/id/unitary-authority/peterborough,Peterborough City Council,Adult Social Care,Adult Physical Disability & Sensory Impairment,Supplies and Services,04/03/2015 00:00,718835,3336,REVENUE,Longueville Court (Barchester),RESIDENTIAL CARE
Peterborough,http://opendatacommunities.org/id/unitary-authority/peterborough,Peterborough City Council,Adult Social Care,Older People,Supplies and Services,04/03/2015 00:00,718836,2100.12,REVENUE,Longueville Court (Barchester),RESIDENTIAL CARE
Peterborough,http://opendatacommunities.org/id/unitary-authority/peterborough,Peterborough City Council,Adult Social Care,Older People,Supplies and Services,04/03/2015 00:00,718838,2107.28,REVENUE,Longueville Court (Barchester),RESIDENTIAL CARE
Peterborough,http://opendatacommunities.org/id/unitary-authority/peterborough,Peterborough City Council,Adult Social Care,Older People,Supplies and Services,04/03/2015 00:00,718839,2708.8,REVENUE,Longueville Court (Barchester),RESIDENTIAL CARE
Peterborough,http://opendatacommunities.org/id/unitary-authority/peterborough,Peterborough City Council,Adult Social Care,Adult Learning Disabilities,Supplies and Services,04/03/2015 00:00,718840,1604.56,REVENUE,Mencap,HOME CARE
Peterborough,http://opendatacommunities.org/id/unitary-authority/peterborough,Peterborough City Council,More than one Service Area Category,More than one Service Division,Third Party Payments,04/03/2015 00:00,718841,765109.1,REVENUE,Enterprise Managed Services Limited,THIRD PARTY PAYMENTS - CONTRACT
Peterborough,http://opendatacommunities.org/id/unitary-authority/peterborough,Peterborough City Council,Adult Social Care,Adult Learning Disabilities,Supplies and Services,04/03/2015 00:00,718842,858,REVENUE,Mencap,HOME CARE
Peterborough,http://opendatacommunities.org/id/unitary-authority/peterborough,Peterborough City Council,Adult Social Care,Adult Learning Disabilities,Supplies and Services,04/03/2015 00:00,718843,792,REVENUE,Mencap,HOME CARE
Peterborough,http://opendatacommunities.org/id/unitary-authority/peterborough,Peterborough City Council,Adult Social Care,Adult Learning Disabilities,Supplies and Services,04/03/2015 00:00,718844,773.4,REVENUE,Mencap,HOME CARE
Peterborough,http://opendatacommunities.org/id/unitary-authority/peterborough,Peterborough City Council,Adult Social Care,Adult Learning Disabilities,Supplies and Services,04/03/2015 00:00,718846,960.08,REVENUE,Mencap,HOME CARE
Peterborough,http://opendatacommunities.org/id/unitary-authority/peterborough,Peterborough City Council,Adult Social Care,Adult Learning Disabilities,Supplies and Services,04/03/2015 00:00,718848,7005.6,REVENUE,Mencap,HOME CARE
Peterborough,http://opendatacommunities.org/id/unitary-authority/peterborough,Peterborough City Council,Adult Social Care,Adult Learning Disabilities,Supplies and Services,04/03/2015 00:00,718849,2300,REVENUE,Longueville Court (Barchester),RESIDENTIAL CARE
Peterborough,http://opendatacommunities.org/id/unitary-authority/peterborough,Peterborough City Council,Adult Social Care,Adult Learning Disabilities,Supplies and Services,04/03/2015 00:00,718852,1323.88,REVENUE,Mencap,HOME CARE
Peterborough,http://opendatacommunities.org/id/unitary-authority/peterborough,Peterborough City Council,Adult Social Care,Adult Learning Disabilities,Supplies and Services,04/03/2015 00:00,718853,633.6,REVENUE,Mencap,HOME CARE
Peterborough,http://opendatacommunities.org/id/unitary-authority/peterborough,Peterborough City Council,Adult Social Care,Adult Learning Disabilities,Supplies and Services,04/03/2015 00:00,718854,739.2,REVENUE,Mencap,HOME CARE
Peterborough,http://opendatacommunities.org/id/unitary-authority/peterborough,Peterborough City Council,Adult Social Care,Adult Learning Disabilities,Supplies and Services,04/03/2015 00:00,718855,824.88,REVENUE,Mencap,HOME CARE
Peterborough,http://opendatacommunities.org/id/unitary-authority/peterborough,Peterborough City Council,Adult Social Care,Adult Learning Disabilities,Supplies and Services,04/03/2015 00:00,718857,805.2,REVENUE,Mencap,HOME CARE
Peterborough,http://opendatacommunities.org/id/unitary-authority/peterborough,Peterborough City Council,Adult Social Care,Adult Learning Disabilities,Supplies and Services,04/03/2015 00:00,718863,566,REVENUE,Goldhay Arts,DAY CARE
Peterborough,http://opendatacommunities.org/id/unitary-authority/peterborough,Peterborough City Council,Adult Social Care,Adult Learning Disabilities,Supplies and Services,04/03/2015 00:00,718867,506,REVENUE,Goldhay Arts,DAY CARE
Peterborough,http://opendatacommunities.org/id/unitary-authority/peterborough,Peterborough City Council,Adult Social Care,Adult Learning Disabilities,Supplies and Services,04/03/2015 00:00,718894,566,REVENUE,Goldhay Arts,DAY CARE
Peterborough,http://opendatacommunities.org/id/unitary-authority/peterborough,Peterborough City Council,Adult Social Care,Adult Learning Disabilities,Supplies and Services,04/03/2015 00:00,718895,566,REVENUE,Goldhay Arts,DAY CARE
Peterborough,http://opendatacommunities.org/id/unitary-authority/peterborough,Peterborough City Council,More than one Service Area Category,More than one Service Division,Premises,04/03/2015 00:00,718896,3345.24,REVENUE,Corona Energy Retail 4 Limited,GAS
Peterborough,http://opendatacommunities.org/id/unitary-authority/peterborough,Peterborough City Council,Adult Social Care,Adult Learning Disabilities,Supplies and Services,04/03/2015 00:00,718898,666,REVENUE,Goldhay Arts,DAY CARE
Peterborough,http://opendatacommunities.org/id/unitary-authority/peterborough,Peterborough City Council,More than one Service Area Category,More than one Service Division,Premises,04/03/2015 00:00,718899,2115.68,REVENUE,Corona Energy Retail 4 Limited,GAS
Peterborough,http://opendatacommunities.org/id/unitary-authority/peterborough,Peterborough City Council,More than one Service Area Category,More than one Service Division,Premises,04/03/2015 00:00,718902,2179.62,REVENUE,Corona Energy Retail 4 Limited,GAS
Peterborough,http://opendatacommunities.org/id/unitary-authority/peterborough,Peterborough City Council,More than one Service Area Category,More than one Service Division,Premises,04/03/2015 00:00,718906,41647.5,REVENUE,EDF Energy Networks Ltd,ELECTRICITY
Peterborough,http://opendatacommunities.org/id/unitary-authority/peterborough,Peterborough City Council,More than one Service Area Category,More than one Service Division,Premises,04/03/2015 00:00,718909,30260.11,REVENUE,EDF Energy Networks Ltd,ELECTRICITY
Peterborough,http://opendatacommunities.org/id/unitary-authority/peterborough,Peterborough City Council,Adult Social Care,Older People,Supplies and Services,04/03/2015 00:00,718913,636.28,REVENUE,Park Vista Care Home,RESIDENTIAL CARE
Peterborough,http://opendatacommunities.org/id/unitary-authority/peterborough,Peterborough City Council,Adult Social Care,Older People,Supplies and Services,04/03/2015 00:00,718916,961.2,REVENUE,Mayfield Residential Home,RESIDENTIAL CARE
Peterborough,http://opendatacommunities.org/id/unitary-authority/peterborough,Peterborough City Council,More than one Service Area Category,More than one Service Division,Balance Sheet,04/03/2015 00:00,718917,587.46,Balance Sheet,Redacted Personal Data,REFUNDS
Peterborough,http://opendatacommunities.org/id/unitary-authority/peterborough,Peterborough City Council,Adult Social Care,Older People,Supplies and Services,04/03/2015 00:00,718918,961.2,REVENUE,Mayfield Residential Home,RESIDENTIAL CARE
Peterborough,http://opendatacommunities.org/id/unitary-authority/peterborough,Peterborough City Council,Adult Social Care,Older People,Supplies and Services,04/03/2015 00:00,718919,961.2,REVENUE,Mayfield Residential Home,RESIDENTIAL CARE
Peterborough,http://opendatacommunities.org/id/unitary-authority/peterborough,Peterborough City Council,Adult Social Care,Older People,Supplies and Services,04/03/2015 00:00,718922,961.2,REVENUE,Mayfield Residential Home,RESIDENTIAL CARE
Peterborough,http://opendatacommunities.org/id/unitary-authority/peterborough,Peterborough City Council,Adult Social Care,Older People,Supplies and Services,04/03/2015 00:00,718939,961.2,REVENUE,Mayfield Residential Home,RESIDENTIAL CARE
Peterborough,http://opendatacommunities.org/id/unitary-authority/peterborough,Peterborough City Council,Adult Social Care,Adult Learning Disabilities,Supplies and Services,04/03/2015 00:00,718946,6265.4,REVENUE,Mencap,HOME CARE
Peterborough,http://opendatacommunities.org/id/unitary-authority/peterborough,Peterborough City Council,Adult Social Care,Adult Learning Disabilities,Supplies and Services,04/03/2015 00:00,718948,6000.44,REVENUE,Mencap,HOME CARE
Peterborough,http://opendatacommunities.org/id/unitary-authority/peterborough,Peterborough City Council,Adult Social Care,Adult Learning Disabilities,Supplies and Services,04/03/2015 00:00,718959,-1342.7,REVENUE,Mencap,HOME CARE
Peterborough,http://opendatacommunities.org/id/unitary-authority/peterborough,Peterborough City Council,Corporate & Democratic Core,Corporate Management,Supplies and Services,04/03/2015 00:00,718968,500,REVENUE,Peterborough Interfaith Council,SPECIAL PROJECTS
Peterborough,http://opendatacommunities.org/id/unitary-authority/peterborough,Peterborough City Council,Children's & Education Services - Education,Other Education and Community Budget,Supplies and Services,04/03/2015 00:00,718972,1508.2,REVENUE,Farcet C.E. (C) Primary School,OUT OF AREA EDUCATION COSTS
Peterborough,http://opendatacommunities.org/id/unitary-authority/peterborough,Peterborough City Council,More than one Service Area Category,More than one Service Division,More than one Expenses Type,04/03/2015 00:00,718976,4415,"Mixture of Capital, Revenue and/or Balance Sheet",M M Heating & Plumbing,GRANT PAYMENT
Peterborough,http://opendatacommunities.org/id/unitary-authority/peterborough,Peterborough City Council,Support Services,Support Services,Supplies and Services,04/03/2015 00:00,718994,528.02,REVENUE,Beech Clinic,JURORS/EXPERT WITNESSES
Peterborough,http://opendatacommunities.org/id/unitary-authority/peterborough,Peterborough City Council,Adult Social Care,Older People,Supplies and Services,04/03/2015 00:00,719017,2310,REVENUE,PHILIA LODGE REST HOME,RESIDENTIAL CARE
Peterborough,http://opendatacommunities.org/id/unitary-authority/peterborough,Peterborough City Council,Adult Social Care,Adult Learning Disabilities,Supplies and Services,04/03/2015 00:00,719021,5002.12,REVENUE,Community Care Solutions Ltd,RESIDENTIAL CARE
Peterborough,http://opendatacommunities.org/id/unitary-authority/peterborough,Peterborough City Council,Adult Social Care,Adult Learning Disabilities,Supplies and Services,04/03/2015 00:00,719023,5002.12,REVENUE,Community Care Solutions Ltd,RESIDENTIAL CARE
Peterborough,http://opendatacommunities.org/id/unitary-authority/peterborough,Peterborough City Council,Adult Social Care,Adult Learning Disabilities,Supplies and Services,04/03/2015 00:00,719026,5002.12,REVENUE,Community Care Solutions Ltd,RESIDENTIAL CARE
Peterborough,http://opendatacommunities.org/id/unitary-authority/peterborough,Peterborough City Council,Adult Social Care,Adult Learning Disabilities,Supplies and Services,04/03/2015 00:00,719028,5002.12,REVENUE,Community Care Solutions Ltd,RESIDENTIAL CARE
Peterborough,http://opendatacommunities.org/id/unitary-authority/peterborough,Peterborough City Council,Adult Social Care,Older People,Supplies and Services,04/03/2015 00:00,719031,606,REVENUE,Care UK Homecare Ltd,HOME CARE
Peterborough,http://opendatacommunities.org/id/unitary-authority/peterborough,Peterborough City Council,Adult Social Care,Older People,Supplies and Services,04/03/2015 00:00,719038,1155,REVENUE,PHILIA LODGE REST HOME,RESIDENTIAL CARE
Peterborough,http://opendatacommunities.org/id/unitary-authority/peterborough,Peterborough City Council,Adult Social Care,Older People,Supplies and Services,04/03/2015 00:00,719040,627,REVENUE,Care UK Homecare Ltd,HOME CARE
Peterborough,http://opendatacommunities.org/id/unitary-authority/peterborough,Peterborough City Council,Adult Social Care,Older People,Supplies and Services,04/03/2015 00:00,719052,929.6,REVENUE,PHILIA LODGE REST HOME,RESIDENTIAL CARE
Peterborough,http://opendatacommunities.org/id/unitary-authority/peterborough,Peterborough City Council,Adult Social Care,Older People,Supplies and Services,04/03/2015 00:00,719053,795.2,REVENUE,PHILIA LODGE REST HOME,RESIDENTIAL CARE
Peterborough,http://opendatacommunities.org/id/unitary-authority/peterborough,Peterborough City Council,Adult Social Care,Older People,Supplies and Services,04/03/2015 00:00,719054,1350.16,REVENUE,PHILIA LODGE REST HOME,RESIDENTIAL CARE
Peterborough,http://opendatacommunities.org/id/unitary-authority/peterborough,Peterborough City Council,Adult Social Care,Older People,Supplies and Services,04/03/2015 00:00,719074,1326.08,REVENUE,PHILIA LODGE REST HOME,RESIDENTIAL CARE
Peterborough,http://opendatacommunities.org/id/unitary-authority/peterborough,Peterborough City Council,Adult Social Care,Older People,Supplies and Services,04/03/2015 00:00,719076,1329.44,REVENUE,PHILIA LODGE REST HOME,RESIDENTIAL CARE
Peterborough,http://opendatacommunities.org/id/unitary-authority/peterborough,Peterborough City Council,Adult Social Care,Older People,Supplies and Services,04/03/2015 00:00,719092,2504.32,REVENUE,STAR RESIDENTIAL HOME LTD,RESIDENTIAL CARE
Peterborough,http://opendatacommunities.org/id/unitary-authority/peterborough,Peterborough City Council,Adult Social Care,Older People,Supplies and Services,04/03/2015 00:00,719112,1107.4,REVENUE,STAR RESIDENTIAL HOME LTD,RESIDENTIAL CARE
Peterborough,http://opendatacommunities.org/id/unitary-authority/peterborough,Peterborough City Council,Adult Social Care,Older People,Supplies and Services,04/03/2015 00:00,719132,958.44,REVENUE,STAR RESIDENTIAL HOME LTD,RESIDENTIAL CARE
Peterborough,http://opendatacommunities.org/id/unitary-authority/peterborough,Peterborough City Council,Adult Social Care,Older People,Supplies and Services,04/03/2015 00:00,719133,2547.72,REVENUE,STAR RESIDENTIAL HOME LTD,RESIDENTIAL CARE
Peterborough,http://opendatacommunities.org/id/unitary-authority/peterborough,Peterborough City Council,Adult Social Care,Older People,Supplies and Services,04/03/2015 00:00,719202,1525.72,REVENUE,STAR RESIDENTIAL HOME LTD,RESIDENTIAL CARE
Peterborough,http://opendatacommunities.org/id/unitary-authority/peterborough,Peterborough City Council,Adult Social Care,Older People,Supplies and Services,04/03/2015 00:00,719204,1326.08,REVENUE,STAR RESIDENTIAL HOME LTD,RESIDENTIAL CARE
Peterborough,http://opendatacommunities.org/id/unitary-authority/peterborough,Peterborough City Council,Adult Social Care,Older People,Supplies and Services,04/03/2015 00:00,719206,1294.72,REVENUE,STAR RESIDENTIAL HOME LTD,RESIDENTIAL CARE
Peterborough,http://opendatacommunities.org/id/unitary-authority/peterborough,Peterborough City Council,Adult Social Care,Older People,Supplies and Services,04/03/2015 00:00,719207,1266.72,REVENUE,STAR RESIDENTIAL HOME LTD,RESIDENTIAL CARE
Peterborough,http://opendatacommunities.org/id/unitary-authority/peterborough,Peterborough City Council,Adult Social Care,Older People,Supplies and Services,04/03/2015 00:00,719208,1248.8,REVENUE,STAR RESIDENTIAL HOME LTD,RESIDENTIAL CARE
Peterborough,http://opendatacommunities.org/id/unitary-authority/peterborough,Peterborough City Council,Adult Social Care,Older People,Supplies and Services,04/03/2015 00:00,719209,1633.24,REVENUE,STAR RESIDENTIAL HOME LTD,RESIDENTIAL CARE
Peterborough,http://opendatacommunities.org/id/unitary-authority/peterborough,Peterborough City Council,Adult Social Care,Older People,Supplies and Services,04/03/2015 00:00,719210,2232.72,REVENUE,STAR RESIDENTIAL HOME LTD,RESIDENTIAL CARE
Peterborough,http://opendatacommunities.org/id/unitary-authority/peterborough,Peterborough City Council,Adult Social Care,Older People,Supplies and Services,04/03/2015 00:00,719211,1490.16,REVENUE,STAR RESIDENTIAL HOME LTD,RESIDENTIAL CARE
Peterborough,http://opendatacommunities.org/id/unitary-authority/peterborough,Peterborough City Council,Adult Social Care,Older People,Supplies and Services,04/03/2015 00:00,719212,1244.88,REVENUE,STAR RESIDENTIAL HOME LTD,RESIDENTIAL CARE
Peterborough,http://opendatacommunities.org/id/unitary-authority/peterborough,Peterborough City Council,Adult Social Care,Older People,Supplies and Services,04/03/2015 00:00,719213,3043.56,REVENUE,STAR RESIDENTIAL HOME LTD,RESIDENTIAL CARE
Peterborough,http://opendatacommunities.org/id/unitary-authority/peterborough,Peterborough City Council,Adult Social Care,Adult Learning Disabilities,Supplies and Services,04/03/2015 00:00,719215,800,REVENUE,THE HELPING HANDS GROUP,DAY CARE
Peterborough,http://opendatacommunities.org/id/unitary-authority/peterborough,Peterborough City Council,Adult Social Care,Adult Learning Disabilities,Supplies and Services,04/03/2015 00:00,719216,2040,REVENUE,THE HELPING HANDS GROUP,DAY CARE
Peterborough,http://opendatacommunities.org/id/unitary-authority/peterborough,Peterborough City Council,Adult Social Care,Adult Learning Disabilities,Supplies and Services,04/03/2015 00:00,719218,1310,REVENUE,THE HELPING HANDS GROUP,DAY CARE
Peterborough,http://opendatacommunities.org/id/unitary-authority/peterborough,Peterborough City Council,Adult Social Care,Adult Learning Disabilities,Supplies and Services,04/03/2015 00:00,719220,970,REVENUE,THE HELPING HANDS GROUP,DAY CARE
Peterborough,http://opendatacommunities.org/id/unitary-authority/peterborough,Peterborough City Council,Adult Social Care,Older People,Supplies and Services,04/03/2015 00:00,719221,2040,REVENUE,THE HELPING HANDS GROUP,DAY CARE
Peterborough,http://opendatacommunities.org/id/unitary-authority/peterborough,Peterborough City Council,Adult Social Care,Adult Learning Disabilities,Supplies and Services,04/03/2015 00:00,719222,5190.44,REVENUE,Community Care Solutions Ltd,RESIDENTIAL CARE
Peterborough,http://opendatacommunities.org/id/unitary-authority/peterborough,Peterborough City Council,Adult Social Care,Adult Learning Disabilities,Supplies and Services,04/03/2015 00:00,719223,4828.6,REVENUE,Community Care Solutions Ltd,RESIDENTIAL CARE
Peterborough,http://opendatacommunities.org/id/unitary-authority/peterborough,Peterborough City Council,Adult Social Care,Adult Learning Disabilities,Supplies and Services,04/03/2015 00:00,719224,7457.64,REVENUE,Community Care Solutions Ltd,RESIDENTIAL CARE
Peterborough,http://opendatacommunities.org/id/unitary-authority/peterborough,Peterborough City Council,Adult Social Care,Adult Learning Disabilities,Supplies and Services,04/03/2015 00:00,719225,1625,REVENUE,THE HELPING HANDS GROUP,DAY CARE
Peterborough,http://opendatacommunities.org/id/unitary-authority/peterborough,Peterborough City Council,Adult Social Care,Adult Learning Disabilities,Supplies and Services,04/03/2015 00:00,719226,5112.64,REVENUE,Community Care Solutions Ltd,RESIDENTIAL CARE
Peterborough,http://opendatacommunities.org/id/unitary-authority/peterborough,Peterborough City Council,Adult Social Care,Adult Learning Disabilities,Supplies and Services,04/03/2015 00:00,719227,2040,REVENUE,THE HELPING HANDS GROUP,DAY CARE
Peterborough,http://opendatacommunities.org/id/unitary-authority/peterborough,Peterborough City Council,Adult Social Care,Adult Learning Disabilities,Supplies and Services,04/03/2015 00:00,719228,1360,REVENUE,THE HELPING HANDS GROUP,DAY CARE
Peterborough,http://opendatacommunities.org/id/unitary-authority/peterborough,Peterborough City Council,Adult Social Care,Adult Learning Disabilities,Supplies and Services,04/03/2015 00:00,719230,2040,REVENUE,THE HELPING HANDS GROUP,DAY CARE
Peterborough,http://opendatacommunities.org/id/unitary-authority/peterborough,Peterborough City Council,Adult Social Care,Adult Learning Disabilities,Supplies and Services,04/03/2015 00:00,719233,1615,REVENUE,THE HELPING HANDS GROUP,DAY CARE
Peterborough,http://opendatacommunities.org/id/unitary-authority/peterborough,Peterborough City Council,Adult Social Care,Adult Learning Disabilities,Supplies and Services,04/03/2015 00:00,719234,1290,REVENUE,THE HELPING HANDS GROUP,DAY CARE
Peterborough,http://opendatacommunities.org/id/unitary-authority/peterborough,Peterborough City Council,Adult Social Care,Adult Learning Disabilities,Supplies and Services,04/03/2015 00:00,719235,1360,REVENUE,THE HELPING HANDS GROUP,DAY CARE
Peterborough,http://opendatacommunities.org/id/unitary-authority/peterborough,Peterborough City Council,Children's & Education Services - Children's Social Care,Other Children's & Families Services,Employees,04/03/2015 00:00,719246,1000.33,REVENUE,Eden Brown Ltd,EXTERNAL TEMPORARY STAFF
Peterborough,http://opendatacommunities.org/id/unitary-authority/peterborough,Peterborough City Council,Children's & Education Services - Children's Social Care,Other Children's & Families Services,Employees,04/03/2015 00:00,719247,1658.76,REVENUE,Eden Brown Ltd,EXTERNAL TEMPORARY STAFF
Peterborough,http://opendatacommunities.org/id/unitary-authority/peterborough,Peterborough City Council,Adult Social Care,Learning Disability Support - Adults (18-64),Employees,04/03/2015 00:00,719255,751.74,REVENUE,Sanctuary Personnel Ltd,EXTERNAL TEMPORARY STAFF
Peterborough,http://opendatacommunities.org/id/unitary-authority/peterborough,Peterborough City Council,Adult Social Care,Learning Disability Support - Adults (18-64),Employees,04/03/2015 00:00,719257,968.39,REVENUE,Sanctuary Personnel Ltd,EXTERNAL TEMPORARY STAFF
Peterborough,http://opendatacommunities.org/id/unitary-authority/peterborough,Peterborough City Council,Adult Social Care,Older People,Supplies and Services,04/03/2015 00:00,719271,1303.64,REVENUE,Park Vista Care Home,RESIDENTIAL CARE
Peterborough,http://opendatacommunities.org/id/unitary-authority/peterborough,Peterborough City Council,Adult Social Care,Older People,Supplies and Services,04/03/2015 00:00,719272,1941.87,REVENUE,THE CLAIR FRANCIS RETIREMENT HOME,RESIDENTIAL CARE
Peterborough,http://opendatacommunities.org/id/unitary-authority/peterborough,Peterborough City Council,Adult Social Care,Adult Learning Disabilities,Supplies and Services,04/03/2015 00:00,719275,6831.92,REVENUE,NEW BOUNDARIES COMMUNITY SERVICES LTD,RESIDENTIAL CARE
Peterborough,http://opendatacommunities.org/id/unitary-authority/peterborough,Peterborough City Council,Adult Social Care,Older People,Supplies and Services,04/03/2015 00:00,719279,863.56,REVENUE,ARGYLE PARK NURSING HOME 2011,RESIDENTIAL CARE
Peterborough,http://opendatacommunities.org/id/unitary-authority/peterborough,Peterborough City Council,More than one Service Area Category,More than one Service Division,More than one Expenses Type,04/03/2015 00:00,719284,1330.08,"Mixture of Capital, Revenue and/or Balance Sheet",Bloom & Wake Ltd,GRANT PAYMENT
Peterborough,http://opendatacommunities.org/id/unitary-authority/peterborough,Peterborough City Council,Adult Social Care,Adult Learning Disabilities,Supplies and Services,04/03/2015 00:00,719287,7395.92,REVENUE,Affinity Trust,HOME CARE
Peterborough,http://opendatacommunities.org/id/unitary-authority/peterborough,Peterborough City Council,More than one Service Area Category,More than one Service Division,More than one Expenses Type,04/03/2015 00:00,719289,2705,"Mixture of Capital, Revenue and/or Balance Sheet",Dolphin Mobility East Midlands Ltd,GRANT PAYMENT
Peterborough,http://opendatacommunities.org/id/unitary-authority/peterborough,Peterborough City Council,Adult Social Care,Older People,Supplies and Services,04/03/2015 00:00,719292,1052.32,REVENUE,Pilgrim Havens,RESIDENTIAL CARE
Peterborough,http://opendatacommunities.org/id/unitary-authority/peterborough,Peterborough City Council,More than one Service Area Category,More than one Service Division,More than one Expenses Type,04/03/2015 00:00,719293,871.74,"Mixture of Capital, Revenue and/or Balance Sheet",Bloom & Wake Ltd,GRANT PAYMENT
Peterborough,http://opendatacommunities.org/id/unitary-authority/peterborough,Peterborough City Council,Adult Social Care,Older People,Supplies and Services,04/03/2015 00:00,719294,1324.16,REVENUE,Pilgrim Havens,RESIDENTIAL CARE
Peterborough,http://opendatacommunities.org/id/unitary-authority/peterborough,Peterborough City Council,More than one Service Area Category,More than one Service Division,More than one Expenses Type,04/03/2015 00:00,719295,1323.18,"Mixture of Capital, Revenue and/or Balance Sheet",Bloom & Wake Ltd,GRANT PAYMENT
Peterborough,http://opendatacommunities.org/id/unitary-authority/peterborough,Peterborough City Council,More than one Service Area Category,More than one Service Division,More than one Expenses Type,04/03/2015 00:00,719297,6531,"Mixture of Capital, Revenue and/or Balance Sheet",Casbon Building Services,GRANT PAYMENT
Peterborough,http://opendatacommunities.org/id/unitary-authority/peterborough,Peterborough City Council,More than one Service Area Category,More than one Service Division,More than one Expenses Type,04/03/2015 00:00,719300,3902,"Mixture of Capital, Revenue and/or Balance Sheet",Casbon Building Services,GRANT PAYMENT
Peterborough,http://opendatacommunities.org/id/unitary-authority/peterborough,Peterborough City Council,Adult Social Care,Older People,Supplies and Services,04/03/2015 00:00,719301,1161.16,REVENUE,The Orders of St John Care Trust,RESIDENTIAL CARE
Peterborough,http://opendatacommunities.org/id/unitary-authority/peterborough,Peterborough City Council,More than one Service Area Category,More than one Service Division,More than one Expenses Type,04/03/2015 00:00,719303,4095,"Mixture of Capital, Revenue and/or Balance Sheet",P F S Builders & Contractors,GRANT PAYMENT
Peterborough,http://opendatacommunities.org/id/unitary-authority/peterborough,Peterborough City Council,More than one Service Area Category,More than one Service Division,More than one Expenses Type,04/03/2015 00:00,719304,962.51,"Mixture of Capital, Revenue and/or Balance Sheet",Bloom & Wake Ltd,GRANT PAYMENT
Peterborough,http://opendatacommunities.org/id/unitary-authority/peterborough,Peterborough City Council,More than one Service Area Category,More than one Service Division,More than one Expenses Type,04/03/2015 00:00,719305,1269.74,"Mixture of Capital, Revenue and/or Balance Sheet",Bloom & Wake Ltd,GRANT PAYMENT
Peterborough,http://opendatacommunities.org/id/unitary-authority/peterborough,Peterborough City Council,More than one Service Area Category,More than one Service Division,More than one Expenses Type,04/03/2015 00:00,719307,3820.91,"Mixture of Capital, Revenue and/or Balance Sheet",P F S Builders & Contractors,GRANT PAYMENT
Peterborough,http://opendatacommunities.org/id/unitary-authority/peterborough,Peterborough City Council,More than one Service Area Category,More than one Service Division,More than one Expenses Type,04/03/2015 00:00,719310,3336,"Mixture of Capital, Revenue and/or Balance Sheet",Casbon Building Services,GRANT PAYMENT
Peterborough,http://opendatacommunities.org/id/unitary-authority/peterborough,Peterborough City Council,More than one Service Area Category,More than one Service Division,More than one Expenses Type,04/03/2015 00:00,719315,2666,"Mixture of Capital, Revenue and/or Balance Sheet",Allworks Home Improvements Ltd,GRANT PAYMENT
Peterborough,http://opendatacommunities.org/id/unitary-authority/peterborough,Peterborough City Council,More than one Service Area Category,More than one Service Division,More than one Expenses Type,04/03/2015 00:00,719323,6303,"Mixture of Capital, Revenue and/or Balance Sheet",Casbon Building Services,GRANT PAYMENT
Peterborough,http://opendatacommunities.org/id/unitary-authority/peterborough,Peterborough City Council,More than one Service Area Category,More than one Service Division,More than one Expenses Type,04/03/2015 00:00,719325,3639,"Mixture of Capital, Revenue and/or Balance Sheet",Casbon Building Services,GRANT PAYMENT
Peterborough,http://opendatacommunities.org/id/unitary-authority/peterborough,Peterborough City Council,More than one Service Area Category,More than one Service Division,Transport,04/03/2015 00:00,719352,2311.43,REVENUE,Peterborough Cars,HIRED TRANSPORT
Peterborough,http://opendatacommunities.org/id/unitary-authority/peterborough,Peterborough City Council,Children's & Education Services - Education,Other Education and Community Budget,Transport,04/03/2015 00:00,719353,719.27,REVENUE,Peterborough Cars,HIRED TRANSPORT
Peterborough,http://opendatacommunities.org/id/unitary-authority/peterborough,Peterborough City Council,Children's & Education Services - Education,Other Education and Community Budget,Transport,04/03/2015 00:00,719354,1121.81,REVENUE,Peterborough Cars,HIRED TRANSPORT
Peterborough,http://opendatacommunities.org/id/unitary-authority/peterborough,Peterborough City Council,Children's & Education Services - Education,Other Education and Community Budget,More than one Expenses Type,04/03/2015 00:00,719355,1605.72,REVENUE,Peterborough Cars,HIRED TRANSPORT
Peterborough,http://opendatacommunities.org/id/unitary-authority/peterborough,Peterborough City Council,Children's & Education Services - Education,Other Education and Community Budget,More than one Expenses Type,04/03/2015 00:00,719356,1209.23,REVENUE,Peterborough Cars,HIRED TRANSPORT
Peterborough,http://opendatacommunities.org/id/unitary-authority/peterborough,Peterborough City Council,More than one Service Area Category,More than one Service Division,Transport,04/03/2015 00:00,719357,2380.7,REVENUE,Peterborough Cars,HIRED TRANSPORT
Peterborough,http://opendatacommunities.org/id/unitary-authority/peterborough,Peterborough City Council,Children's & Education Services - Education,Other Education and Community Budget,Transport,04/03/2015 00:00,719358,815.76,REVENUE,Peterborough Cars,HIRED TRANSPORT
Peterborough,http://opendatacommunities.org/id/unitary-authority/peterborough,Peterborough City Council,Children's & Education Services - Education,Other Education and Community Budget,Transport,04/03/2015 00:00,719380,578.88,REVENUE,Redacted Personal Data,HIRED TRANSPORT
Peterborough,http://opendatacommunities.org/id/unitary-authority/peterborough,Peterborough City Council,Capital,Capital,Capital Pending Update to BS,04/03/2015 00:00,719395,660093.92,CAPITAL,Carillion Building,BUILDING AND SITE WORKS
Peterborough,http://opendatacommunities.org/id/unitary-authority/peterborough,Peterborough City Council,Adult Social Care,Older People,Supplies and Services,04/03/2015 00:00,719400,1320.16,REVENUE,Bondcare,RESIDENTIAL CARE
Peterborough,http://opendatacommunities.org/id/unitary-authority/peterborough,Peterborough City Council,Adult Social Care,Older People,Supplies and Services,04/03/2015 00:00,719402,1320.16,REVENUE,Bondcare,RESIDENTIAL CARE
Peterborough,http://opendatacommunities.org/id/unitary-authority/peterborough,Peterborough City Council,Adult Social Care,Adult Learning Disabilities,Supplies and Services,04/03/2015 00:00,719554,6400,REVENUE,Community Care Solutions Ltd,RESIDENTIAL CARE
Peterborough,http://opendatacommunities.org/id/unitary-authority/peterborough,Peterborough City Council,More than one Service Area Category,More than one Service Division,More than one Expenses Type,04/03/2015 00:00,719566,2782.4,REVENUE,Peterborough City Council,Numerous
Peterborough,http://opendatacommunities.org/id/unitary-authority/peterborough,Peterborough City Council,Adult Social Care,Older People,Supplies and Services,04/03/2015 00:00,719578,1052.32,REVENUE,St Margarets Rest Home,RESIDENTIAL CARE
Peterborough,http://opendatacommunities.org/id/unitary-authority/peterborough,Peterborough City Council,Housing Services,Homelessness,Supplies and Services,04/03/2015 00:00,719579,500,REVENUE,Singh and Sons Property Management Ltd T/A BSK Property Management,FINANCIAL ASSISTANCE
Peterborough,http://opendatacommunities.org/id/unitary-authority/peterborough,Peterborough City Council,More than one Service Area Category,More than one Service Division,Third Party Payments,04/03/2015 00:00,719581,-798931.52,REVENUE,Enterprise Managed Services Limited,THIRD PARTY PAYMENTS - CONTRACT
Peterborough,http://opendatacommunities.org/id/unitary-authority/peterborough,Peterborough City Council,More than one Service Area Category,More than one Service Division,Balance Sheet,04/03/2015 00:00,719583,764673.65,Balance Sheet,Teachers Pensions,PENSIONS
Peterborough,http://opendatacommunities.org/id/unitary-authority/peterborough,Peterborough City Council,Adult Social Care,Older People,Supplies and Services,04/03/2015 00:00,719625,636.9,REVENUE,Care UK Homecare Ltd,HOME CARE
Peterborough,http://opendatacommunities.org/id/unitary-authority/peterborough,Peterborough City Council,Adult Social Care,Older People,Supplies and Services,04/03/2015 00:00,719626,1690.5,REVENUE,Care UK Homecare Ltd,HOME CARE
Peterborough,http://opendatacommunities.org/id/unitary-authority/peterborough,Peterborough City Council,Adult Social Care,Older People,Supplies and Services,04/03/2015 00:00,719627,540.66,REVENUE,Care UK Homecare Ltd,HOME CARE
Peterborough,http://opendatacommunities.org/id/unitary-authority/peterborough,Peterborough City Council,Adult Social Care,Older People,Supplies and Services,04/03/2015 00:00,719628,2032.8,REVENUE,Care UK Homecare Ltd,HOME CARE
Peterborough,http://opendatacommunities.org/id/unitary-authority/peterborough,Peterborough City Council,Adult Social Care,Older People,Supplies and Services,04/03/2015 00:00,719629,803.48,REVENUE,Care UK Homecare Ltd,HOME CARE
Peterborough,http://opendatacommunities.org/id/unitary-authority/peterborough,Peterborough City Council,Adult Social Care,Older People,Supplies and Services,04/03/2015 00:00,719630,2187.52,REVENUE,Care UK Homecare Ltd,HOME CARE
Peterborough,http://opendatacommunities.org/id/unitary-authority/peterborough,Peterborough City Council,Adult Social Care,Older People,Supplies and Services,04/03/2015 00:00,719632,1684.26,REVENUE,Care UK Homecare Ltd,HOME CARE
Peterborough,http://opendatacommunities.org/id/unitary-authority/peterborough,Peterborough City Council,Adult Social Care,Older People,Supplies and Services,04/03/2015 00:00,719633,699.6,REVENUE,Care UK Homecare Ltd,HOME CARE
Peterborough,http://opendatacommunities.org/id/unitary-authority/peterborough,Peterborough City Council,Adult Social Care,Older People,Supplies and Services,04/03/2015 00:00,719634,646.8,REVENUE,Care UK Homecare Ltd,HOME CARE
Peterborough,http://opendatacommunities.org/id/unitary-authority/peterborough,Peterborough City Council,Adult Social Care,Older People,Supplies and Services,04/03/2015 00:00,719635,2794.5,REVENUE,Care UK Homecare Ltd,HOME CARE
Peterborough,http://opendatacommunities.org/id/unitary-authority/peterborough,Peterborough City Council,Adult Social Care,Older People,Supplies and Services,04/03/2015 00:00,719636,587.4,REVENUE,Care UK Homecare Ltd,HOME CARE
Peterborough,http://opendatacommunities.org/id/unitary-authority/peterborough,Peterborough City Council,Adult Social Care,Older People,Supplies and Services,04/03/2015 00:00,719637,726.85,REVENUE,Care UK Homecare Ltd,HOME CARE
Peterborough,http://opendatacommunities.org/id/unitary-authority/peterborough,Peterborough City Council,Adult Social Care,Older People,Supplies and Services,04/03/2015 00:00,719638,825,REVENUE,Care UK Homecare Ltd,HOME CARE
Peterborough,http://opendatacommunities.org/id/unitary-authority/peterborough,Peterborough City Council,Adult Social Care,Older People,Supplies and Services,04/03/2015 00:00,719640,554.4,REVENUE,Care UK Homecare Ltd,HOME CARE
Peterborough,http://opendatacommunities.org/id/unitary-authority/peterborough,Peterborough City Council,Adult Social Care,Older People,Supplies and Services,04/03/2015 00:00,719641,501.88,REVENUE,Care UK Homecare Ltd,HOME CARE
Peterborough,http://opendatacommunities.org/id/unitary-authority/peterborough,Peterborough City Council,Adult Social Care,Older People,Supplies and Services,04/03/2015 00:00,719642,508.6,REVENUE,Care UK Homecare Ltd,HOME CARE
Peterborough,http://opendatacommunities.org/id/unitary-authority/peterborough,Peterborough City Council,Adult Social Care,Adult Learning Disabilities,Supplies and Services,04/03/2015 00:00,719646,1709.5,REVENUE,Cambridgeshirehomecare,HOME CARE
Peterborough,http://opendatacommunities.org/id/unitary-authority/peterborough,Peterborough City Council,Adult Social Care,Older People,Supplies and Services,04/03/2015 00:00,719647,1882.5,REVENUE,Cambridgeshirehomecare,HOME CARE
Peterborough,http://opendatacommunities.org/id/unitary-authority/peterborough,Peterborough City Council,Adult Social Care,Older People,Supplies and Services,04/03/2015 00:00,719649,6702,REVENUE,Cambridgeshirehomecare,HOME CARE
Peterborough,http://opendatacommunities.org/id/unitary-authority/peterborough,Peterborough City Council,Adult Social Care,Older People,Supplies and Services,04/03/2015 00:00,719650,840.75,REVENUE,Cambridgeshirehomecare,HOME CARE
Peterborough,http://opendatacommunities.org/id/unitary-authority/peterborough,Peterborough City Council,Adult Social Care,Older People,Supplies and Services,04/03/2015 00:00,719651,1704,REVENUE,Cambridgeshirehomecare,HOME CARE
Peterborough,http://opendatacommunities.org/id/unitary-authority/peterborough,Peterborough City Council,Adult Social Care,Adult Mental Health,Supplies and Services,04/03/2015 00:00,719652,8092.33,REVENUE,Cambridgeshirehomecare,HOME CARE
Peterborough,http://opendatacommunities.org/id/unitary-authority/peterborough,Peterborough City Council,Adult Social Care,Older People,Supplies and Services,04/03/2015 00:00,719653,1963.37,REVENUE,Cambridgeshirehomecare,HOME CARE
Peterborough,http://opendatacommunities.org/id/unitary-authority/peterborough,Peterborough City Council,Adult Social Care,Adult Learning Disabilities,Supplies and Services,04/03/2015 00:00,719654,1268.72,REVENUE,Cambridgeshirehomecare,HOME CARE
Peterborough,http://opendatacommunities.org/id/unitary-authority/peterborough,Peterborough City Council,Adult Social Care,Older People,Supplies and Services,04/03/2015 00:00,719655,1881.25,REVENUE,Cambridgeshirehomecare,HOME CARE
Peterborough,http://opendatacommunities.org/id/unitary-authority/peterborough,Peterborough City Council,Adult Social Care,Older People,Supplies and Services,04/03/2015 00:00,719656,2253,REVENUE,Cambridgeshirehomecare,HOME CARE
Peterborough,http://opendatacommunities.org/id/unitary-authority/peterborough,Peterborough City Council,Adult Social Care,Older People,Supplies and Services,04/03/2015 00:00,719658,549.75,REVENUE,Cambridgeshirehomecare,HOME CARE
Peterborough,http://opendatacommunities.org/id/unitary-authority/peterborough,Peterborough City Council,Adult Social Care,Older People,Supplies and Services,04/03/2015 00:00,719660,565.75,REVENUE,Cambridgeshirehomecare,HOME CARE
Peterborough,http://opendatacommunities.org/id/unitary-authority/peterborough,Peterborough City Council,Adult Social Care,Older People,Supplies and Services,04/03/2015 00:00,719661,1745,REVENUE,Cambridgeshirehomecare,HOME CARE
Peterborough,http://opendatacommunities.org/id/unitary-authority/peterborough,Peterborough City Council,Adult Social Care,Adult Learning Disabilities,Supplies and Services,04/03/2015 00:00,719662,1830,REVENUE,Cambridgeshirehomecare,HOME CARE
Peterborough,http://opendatacommunities.org/id/unitary-authority/peterborough,Peterborough City Council,Adult Social Care,Older People,Supplies and Services,04/03/2015 00:00,719663,1678,REVENUE,Cambridgeshirehomecare,HOME CARE
Peterborough,http://opendatacommunities.org/id/unitary-authority/peterborough,Peterborough City Council,Adult Social Care,Older People,Supplies and Services,04/03/2015 00:00,719664,570.75,REVENUE,Cambridgeshirehomecare,HOME CARE
Peterborough,http://opendatacommunities.org/id/unitary-authority/peterborough,Peterborough City Council,Adult Social Care,Older People,Supplies and Services,04/03/2015 00:00,719712,848.91,REVENUE,MEARS GROUP,HOME CARE
Peterborough,http://opendatacommunities.org/id/unitary-authority/peterborough,Peterborough City Council,Adult Social Care,Older People,Supplies and Services,04/03/2015 00:00,719714,705.69,REVENUE,MEARS GROUP,HOME CARE
Peterborough,http://opendatacommunities.org/id/unitary-authority/peterborough,Peterborough City Council,Adult Social Care,Older People,Supplies and Services,04/03/2015 00:00,719717,1056.95,REVENUE,MEARS GROUP,HOME CARE
Peterborough,http://opendatacommunities.org/id/unitary-authority/peterborough,Peterborough City Council,Adult Social Care,Older People,Supplies and Services,04/03/2015 00:00,719721,1471.71,REVENUE,MEARS GROUP,HOME CARE
Peterborough,http://opendatacommunities.org/id/unitary-authority/peterborough,Peterborough City Council,Adult Social Care,Older People,Supplies and Services,04/03/2015 00:00,719726,542.26,REVENUE,MEARS GROUP,HOME CARE
Peterborough,http://opendatacommunities.org/id/unitary-authority/peterborough,Peterborough City Council,Adult Social Care,Older People,Supplies and Services,04/03/2015 00:00,719729,529.59,REVENUE,MEARS GROUP,HOME CARE
Peterborough,http://opendatacommunities.org/id/unitary-authority/peterborough,Peterborough City Council,Adult Social Care,Older People,Supplies and Services,04/03/2015 00:00,719732,520.24,REVENUE,MEARS GROUP,HOME CARE
Peterborough,http://opendatacommunities.org/id/unitary-authority/peterborough,Peterborough City Council,Adult Social Care,Older People,Supplies and Services,04/03/2015 00:00,719734,780.51,REVENUE,MEARS GROUP,HOME CARE
Peterborough,http://opendatacommunities.org/id/unitary-authority/peterborough,Peterborough City Council,Adult Social Care,Older People,Supplies and Services,04/03/2015 00:00,719736,592.84,REVENUE,MEARS GROUP,HOME CARE
Peterborough,http://opendatacommunities.org/id/unitary-authority/peterborough,Peterborough City Council,Adult Social Care,Older People,Supplies and Services,04/03/2015 00:00,719739,766.71,REVENUE,MEARS GROUP,HOME CARE
Peterborough,http://opendatacommunities.org/id/unitary-authority/peterborough,Peterborough City Council,Adult Social Care,Older People,Supplies and Services,04/03/2015 00:00,719741,556.58,REVENUE,MEARS GROUP,HOME CARE
Peterborough,http://opendatacommunities.org/id/unitary-authority/peterborough,Peterborough City Council,Adult Social Care,Older People,Supplies and Services,04/03/2015 00:00,719743,579.83,REVENUE,MEARS GROUP,HOME CARE
Peterborough,http://opendatacommunities.org/id/unitary-authority/peterborough,Peterborough City Council,Adult Social Care,Older People,Supplies and Services,04/03/2015 00:00,719745,638.77,REVENUE,MEARS GROUP,HOME CARE
Peterborough,http://opendatacommunities.org/id/unitary-authority/peterborough,Peterborough City Council,Adult Social Care,Older People,Supplies and Services,04/03/2015 00:00,719746,610.87,REVENUE,MEARS GROUP,HOME CARE
Peterborough,http://opendatacommunities.org/id/unitary-authority/peterborough,Peterborough City Council,Adult Social Care,Older People,Supplies and Services,04/03/2015 00:00,719751,1641.06,REVENUE,MEARS GROUP,HOME CARE
Peterborough,http://opendatacommunities.org/id/unitary-authority/peterborough,Peterborough City Council,Adult Social Care,Older People,Supplies and Services,04/03/2015 00:00,719752,594.99,REVENUE,MEARS GROUP,HOME CARE
Peterborough,http://opendatacommunities.org/id/unitary-authority/peterborough,Peterborough City Council,Adult Social Care,Older People,Supplies and Services,04/03/2015 00:00,719755,773.4,REVENUE,MEARS GROUP,HOME CARE
Peterborough,http://opendatacommunities.org/id/unitary-authority/peterborough,Peterborough City Council,Adult Social Care,Older People,Supplies and Services,04/03/2015 00:00,719762,597.36,REVENUE,MEARS GROUP,HOME CARE
Peterborough,http://opendatacommunities.org/id/unitary-authority/peterborough,Peterborough City Council,Adult Social Care,Older People,Supplies and Services,04/03/2015 00:00,719765,563.85,REVENUE,MEARS GROUP,HOME CARE
Peterborough,http://opendatacommunities.org/id/unitary-authority/peterborough,Peterborough City Council,Adult Social Care,Older People,Supplies and Services,04/03/2015 00:00,719766,827.51,REVENUE,MEARS GROUP,HOME CARE
Peterborough,http://opendatacommunities.org/id/unitary-authority/peterborough,Peterborough City Council,Adult Social Care,Older People,Supplies and Services,04/03/2015 00:00,719768,1649.68,REVENUE,MEARS GROUP,HOME CARE
Peterborough,http://opendatacommunities.org/id/unitary-authority/peterborough,Peterborough City Council,Adult Social Care,Older People,Supplies and Services,04/03/2015 00:00,719770,678.05,REVENUE,MEARS GROUP,HOME CARE
Peterborough,http://opendatacommunities.org/id/unitary-authority/peterborough,Peterborough City Council,Adult Social Care,Older People,Supplies and Services,04/03/2015 00:00,719774,532.91,REVENUE,MEARS GROUP,HOME CARE
Peterborough,http://opendatacommunities.org/id/unitary-authority/peterborough,Peterborough City Council,Adult Social Care,Older People,Supplies and Services,04/03/2015 00:00,719777,902.08,REVENUE,MEARS GROUP,HOME CARE
Peterborough,http://opendatacommunities.org/id/unitary-authority/peterborough,Peterborough City Council,Adult Social Care,Older People,Supplies and Services,04/03/2015 00:00,719778,2857.58,REVENUE,MEARS GROUP,HOME CARE
Peterborough,http://opendatacommunities.org/id/unitary-authority/peterborough,Peterborough City Council,Adult Social Care,Older People,Supplies and Services,04/03/2015 00:00,719779,668.29,REVENUE,MEARS GROUP,HOME CARE
Peterborough,http://opendatacommunities.org/id/unitary-authority/peterborough,Peterborough City Council,Adult Social Care,Older People,Supplies and Services,04/03/2015 00:00,719782,1613.31,REVENUE,MEARS GROUP,HOME CARE
Peterborough,http://opendatacommunities.org/id/unitary-authority/peterborough,Peterborough City Council,Adult Social Care,Older People,Supplies and Services,04/03/2015 00:00,719791,615.61,REVENUE,MEARS GROUP,HOME CARE
Peterborough,http://opendatacommunities.org/id/unitary-authority/peterborough,Peterborough City Council,Adult Social Care,Older People,Supplies and Services,04/03/2015 00:00,719792,511.35,REVENUE,MEARS GROUP,HOME CARE
Peterborough,http://opendatacommunities.org/id/unitary-authority/peterborough,Peterborough City Council,Adult Social Care,Older People,Supplies and Services,04/03/2015 00:00,719793,852.96,REVENUE,MEARS GROUP,HOME CARE
Peterborough,http://opendatacommunities.org/id/unitary-authority/peterborough,Peterborough City Council,Adult Social Care,Older People,Supplies and Services,04/03/2015 00:00,719794,574.98,REVENUE,MEARS GROUP,HOME CARE
Peterborough,http://opendatacommunities.org/id/unitary-authority/peterborough,Peterborough City Council,Adult Social Care,Older People,Supplies and Services,04/03/2015 00:00,719795,671.73,REVENUE,MEARS GROUP,HOME CARE
Peterborough,http://opendatacommunities.org/id/unitary-authority/peterborough,Peterborough City Council,Adult Social Care,Older People,Supplies and Services,04/03/2015 00:00,719798,1534.03,REVENUE,MEARS GROUP,HOME CARE
Peterborough,http://opendatacommunities.org/id/unitary-authority/peterborough,Peterborough City Council,Adult Social Care,Older People,Supplies and Services,04/03/2015 00:00,719801,583.03,REVENUE,MEARS GROUP,HOME CARE
Peterborough,http://opendatacommunities.org/id/unitary-authority/peterborough,Peterborough City Council,Adult Social Care,Older People,Supplies and Services,04/03/2015 00:00,719806,621.59,REVENUE,MEARS GROUP,HOME CARE
Peterborough,http://opendatacommunities.org/id/unitary-authority/peterborough,Peterborough City Council,Adult Social Care,Older People,Supplies and Services,04/03/2015 00:00,719814,905.86,REVENUE,MEARS GROUP,HOME CARE
Peterborough,http://opendatacommunities.org/id/unitary-authority/peterborough,Peterborough City Council,Capital,Capital,Capital Pending Update to BS,04/03/2015 00:00,719832,584.1,CAPITAL,Go Management Ltd TA GoUmbrella,EXTERNAL TEMPORARY STAFF
Peterborough,http://opendatacommunities.org/id/unitary-authority/peterborough,Peterborough City Council,Adult Social Care,Adult Mental Health,Supplies and Services,04/03/2015 00:00,719840,6293.17,REVENUE,GSE Residential Ltd,PROFESSIONAL SERVICES
Peterborough,http://opendatacommunities.org/id/unitary-authority/peterborough,Peterborough City Council,Adult Social Care,Social Care Activities,Supplies and Services,04/03/2015 00:00,719843,706.91,REVENUE,Keepmoat Property Services Ltd,EQUIPMENT
Peterborough,http://opendatacommunities.org/id/unitary-authority/peterborough,Peterborough City Council,Adult Social Care,Older People,Supplies and Services,04/03/2015 00:00,719844,1097.12,REVENUE,Runwood Homes Ltd,RESIDENTIAL CARE
Peterborough,http://opendatacommunities.org/id/unitary-authority/peterborough,Peterborough City Council,Adult Social Care,Social Care Activities,More than one Expenses Type,04/03/2015 00:00,719845,3574.9,REVENUE,Fieldwork Admin Team (IMPREST),Numerous
Peterborough,http://opendatacommunities.org/id/unitary-authority/peterborough,Peterborough City Council,Adult Social Care,Social Care Activities,Supplies and Services,04/03/2015 00:00,719847,1106.86,REVENUE,Keepmoat Property Services Ltd,EQUIPMENT
Peterborough,http://opendatacommunities.org/id/unitary-authority/peterborough,Peterborough City Council,Planning Services,Community Development,Employees,06/03/2015 00:00,595114,787.5,REVENUE,University Of Derby,TRAINING
Peterborough,http://opendatacommunities.org/id/unitary-authority/peterborough,Peterborough City Council,Highways and Transport Services,Parking Services,Supplies and Services,06/03/2015 00:00,689250,-2331.45,REVENUE,Patrol,HIRED SERVICES
Peterborough,http://opendatacommunities.org/id/unitary-authority/peterborough,Peterborough City Council,Adult Social Care,Social Care Activities,Supplies and Services,06/03/2015 00:00,696835,1979.13,REVENUE,Action on Hearing Loss,OCCUPATIONAL THERAPY EQUIPMENT
Peterborough,http://opendatacommunities.org/id/unitary-authority/peterborough,Peterborough City Council,Capital,Capital,Capital Pending Update to BS,06/03/2015 00:00,699036,18000,CAPITAL,Enterprise Managed Services Limited,BUILDING AND SITE WORKS
Peterborough,http://opendatacommunities.org/id/unitary-authority/peterborough,Peterborough City Council,Adult Social Care,Older People,Supplies and Services,06/03/2015 00:00,700134,574.71,REVENUE,The Orders of St John Care Trust,RESIDENTIAL CARE
Peterborough,http://opendatacommunities.org/id/unitary-authority/peterborough,Peterborough City Council,Children's & Education Services - Education,Primary,Supplies and Services,06/03/2015 00:00,704106,1117.19,REVENUE,Danwood Group Limited,PHOTOCOPIER
Peterborough,http://opendatacommunities.org/id/unitary-authority/peterborough,Peterborough City Council,Adult Social Care,Commissioning and Service Delivery,Supplies and Services,06/03/2015 00:00,704283,7039.2,REVENUE,Serco Ltd,ICT SERVICES
Peterborough,http://opendatacommunities.org/id/unitary-authority/peterborough,Peterborough City Council,Children's & Education Services - Children's Social Care,Children Looked After,Supplies and Services - Transfer Payments,06/03/2015 00:00,705768,3643.92,REVENUE,Five Rivers,BOARDING - OUT ALLOWANCES
Peterborough,http://opendatacommunities.org/id/unitary-authority/peterborough,Peterborough City Council,Children's & Education Services - Children's Social Care,Children Looked After,Employees,06/03/2015 00:00,705856,556.2,REVENUE,SG Training Ltd,TRAINING
Peterborough,http://opendatacommunities.org/id/unitary-authority/peterborough,Peterborough City Council,Children's & Education Services - Education,Secondary,Employees,06/03/2015 00:00,708603,600,REVENUE,Vision for Education Ltd,SUPPLY TEACHERS
Peterborough,http://opendatacommunities.org/id/unitary-authority/peterborough,Peterborough City Council,Planning Services,Community Development,Supplies and Services,06/03/2015 00:00,710595,1000,REVENUE,Barnack Parish Council,GRANT PAYMENT
Peterborough,http://opendatacommunities.org/id/unitary-authority/peterborough,Peterborough City Council,Highways and Transport Services,Parking Services,Supplies and Services,06/03/2015 00:00,711809,1768.25,REVENUE,Patrol,HIRED SERVICES
Peterborough,http://opendatacommunities.org/id/unitary-authority/peterborough,Peterborough City Council,Children's & Education Services - Children's Social Care,Children Looked After,Supplies and Services - Transfer Payments,06/03/2015 00:00,713444,4034.34,REVENUE,Five Rivers,BOARDING - OUT ALLOWANCES
Peterborough,http://opendatacommunities.org/id/unitary-authority/peterborough,Peterborough City Council,Support Services,Support Services,Supplies and Services,06/03/2015 00:00,714565,1328.55,REVENUE,Collectica Ltd,DEBT COLLECTION
Peterborough,http://opendatacommunities.org/id/unitary-authority/peterborough,Peterborough City Council,Adult Social Care,Social Care Activities,Supplies and Services,06/03/2015 00:00,714596,610.45,REVENUE,CAPITA Translation and Interpreting,INTERPRETATION EXPENSES
Peterborough,http://opendatacommunities.org/id/unitary-authority/peterborough,Peterborough City Council,Children's & Education Services - Children's Social Care,Family Support Services,Supplies and Services,06/03/2015 00:00,714761,715.55,REVENUE,K2 CARE LTD,PURCHASED SOCIAL CARE SERVICES
Peterborough,http://opendatacommunities.org/id/unitary-authority/peterborough,Peterborough City Council,Children's & Education Services - Children's Social Care,Family Support Services,Supplies and Services,06/03/2015 00:00,714765,569.56,REVENUE,K2 CARE LTD,PURCHASED SOCIAL CARE SERVICES
Peterborough,http://opendatacommunities.org/id/unitary-authority/peterborough,Peterborough City Council,Children's & Education Services - Children's Social Care,Family Support Services,Supplies and Services,06/03/2015 00:00,714772,717.35,REVENUE,K2 CARE LTD,PURCHASED SOCIAL CARE SERVICES
Peterborough,http://opendatacommunities.org/id/unitary-authority/peterborough,Peterborough City Council,Children's & Education Services - Children's Social Care,Family Support Services,Supplies and Services,06/03/2015 00:00,714797,558.56,REVENUE,K2 CARE LTD,PURCHASED SOCIAL CARE SERVICES
Peterborough,http://opendatacommunities.org/id/unitary-authority/peterborough,Peterborough City Council,Children's & Education Services - Children's Social Care,Family Support Services,Supplies and Services,06/03/2015 00:00,714800,741.23,REVENUE,K2 CARE LTD,PURCHASED SOCIAL CARE SERVICES
Peterborough,http://opendatacommunities.org/id/unitary-authority/peterborough,Peterborough City Council,Support Services,Support Services,Supplies and Services,06/03/2015 00:00,717462,1266,REVENUE,Care and Health Law,COURSE INSTRUCTORS FEES
Peterborough,http://opendatacommunities.org/id/unitary-authority/peterborough,Peterborough City Council,Support Services,Support Services,Supplies and Services,06/03/2015 00:00,717465,2188.8,REVENUE,Care and Health Law,COURSE INSTRUCTORS FEES
Peterborough,http://opendatacommunities.org/id/unitary-authority/peterborough,Peterborough City Council,Highways and Transport Services,Public Transport,Supplies and Services,06/03/2015 00:00,718984,15384.62,REVENUE,Stagecoach in Peterborough,CONTRACTORS
Peterborough,http://opendatacommunities.org/id/unitary-authority/peterborough,Peterborough City Council,Housing Services,Homelessness,Supplies and Services,06/03/2015 00:00,719412,2980.71,REVENUE,Cross Keys Homes,FINANCIAL ASSISTANCE
Peterborough,http://opendatacommunities.org/id/unitary-authority/peterborough,Peterborough City Council,Cultural and Related Services,Support Services & Management Costs,Supplies and Services,06/03/2015 00:00,719452,3309.16,REVENUE,Vivacity Culture and Leisure,MISCELLANEOUS
Peterborough,http://opendatacommunities.org/id/unitary-authority/peterborough,Peterborough City Council,Planning Services,Environmental Initiatives,Supplies and Services,06/03/2015 00:00,719584,778.91,REVENUE,Cyclescheme Ltd,CYCLING
Peterborough,http://opendatacommunities.org/id/unitary-authority/peterborough,Peterborough City Council,Cultural and Related Services,Support Services & Management Costs,Premises,06/03/2015 00:00,719855,2432.62,REVENUE,Eastern Shires Purchasing Organisation,GAS
Peterborough,http://opendatacommunities.org/id/unitary-authority/peterborough,Peterborough City Council,More than one Service Area Category,More than one Service Division,Premises,06/03/2015 00:00,719857,735.39,REVENUE,British Gas Business,ELECTRICITY
Peterborough,http://opendatacommunities.org/id/unitary-authority/peterborough,Peterborough City Council,Adult Social Care,Assistive Equipment and Technology,Supplies and Services,06/03/2015 00:00,719869,1356.26,REVENUE,Keepmoat Property Services Ltd,HEALTH & SAFETY
Peterborough,http://opendatacommunities.org/id/unitary-authority/peterborough,Peterborough City Council,Support Services,Support Services,Premises,06/03/2015 00:00,719870,1539.9,REVENUE,British Gas Business,GAS
Peterborough,http://opendatacommunities.org/id/unitary-authority/peterborough,Peterborough City Council,More than one Service Area Category,More than one Service Division,Premises,06/03/2015 00:00,719871,1758.3,REVENUE,British Gas Business,ELECTRICITY
Peterborough,http://opendatacommunities.org/id/unitary-authority/peterborough,Peterborough City Council,More than one Service Area Category,More than one Service Division,Premises,06/03/2015 00:00,719875,901.78,REVENUE,British Gas Business,ELECTRICITY
Peterborough,http://opendatacommunities.org/id/unitary-authority/peterborough,Peterborough City Council,Adult Social Care,Assistive Equipment and Technology,Supplies and Services,06/03/2015 00:00,719877,881.57,REVENUE,Keepmoat Property Services Ltd,HEALTH & SAFETY
Peterborough,http://opendatacommunities.org/id/unitary-authority/peterborough,Peterborough City Council,Adult Social Care,Assistive Equipment and Technology,Supplies and Services,06/03/2015 00:00,719878,535.1,REVENUE,Keepmoat Property Services Ltd,HEALTH & SAFETY
Peterborough,http://opendatacommunities.org/id/unitary-authority/peterborough,Peterborough City Council,More than one Service Area Category,More than one Service Division,Premises,06/03/2015 00:00,719879,3831.49,REVENUE,British Gas Business,ELECTRICITY
Peterborough,http://opendatacommunities.org/id/unitary-authority/peterborough,Peterborough City Council,Adult Social Care,Assistive Equipment and Technology,Supplies and Services,06/03/2015 00:00,719880,709.81,REVENUE,Keepmoat Property Services Ltd,HEALTH & SAFETY
Peterborough,http://opendatacommunities.org/id/unitary-authority/peterborough,Peterborough City Council,Adult Social Care,Assistive Equipment and Technology,Supplies and Services,06/03/2015 00:00,719890,622.01,REVENUE,Keepmoat Property Services Ltd,HEALTH & SAFETY
Peterborough,http://opendatacommunities.org/id/unitary-authority/peterborough,Peterborough City Council,Adult Social Care,Assistive Equipment and Technology,Supplies and Services,06/03/2015 00:00,719891,1116.23,REVENUE,Keepmoat Property Services Ltd,HEALTH & SAFETY
Peterborough,http://opendatacommunities.org/id/unitary-authority/peterborough,Peterborough City Council,Children's & Education Services - Education,Other Education and Community Budget,Supplies and Services,06/03/2015 00:00,719948,4305.28,REVENUE,Capita Absence Management Services Ltd,ABSENCE INSURANCE
Peterborough,http://opendatacommunities.org/id/unitary-authority/peterborough,Peterborough City Council,Capital,Capital,Capital Pending Update to BS,06/03/2015 00:00,719960,10000,CAPITAL,East Coast Main Line,GRANT PAYMENT
Peterborough,http://opendatacommunities.org/id/unitary-authority/peterborough,Peterborough City Council,Children's & Education Services - Children's Social Care,Other Children's & Families Services,Employees,06/03/2015 00:00,720016,2619.6,REVENUE,Sanctuary Personnel Ltd,EXTERNAL TEMPORARY STAFF
Peterborough,http://opendatacommunities.org/id/unitary-authority/peterborough,Peterborough City Council,Children's & Education Services - Education,Primary,Supplies and Services,06/03/2015 00:00,720100,1470,REVENUE,Newark Play Association Ltd,EDUCATION EXPENSES
Peterborough,http://opendatacommunities.org/id/unitary-authority/peterborough,Peterborough City Council,Highways and Transport Services,Parking Services,Supplies and Services,06/03/2015 00:00,720116,1768.25,REVENUE,Patrol,HIRED SERVICES
Peterborough,http://opendatacommunities.org/id/unitary-authority/peterborough,Peterborough City Council,Capital,Capital,Capital Pending Update to BS,06/03/2015 00:00,720138,6330.61,CAPITAL,T Clarke East Limited,BUILDING AND SITE WORKS
Peterborough,http://opendatacommunities.org/id/unitary-authority/peterborough,Peterborough City Council,Deficit/(Surplus) on Trading Undertakings,Trading Account Surpluses & Deficits,Transport,06/03/2015 00:00,720141,522.72,REVENUE,Burnt Tree Group,HIRED TRANSPORT
Peterborough,http://opendatacommunities.org/id/unitary-authority/peterborough,Peterborough City Council,Support Services,Support Services,Supplies and Services,06/03/2015 00:00,720166,11775.12,REVENUE,Iken Business Ltd,SUBSCRIPTIONS
Peterborough,http://opendatacommunities.org/id/unitary-authority/peterborough,Peterborough City Council,Environmental and Regulatory Services,Regulatory services,Supplies and Services,06/03/2015 00:00,720176,1612.09,REVENUE,VIP-System Ltd,EQUIPMENT
Peterborough,http://opendatacommunities.org/id/unitary-authority/peterborough,Peterborough City Council,Environmental and Regulatory Services,Regulatory services,Supplies and Services,06/03/2015 00:00,720181,1163.89,REVENUE,VIP-System Ltd,EQUIPMENT
Peterborough,http://opendatacommunities.org/id/unitary-authority/peterborough,Peterborough City Council,More than one Service Area Category,More than one Service Division,Premises,06/03/2015 00:00,720185,2618.05,REVENUE,British Gas Business,ELECTRICITY
Peterborough,http://opendatacommunities.org/id/unitary-authority/peterborough,Peterborough City Council,More than one Service Area Category,More than one Service Division,Premises,06/03/2015 00:00,720189,1827.72,REVENUE,British Gas Business,ELECTRICITY
Peterborough,http://opendatacommunities.org/id/unitary-authority/peterborough,Peterborough City Council,Adult Social Care,Split,Third Party Payments,06/03/2015 00:00,720190,60548.12,REVENUE,HEREWARD CARE SERVICES LIMITED,THIRD PARTY PAYMENTS - CONTRACT
Peterborough,http://opendatacommunities.org/id/unitary-authority/peterborough,Peterborough City Council,Environmental and Regulatory Services,Community Safety (CCTV),Supplies and Services,06/03/2015 00:00,720212,8076.9,REVENUE,Quadrant Security Group Ltd,CCTV
Peterborough,http://opendatacommunities.org/id/unitary-authority/peterborough,Peterborough City Council,Support Services,Support Services,Premises,06/03/2015 00:00,720220,1395,REVENUE,Roythornes,PAY CLAIMS
Peterborough,http://opendatacommunities.org/id/unitary-authority/peterborough,Peterborough City Council,Adult Social Care,Older People,Supplies and Services,06/03/2015 00:00,720273,678.7,REVENUE,Cozy Care,HOME CARE
Peterborough,http://opendatacommunities.org/id/unitary-authority/peterborough,Peterborough City Council,Adult Social Care,Older People,Supplies and Services,06/03/2015 00:00,720275,567.52,REVENUE,COMFORCARE SENIOR SERVICES,HOME CARE
Peterborough,http://opendatacommunities.org/id/unitary-authority/peterborough,Peterborough City Council,Adult Social Care,Older People,Supplies and Services,06/03/2015 00:00,720276,938.5,REVENUE,Cambridgeshirehomecare,HOME CARE
Peterborough,http://opendatacommunities.org/id/unitary-authority/peterborough,Peterborough City Council,Adult Social Care,Older People,Supplies and Services,06/03/2015 00:00,720279,1854.3,REVENUE,Allied Healthcare (UK) Ltd,HOME CARE
Peterborough,http://opendatacommunities.org/id/unitary-authority/peterborough,Peterborough City Council,Adult Social Care,Adult Mental Health,Supplies and Services,06/03/2015 00:00,720280,766.8,REVENUE,Allied Healthcare (UK) Ltd,HOME CARE
Peterborough,http://opendatacommunities.org/id/unitary-authority/peterborough,Peterborough City Council,Adult Social Care,Adult Mental Health,Supplies and Services,06/03/2015 00:00,720281,994.5,REVENUE,Allied Healthcare (UK) Ltd,HOME CARE
Peterborough,http://opendatacommunities.org/id/unitary-authority/peterborough,Peterborough City Council,Adult Social Care,Older People,Supplies and Services,06/03/2015 00:00,720284,545.4,REVENUE,Allied Healthcare (UK) Ltd,HOME CARE
Peterborough,http://opendatacommunities.org/id/unitary-authority/peterborough,Peterborough City Council,Adult Social Care,Older People,Supplies and Services,06/03/2015 00:00,720286,1500.3,REVENUE,Allied Healthcare (UK) Ltd,HOME CARE
Peterborough,http://opendatacommunities.org/id/unitary-authority/peterborough,Peterborough City Council,Adult Social Care,Older People,Supplies and Services,06/03/2015 00:00,720287,925.5,REVENUE,Allied Healthcare (UK) Ltd,HOME CARE
Peterborough,http://opendatacommunities.org/id/unitary-authority/peterborough,Peterborough City Council,Adult Social Care,Older People,Supplies and Services,06/03/2015 00:00,720292,608.4,REVENUE,Allied Healthcare (UK) Ltd,HOME CARE
Peterborough,http://opendatacommunities.org/id/unitary-authority/peterborough,Peterborough City Council,Adult Social Care,Adult Learning Disabilities,Supplies and Services,06/03/2015 00:00,720294,676.5,REVENUE,Allied Healthcare (UK) Ltd,HOME CARE
Peterborough,http://opendatacommunities.org/id/unitary-authority/peterborough,Peterborough City Council,Adult Social Care,Older People,Supplies and Services,06/03/2015 00:00,720300,1495.8,REVENUE,Allied Healthcare (UK) Ltd,HOME CARE
Peterborough,http://opendatacommunities.org/id/unitary-authority/peterborough,Peterborough City Council,Adult Social Care,Older People,Supplies and Services,06/03/2015 00:00,720302,2036.1,REVENUE,Allied Healthcare (UK) Ltd,HOME CARE
Peterborough,http://opendatacommunities.org/id/unitary-authority/peterborough,Peterborough City Council,Adult Social Care,Older People,Supplies and Services,06/03/2015 00:00,720304,1628.64,REVENUE,Allied Healthcare (UK) Ltd,HOME CARE
Peterborough,http://opendatacommunities.org/id/unitary-authority/peterborough,Peterborough City Council,Adult Social Care,Older People,Supplies and Services,06/03/2015 00:00,720309,925.5,REVENUE,Allied Healthcare (UK) Ltd,HOME CARE
Peterborough,http://opendatacommunities.org/id/unitary-authority/peterborough,Peterborough City Council,Adult Social Care,Older People,Supplies and Services,06/03/2015 00:00,720310,644.55,REVENUE,Allied Healthcare (UK) Ltd,HOME CARE
Peterborough,http://opendatacommunities.org/id/unitary-authority/peterborough,Peterborough City Council,Adult Social Care,Older People,Supplies and Services,06/03/2015 00:00,720312,759,REVENUE,Allied Healthcare (UK) Ltd,HOME CARE
Peterborough,http://opendatacommunities.org/id/unitary-authority/peterborough,Peterborough City Council,Adult Social Care,Older People,Supplies and Services,06/03/2015 00:00,720313,1419,REVENUE,Allied Healthcare (UK) Ltd,HOME CARE
Peterborough,http://opendatacommunities.org/id/unitary-authority/peterborough,Peterborough City Council,Adult Social Care,Older People,Supplies and Services,06/03/2015 00:00,720316,832.95,REVENUE,Allied Healthcare (UK) Ltd,HOME CARE
Peterborough,http://opendatacommunities.org/id/unitary-authority/peterborough,Peterborough City Council,Adult Social Care,Older People,Supplies and Services,06/03/2015 00:00,720318,647.85,REVENUE,Allied Healthcare (UK) Ltd,HOME CARE
Peterborough,http://opendatacommunities.org/id/unitary-authority/peterborough,Peterborough City Council,Adult Social Care,Older People,Supplies and Services,06/03/2015 00:00,720319,832.95,REVENUE,Allied Healthcare (UK) Ltd,HOME CARE
Peterborough,http://opendatacommunities.org/id/unitary-authority/peterborough,Peterborough City Council,Adult Social Care,Older People,Supplies and Services,06/03/2015 00:00,720427,837.71,REVENUE,MEARS GROUP,HOME CARE
Peterborough,http://opendatacommunities.org/id/unitary-authority/peterborough,Peterborough City Council,Children's & Education Services - Education,Services to Young People,Employees,06/03/2015 00:00,720447,98710.13,REVENUE,Teachers Pensions,PENSIONS
Peterborough,http://opendatacommunities.org/id/unitary-authority/peterborough,Peterborough City Council,More than one Service Area Category,More than one Service Division,Premises,06/03/2015 00:00,720462,5957.26,REVENUE,British Gas Business,ELECTRICITY
Peterborough,http://opendatacommunities.org/id/unitary-authority/peterborough,Peterborough City Council,More than one Service Area Category,More than one Service Division,Premises,06/03/2015 00:00,720468,1872.93,REVENUE,British Gas Business,ELECTRICITY
Peterborough,http://opendatacommunities.org/id/unitary-authority/peterborough,Peterborough City Council,Housing Services,Homelessness,Supplies and Services,06/03/2015 00:00,720490,570,REVENUE,Redacted Personal Data,FINANCIAL ASSISTANCE
Peterborough,http://opendatacommunities.org/id/unitary-authority/peterborough,Peterborough City Council,Children's & Education Services - Education,Other Education and Community Budget,Transport,06/03/2015 00:00,720524,811.2,REVENUE,Redacted Personal Data,HIRED TRANSPORT
Peterborough,http://opendatacommunities.org/id/unitary-authority/peterborough,Peterborough City Council,Housing Services,Homelessness,Supplies and Services,06/03/2015 00:00,720529,500,REVENUE,Dunham Property Agents,FINANCIAL ASSISTANCE
Peterborough,http://opendatacommunities.org/id/unitary-authority/peterborough,Peterborough City Council,Housing Services,Homelessness,Supplies and Services,06/03/2015 00:00,720532,700,REVENUE,Acute Property Solutions,FINANCIAL ASSISTANCE
Peterborough,http://opendatacommunities.org/id/unitary-authority/peterborough,Peterborough City Council,Housing Services,Homelessness,Supplies and Services,06/03/2015 00:00,720533,1120,REVENUE,Dunham Property Agents,FINANCIAL ASSISTANCE
Peterborough,http://opendatacommunities.org/id/unitary-authority/peterborough,Peterborough City Council,Housing Services,Homelessness,Supplies and Services,06/03/2015 00:00,720534,595,REVENUE,Dunham Property Agents,FINANCIAL ASSISTANCE
Peterborough,http://opendatacommunities.org/id/unitary-authority/peterborough,Peterborough City Council,Children's & Education Services - Children's Social Care,Children Looked After,Transport,06/03/2015 00:00,720581,1243.2,REVENUE,A2B Euro Cars,HIRED TRANSPORT
Peterborough,http://opendatacommunities.org/id/unitary-authority/peterborough,Peterborough City Council,Children's & Education Services - Children's Social Care,Children Looked After,Transport,06/03/2015 00:00,720584,954.38,REVENUE,Peterborough Cars,HIRED TRANSPORT
Peterborough,http://opendatacommunities.org/id/unitary-authority/peterborough,Peterborough City Council,Children's & Education Services - Children's Social Care,Children Looked After,Transport,06/03/2015 00:00,720585,980.17,REVENUE,Peterborough Cars,HIRED TRANSPORT
Peterborough,http://opendatacommunities.org/id/unitary-authority/peterborough,Peterborough City Council,More than one Service Area Category,More than one Service Division,Transport,06/03/2015 00:00,720586,1623.38,REVENUE,Peterborough Cars,HIRED TRANSPORT
Peterborough,http://opendatacommunities.org/id/unitary-authority/peterborough,Peterborough City Council,More than one Service Area Category,More than one Service Division,Transport,06/03/2015 00:00,720587,1366.02,REVENUE,Peterborough Cars,HIRED TRANSPORT
Peterborough,http://opendatacommunities.org/id/unitary-authority/peterborough,Peterborough City Council,Children's & Education Services - Children's Social Care,Children Looked After,Transport,06/03/2015 00:00,720589,501.3,REVENUE,Redacted Personal Data,HIRED TRANSPORT
Peterborough,http://opendatacommunities.org/id/unitary-authority/peterborough,Peterborough City Council,More than one Service Area Category,More than one Service Division,Transport,06/03/2015 00:00,720592,1277.55,REVENUE,Redacted Personal Data,HIRED TRANSPORT
Peterborough,http://opendatacommunities.org/id/unitary-authority/peterborough,Peterborough City Council,Children's & Education Services - Children's Social Care,Children Looked After,Transport,06/03/2015 00:00,720593,791,REVENUE,Redacted Personal Data,HIRED TRANSPORT
Peterborough,http://opendatacommunities.org/id/unitary-authority/peterborough,Peterborough City Council,Children's & Education Services - Children's Social Care,Children Looked After,Transport,06/03/2015 00:00,720594,1192.05,REVENUE,Redacted Personal Data,HIRED TRANSPORT
Peterborough,http://opendatacommunities.org/id/unitary-authority/peterborough,Peterborough City Council,Children's & Education Services - Children's Social Care,Children Looked After,Transport,06/03/2015 00:00,720596,2513.25,REVENUE,Redacted Personal Data,HIRED TRANSPORT
Peterborough,http://opendatacommunities.org/id/unitary-authority/peterborough,Peterborough City Council,More than one Service Area Category,More than one Service Division,More than one Expenses Type,06/03/2015 00:00,720597,1846.75,REVENUE,Redacted Personal Data,HIRED TRANSPORT
Peterborough,http://opendatacommunities.org/id/unitary-authority/peterborough,Peterborough City Council,Children's & Education Services - Children's Social Care,Children Looked After,Transport,06/03/2015 00:00,720602,819.9,REVENUE,Redacted Personal Data,HIRED TRANSPORT
Peterborough,http://opendatacommunities.org/id/unitary-authority/peterborough,Peterborough City Council,Children's & Education Services - Children's Social Care,Children Looked After,Transport,06/03/2015 00:00,720606,1008.45,REVENUE,Redacted Personal Data,HIRED TRANSPORT
Peterborough,http://opendatacommunities.org/id/unitary-authority/peterborough,Peterborough City Council,More than one Service Area Category,More than one Service Division,Employees,09/03/2015 00:00,595113,837.9,REVENUE,University Of Derby,TRAINING
Peterborough,http://opendatacommunities.org/id/unitary-authority/peterborough,Peterborough City Council,Adult Social Care,Older People,Supplies and Services,09/03/2015 00:00,674230,2133.46,REVENUE,MEARS GROUP,HOME CARE
Peterborough,http://opendatacommunities.org/id/unitary-authority/peterborough,Peterborough City Council,Adult Social Care,Older People,Supplies and Services,09/03/2015 00:00,674232,2158.55,REVENUE,MEARS GROUP,HOME CARE
Peterborough,http://opendatacommunities.org/id/unitary-authority/peterborough,Peterborough City Council,Adult Social Care,Older People,Supplies and Services,09/03/2015 00:00,679086,705.41,REVENUE,MEARS GROUP,HOME CARE
Peterborough,http://opendatacommunities.org/id/unitary-authority/peterborough,Peterborough City Council,Adult Social Care,Older People,Supplies and Services,09/03/2015 00:00,679087,760.34,REVENUE,MEARS GROUP,HOME CARE
Peterborough,http://opendatacommunities.org/id/unitary-authority/peterborough,Peterborough City Council,Children's & Education Services - Education,Secondary,Employees,09/03/2015 00:00,709554,876,REVENUE,Vision for Education Ltd,SUPPLY TEACHERS
Peterborough,http://opendatacommunities.org/id/unitary-authority/peterborough,Peterborough City Council,Children's & Education Services - Children's Social Care,Other Children's & Families Services,Employees,09/03/2015 00:00,712555,1656.24,REVENUE,Medicare First,EXTERNAL TEMPORARY STAFF
Peterborough,http://opendatacommunities.org/id/unitary-authority/peterborough,Peterborough City Council,Children's & Education Services - Education,Services to Young People,Supplies and Services,09/03/2015 00:00,713538,2687.49,REVENUE,KIDS,SPECIAL PROJECTS
Peterborough,http://opendatacommunities.org/id/unitary-authority/peterborough,Peterborough City Council,Support Services,Support Services,Premises,09/03/2015 00:00,713555,1825.18,REVENUE,Beebys Ltd,CLEANING
Peterborough,http://opendatacommunities.org/id/unitary-authority/peterborough,Peterborough City Council,Support Services,Support Services,Supplies and Services,09/03/2015 00:00,714391,527.81,REVENUE,Serco Ltd,COMMUNICATIONS EQUIPMENT
Peterborough,http://opendatacommunities.org/id/unitary-authority/peterborough,Peterborough City Council,Capital,Capital,Capital Pending Update to BS,09/03/2015 00:00,714396,19306.87,CAPITAL,AECOM Ltd,CONSULTANTS FEES
Peterborough,http://opendatacommunities.org/id/unitary-authority/peterborough,Peterborough City Council,Highways and Transport Services,Management and support services,Supplies and Services,09/03/2015 00:00,714397,12082.19,REVENUE,Serco Ltd,COMPUTER SOFTWARE
Peterborough,http://opendatacommunities.org/id/unitary-authority/peterborough,Peterborough City Council,Capital,Capital,Capital Pending Update to BS,09/03/2015 00:00,714401,5760,CAPITAL,Serco Ltd,COMPUTER HARDWARE
Peterborough,http://opendatacommunities.org/id/unitary-authority/peterborough,Peterborough City Council,Children's & Education Services - Children's Social Care,Other Children's & Families Services,Employees,09/03/2015 00:00,714405,1465.2,REVENUE,SWP Consulting,EXTERNAL TEMPORARY STAFF
Peterborough,http://opendatacommunities.org/id/unitary-authority/peterborough,Peterborough City Council,Capital,Capital,Capital Pending Update to BS,09/03/2015 00:00,714407,5400,CAPITAL,The PCC for Bedfordshire (Police & Crime Commissioner),PROFESSIONAL/LEGAL FEES
Peterborough,http://opendatacommunities.org/id/unitary-authority/peterborough,Peterborough City Council,Capital,Capital,Capital Pending Update to BS,09/03/2015 00:00,714409,5114.4,CAPITAL,UK Power Networks (operations) Ltd,INFRASTRUCTURE
Peterborough,http://opendatacommunities.org/id/unitary-authority/peterborough,Peterborough City Council,Capital,Capital,Capital Pending Update to BS,09/03/2015 00:00,714411,1636.8,CAPITAL,UK Power Networks (operations) Ltd,INFRASTRUCTURE
Peterborough,http://opendatacommunities.org/id/unitary-authority/peterborough,Peterborough City Council,Children's & Education Services - Children's Social Care,Children Looked After,Supplies and Services - Transfer Payments,09/03/2015 00:00,714412,2067.06,REVENUE,PC Homes,BOARDING - OUT ALLOWANCES
Peterborough,http://opendatacommunities.org/id/unitary-authority/peterborough,Peterborough City Council,Environmental and Regulatory Services,Waste Collection,Transport,09/03/2015 00:00,714413,3530.94,REVENUE,JCB Finance Ltd,LEASING CHARGES
Peterborough,http://opendatacommunities.org/id/unitary-authority/peterborough,Peterborough City Council,Cultural and Related Services,Recreation & Sport,Supplies and Services,09/03/2015 00:00,714424,720,REVENUE,RMIS Ltd,ADMINISTRATION EXPENSES
Peterborough,http://opendatacommunities.org/id/unitary-authority/peterborough,Peterborough City Council,Housing Services,Private Sector Housing Renewal,Supplies and Services,09/03/2015 00:00,714461,2271,REVENUE,Nightingale Services,CONTRACTORS
Peterborough,http://opendatacommunities.org/id/unitary-authority/peterborough,Peterborough City Council,Capital,Capital,Capital Pending Update to BS,09/03/2015 00:00,714470,18038.34,CAPITAL,AECOM Ltd,CONSULTANTS FEES
Peterborough,http://opendatacommunities.org/id/unitary-authority/peterborough,Peterborough City Council,Support Services,Support Services,Supplies and Services,09/03/2015 00:00,714472,4009.82,REVENUE,Pentana Ltd,ICT MAINTENANCE
Peterborough,http://opendatacommunities.org/id/unitary-authority/peterborough,Peterborough City Council,Children's & Education Services - Education,Other Education and Community Budget,Supplies and Services,09/03/2015 00:00,714727,6366,REVENUE,Normans,EQUIPMENT
Peterborough,http://opendatacommunities.org/id/unitary-authority/peterborough,Peterborough City Council,Children's & Education Services - Education,Other Education and Community Budget,Supplies and Services,09/03/2015 00:00,714784,2326,REVENUE,Witham Hall Preparatory School,HIRED SERVICES
Peterborough,http://opendatacommunities.org/id/unitary-authority/peterborough,Peterborough City Council,Support Services,Support Services,Employees,09/03/2015 00:00,714792,2544,REVENUE,CIPFA Business Ltd,EXTERNAL TEMPORARY STAFF
Peterborough,http://opendatacommunities.org/id/unitary-authority/peterborough,Peterborough City Council,More than one Service Area Category,More than one Service Division,Supplies and Services,09/03/2015 00:00,714806,525,REVENUE,Roxhill Developments Ltd,LEGAL COSTS
Peterborough,http://opendatacommunities.org/id/unitary-authority/peterborough,Peterborough City Council,Support Services,Support Services,Supplies and Services,09/03/2015 00:00,714845,513.13,REVENUE,Drinkmaster Ltd,HOSPITALITY
Peterborough,http://opendatacommunities.org/id/unitary-authority/peterborough,Peterborough City Council,Environmental and Regulatory Services,"Cemetery, Crematorium & Mortuary Services",Premises,09/03/2015 00:00,714849,1955.95,REVENUE,Facultatieve Technologies Ltd,CREMATORS
Peterborough,http://opendatacommunities.org/id/unitary-authority/peterborough,Peterborough City Council,Capital,Capital,Capital Pending Update to BS,09/03/2015 00:00,715211,3658.14,CAPITAL,VIX ACIS Ltd,INFRASTRUCTURE
Peterborough,http://opendatacommunities.org/id/unitary-authority/peterborough,Peterborough City Council,Cultural and Related Services,Open Spaces,Premises,09/03/2015 00:00,715270,2120.4,REVENUE,JAT Ingledew,MAINTENANCE
Peterborough,http://opendatacommunities.org/id/unitary-authority/peterborough,Peterborough City Council,Children's & Education Services - Children's Social Care,Other Children's & Families Services,Employees,09/03/2015 00:00,715291,1680,REVENUE,Medicare First,EXTERNAL TEMPORARY STAFF
Peterborough,http://opendatacommunities.org/id/unitary-authority/peterborough,Peterborough City Council,Capital,Capital,Capital Pending Update to BS,09/03/2015 00:00,715293,31709.75,CAPITAL,VIX ACIS Ltd,INFRASTRUCTURE
Peterborough,http://opendatacommunities.org/id/unitary-authority/peterborough,Peterborough City Council,More than one Service Area Category,More than one Service Division,Supplies and Services,09/03/2015 00:00,715536,738.61,REVENUE,Whistl London Ltd,POSTAGE
Peterborough,http://opendatacommunities.org/id/unitary-authority/peterborough,Peterborough City Council,More than one Service Area Category,More than one Service Division,Supplies and Services,09/03/2015 00:00,715537,2708.1,REVENUE,Whistl London Ltd,POSTAGE
Peterborough,http://opendatacommunities.org/id/unitary-authority/peterborough,Peterborough City Council,Children's & Education Services - Education,Secondary,Employees,09/03/2015 00:00,715552,948.03,REVENUE,IIC by Education (P'boro) Ltd,PENSIONS
Peterborough,http://opendatacommunities.org/id/unitary-authority/peterborough,Peterborough City Council,Children's & Education Services - Children's Social Care,Children Looked After,Employees,09/03/2015 00:00,716135,550.15,REVENUE,Blue Arrow Ltd,EXTERNAL TEMPORARY STAFF
Peterborough,http://opendatacommunities.org/id/unitary-authority/peterborough,Peterborough City Council,Capital,Capital,Capital Pending Update to BS,09/03/2015 00:00,716164,16476.16,CAPITAL,UK Power Networks (operations) Ltd,INFRASTRUCTURE
Peterborough,http://opendatacommunities.org/id/unitary-authority/peterborough,Peterborough City Council,Children's & Education Services - Children's Social Care,Other Children's & Families Services,Employees,09/03/2015 00:00,716174,696,REVENUE,Medicare First,EXTERNAL TEMPORARY STAFF
Peterborough,http://opendatacommunities.org/id/unitary-authority/peterborough,Peterborough City Council,Children's & Education Services - Children's Social Care,Other Children's & Families Services,Employees,09/03/2015 00:00,716187,1678.76,REVENUE,Medicare First,EXTERNAL TEMPORARY STAFF
Peterborough,http://opendatacommunities.org/id/unitary-authority/peterborough,Peterborough City Council,Children's & Education Services - Children's Social Care,Other Children's & Families Services,Employees,09/03/2015 00:00,716189,1657.32,REVENUE,Medicare First,EXTERNAL TEMPORARY STAFF
Peterborough,http://opendatacommunities.org/id/unitary-authority/peterborough,Peterborough City Council,Children's & Education Services - Children's Social Care,Other Children's & Families Services,Supplies and Services,09/03/2015 00:00,716313,718.52,REVENUE,Redacted Personal Data,ADOPTION
Peterborough,http://opendatacommunities.org/id/unitary-authority/peterborough,Peterborough City Council,Housing Services,Homelessness,Supplies and Services,09/03/2015 00:00,716353,571.2,REVENUE,DA Rosalia Hotel,HOMELESSNESS BED AND BREAKFAST
Peterborough,http://opendatacommunities.org/id/unitary-authority/peterborough,Peterborough City Council,Children's & Education Services - Children's Social Care,Other Children's & Families Services,Employees,09/03/2015 00:00,716381,1687.2,REVENUE,NonStop Recruitment Ltd,EXTERNAL TEMPORARY STAFF
Peterborough,http://opendatacommunities.org/id/unitary-authority/peterborough,Peterborough City Council,Children's & Education Services - Children's Social Care,Other Children's & Families Services,Employees,09/03/2015 00:00,716457,2131.2,REVENUE,Medicare First,EXTERNAL TEMPORARY STAFF
Peterborough,http://opendatacommunities.org/id/unitary-authority/peterborough,Peterborough City Council,Support Services,Support Services,Employees,09/03/2015 00:00,716630,1931.4,REVENUE,Sellick Partnership Group Limited,EXTERNAL TEMPORARY STAFF
Peterborough,http://opendatacommunities.org/id/unitary-authority/peterborough,Peterborough City Council,Support Services,Support Services,Employees,09/03/2015 00:00,716743,1317.6,REVENUE,Sellick Partnership Group Limited,EXTERNAL TEMPORARY STAFF
Peterborough,http://opendatacommunities.org/id/unitary-authority/peterborough,Peterborough City Council,Adult Social Care,Older People,Supplies and Services,09/03/2015 00:00,716798,1187.36,REVENUE,Avery Homes (Nelson) Ltd,RESIDENTIAL CARE
Peterborough,http://opendatacommunities.org/id/unitary-authority/peterborough,Peterborough City Council,Adult Social Care,Older People,Supplies and Services,09/03/2015 00:00,716801,1155.84,REVENUE,Avery Homes (Nelson) Ltd,RESIDENTIAL CARE
Peterborough,http://opendatacommunities.org/id/unitary-authority/peterborough,Peterborough City Council,Support Services,Support Services,Supplies and Services,09/03/2015 00:00,716897,1200,REVENUE,"Gunstone, Mr Giles",LEGAL COSTS
Peterborough,http://opendatacommunities.org/id/unitary-authority/peterborough,Peterborough City Council,Adult Social Care,Older People,Supplies and Services,09/03/2015 00:00,717350,5972,REVENUE,BRAIN INJURY REHABILITATION TRUST,RESIDENTIAL CARE
Peterborough,http://opendatacommunities.org/id/unitary-authority/peterborough,Peterborough City Council,Children's & Education Services - Children's Social Care,Family Support Services,Supplies and Services,09/03/2015 00:00,717569,10620,REVENUE,P F S Builders & Contractors,OCCUPATIONAL THERAPY EQUIPMENT
Peterborough,http://opendatacommunities.org/id/unitary-authority/peterborough,Peterborough City Council,Adult Social Care,Older People,Supplies and Services,09/03/2015 00:00,718218,849.36,REVENUE,ADR CARE HOMES LTD,RESIDENTIAL CARE
Peterborough,http://opendatacommunities.org/id/unitary-authority/peterborough,Peterborough City Council,Capital,Capital,Capital Pending Update to BS,09/03/2015 00:00,718698,142358.94,CAPITAL,Kier Eastern,BUILDING AND SITE WORKS
Peterborough,http://opendatacommunities.org/id/unitary-authority/peterborough,Peterborough City Council,Adult Social Care,Adult Learning Disabilities,Supplies and Services,09/03/2015 00:00,718780,2360,REVENUE,Thera East Anglia,DAY CARE
Peterborough,http://opendatacommunities.org/id/unitary-authority/peterborough,Peterborough City Council,Adult Social Care,Adult Learning Disabilities,Supplies and Services,09/03/2015 00:00,718781,2204.8,REVENUE,Thera East Anglia,DAY CARE
Peterborough,http://opendatacommunities.org/id/unitary-authority/peterborough,Peterborough City Council,Adult Social Care,Adult Learning Disabilities,Supplies and Services,09/03/2015 00:00,718786,616.4,REVENUE,Thera East Anglia,DAY CARE
Peterborough,http://opendatacommunities.org/id/unitary-authority/peterborough,Peterborough City Council,Adult Social Care,Adult Learning Disabilities,Supplies and Services,09/03/2015 00:00,718790,645.76,REVENUE,Thera East Anglia,DAY CARE
Peterborough,http://opendatacommunities.org/id/unitary-authority/peterborough,Peterborough City Council,Adult Social Care,Social Care Activities,Employees,09/03/2015 00:00,718791,1497.6,REVENUE,Medicare First,EXTERNAL TEMPORARY STAFF
Peterborough,http://opendatacommunities.org/id/unitary-authority/peterborough,Peterborough City Council,Adult Social Care,Adult Learning Disabilities,Supplies and Services,09/03/2015 00:00,718792,783.6,REVENUE,Thera East Anglia,DAY CARE
Peterborough,http://opendatacommunities.org/id/unitary-authority/peterborough,Peterborough City Council,Adult Social Care,Adult Learning Disabilities,Supplies and Services,09/03/2015 00:00,718796,763.2,REVENUE,Thera East Anglia,DAY CARE
Peterborough,http://opendatacommunities.org/id/unitary-authority/peterborough,Peterborough City Council,Adult Social Care,Adult Learning Disabilities,Supplies and Services,09/03/2015 00:00,718798,1968,REVENUE,Thera East Anglia,DAY CARE
Peterborough,http://opendatacommunities.org/id/unitary-authority/peterborough,Peterborough City Council,Adult Social Care,Adult Learning Disabilities,Supplies and Services,09/03/2015 00:00,718802,616.4,REVENUE,Thera East Anglia,DAY CARE
Peterborough,http://opendatacommunities.org/id/unitary-authority/peterborough,Peterborough City Council,Adult Social Care,Adult Learning Disabilities,Supplies and Services,09/03/2015 00:00,718807,616.4,REVENUE,Thera East Anglia,DAY CARE
Peterborough,http://opendatacommunities.org/id/unitary-authority/peterborough,Peterborough City Council,Adult Social Care,Adult Learning Disabilities,Supplies and Services,09/03/2015 00:00,718812,783.6,REVENUE,Thera East Anglia,DAY CARE
Peterborough,http://opendatacommunities.org/id/unitary-authority/peterborough,Peterborough City Council,Adult Social Care,Adult Learning Disabilities,Supplies and Services,09/03/2015 00:00,718858,830,REVENUE,Mencap,HOME CARE
Peterborough,http://opendatacommunities.org/id/unitary-authority/peterborough,Peterborough City Council,Adult Social Care,Adult Learning Disabilities,Supplies and Services,09/03/2015 00:00,718859,4275.8,REVENUE,Mencap,HOME CARE
Peterborough,http://opendatacommunities.org/id/unitary-authority/peterborough,Peterborough City Council,Adult Social Care,Adult Learning Disabilities,Supplies and Services,09/03/2015 00:00,718860,4316.4,REVENUE,Mencap,HOME CARE
Peterborough,http://opendatacommunities.org/id/unitary-authority/peterborough,Peterborough City Council,Adult Social Care,Adult Learning Disabilities,Supplies and Services,09/03/2015 00:00,718861,4275.8,REVENUE,Mencap,HOME CARE
Peterborough,http://opendatacommunities.org/id/unitary-authority/peterborough,Peterborough City Council,Adult Social Care,Split,Third Party Payments,09/03/2015 00:00,718971,1776,REVENUE,Care UK Homecare Ltd,THIRD PARTY PAYMENTS - CONTRACT
Peterborough,http://opendatacommunities.org/id/unitary-authority/peterborough,Peterborough City Council,Adult Social Care,Split,Third Party Payments,09/03/2015 00:00,718974,21042.16,REVENUE,Care UK Homecare Ltd,THIRD PARTY PAYMENTS - CONTRACT
Peterborough,http://opendatacommunities.org/id/unitary-authority/peterborough,Peterborough City Council,Adult Social Care,Split,Third Party Payments,09/03/2015 00:00,718975,6663.32,REVENUE,Care UK Homecare Ltd,THIRD PARTY PAYMENTS - CONTRACT
Peterborough,http://opendatacommunities.org/id/unitary-authority/peterborough,Peterborough City Council,Adult Social Care,Older People,Supplies and Services,09/03/2015 00:00,719277,1492.24,REVENUE,Willowbank Nursing Home,RESIDENTIAL CARE
Peterborough,http://opendatacommunities.org/id/unitary-authority/peterborough,Peterborough City Council,Adult Social Care,Adult Learning Disabilities,Supplies and Services,09/03/2015 00:00,719290,6337.32,REVENUE,NORTH EAST AUTISM SOCIETY,RESIDENTIAL CARE
Peterborough,http://opendatacommunities.org/id/unitary-authority/peterborough,Peterborough City Council,Adult Social Care,Adult Physical Disability & Sensory Impairment,Supplies and Services,09/03/2015 00:00,719575,2856.6,REVENUE,LESTER HALL APARTMENTS LTD,RESIDENTIAL CARE
Peterborough,http://opendatacommunities.org/id/unitary-authority/peterborough,Peterborough City Council,Adult Social Care,Adult Learning Disabilities,Supplies and Services,09/03/2015 00:00,719884,671.6,REVENUE,Thera East Anglia,DAY CARE
Peterborough,http://opendatacommunities.org/id/unitary-authority/peterborough,Peterborough City Council,Adult Social Care,Adult Learning Disabilities,Supplies and Services,09/03/2015 00:00,719885,783.6,REVENUE,Thera East Anglia,DAY CARE
Peterborough,http://opendatacommunities.org/id/unitary-authority/peterborough,Peterborough City Council,Adult Social Care,Adult Learning Disabilities,Supplies and Services,09/03/2015 00:00,719886,616.4,REVENUE,Thera East Anglia,DAY CARE
Peterborough,http://opendatacommunities.org/id/unitary-authority/peterborough,Peterborough City Council,Adult Social Care,Adult Learning Disabilities,Supplies and Services,09/03/2015 00:00,719887,672.96,REVENUE,Thera East Anglia,DAY CARE
Peterborough,http://opendatacommunities.org/id/unitary-authority/peterborough,Peterborough City Council,Adult Social Care,Adult Learning Disabilities,Supplies and Services,09/03/2015 00:00,719888,781.8,REVENUE,Thera East Anglia,DAY CARE
Peterborough,http://opendatacommunities.org/id/unitary-authority/peterborough,Peterborough City Council,Adult Social Care,Adult Learning Disabilities,Supplies and Services,09/03/2015 00:00,719889,2204.8,REVENUE,Thera East Anglia,DAY CARE
Peterborough,http://opendatacommunities.org/id/unitary-authority/peterborough,Peterborough City Council,Adult Social Care,Adult Learning Disabilities,Supplies and Services,09/03/2015 00:00,719931,783.6,REVENUE,Thera East Anglia,DAY CARE
Peterborough,http://opendatacommunities.org/id/unitary-authority/peterborough,Peterborough City Council,Adult Social Care,Adult Learning Disabilities,Supplies and Services,09/03/2015 00:00,719938,2035.2,REVENUE,Thera East Anglia,DAY CARE
Peterborough,http://opendatacommunities.org/id/unitary-authority/peterborough,Peterborough City Council,Adult Social Care,Adult Learning Disabilities,Supplies and Services,09/03/2015 00:00,719941,3442.8,REVENUE,Thera East Anglia,DAY CARE
Peterborough,http://opendatacommunities.org/id/unitary-authority/peterborough,Peterborough City Council,Adult Social Care,Adult Learning Disabilities,Supplies and Services,09/03/2015 00:00,719945,582.56,REVENUE,Thera East Anglia,DAY CARE
Peterborough,http://opendatacommunities.org/id/unitary-authority/peterborough,Peterborough City Council,Adult Social Care,Older People,Supplies and Services,09/03/2015 00:00,720136,505.26,REVENUE,Park Vista Care Home,RESIDENTIAL CARE
Peterborough,http://opendatacommunities.org/id/unitary-authority/peterborough,Peterborough City Council,Adult Social Care,Older People,Supplies and Services,09/03/2015 00:00,720137,1120.44,REVENUE,Park Vista Care Home,RESIDENTIAL CARE
Peterborough,http://opendatacommunities.org/id/unitary-authority/peterborough,Peterborough City Council,Adult Social Care,Older People,Supplies and Services,09/03/2015 00:00,720140,670.8,REVENUE,FIELD HOUSE (EYE) LTD,RESIDENTIAL CARE
Peterborough,http://opendatacommunities.org/id/unitary-authority/peterborough,Peterborough City Council,Adult Social Care,Older People,Supplies and Services,09/03/2015 00:00,720147,872.1,REVENUE,FIELD HOUSE (EYE) LTD,RESIDENTIAL CARE
Peterborough,http://opendatacommunities.org/id/unitary-authority/peterborough,Peterborough City Council,Deficit/(Surplus) on Trading Undertakings,Trading Account Surpluses & Deficits,Employees,09/03/2015 00:00,720151,1164,REVENUE,British Standards Institute,TRAINING
Peterborough,http://opendatacommunities.org/id/unitary-authority/peterborough,Peterborough City Council,More than one Service Area Category,More than one Service Division,Balance Sheet,09/03/2015 00:00,720194,1599.46,Balance Sheet,Redacted Personal Data,REFUNDS
Peterborough,http://opendatacommunities.org/id/unitary-authority/peterborough,Peterborough City Council,Housing Services,Homelessness,Supplies and Services,09/03/2015 00:00,720535,637.5,REVENUE,Sowden and Wallis Estate Agents,FINANCIAL ASSISTANCE
Peterborough,http://opendatacommunities.org/id/unitary-authority/peterborough,Peterborough City Council,Adult Social Care,Older People,Supplies and Services,09/03/2015 00:00,720550,1471.66,REVENUE,Care UK Homecare Ltd,HOME CARE
Peterborough,http://opendatacommunities.org/id/unitary-authority/peterborough,Peterborough City Council,Adult Social Care,Older People,Supplies and Services,09/03/2015 00:00,720563,645,REVENUE,Cambridgeshirehomecare,HOME CARE
Peterborough,http://opendatacommunities.org/id/unitary-authority/peterborough,Peterborough City Council,Adult Social Care,Older People,Supplies and Services,09/03/2015 00:00,720564,2355.5,REVENUE,Cambridgeshirehomecare,HOME CARE
Peterborough,http://opendatacommunities.org/id/unitary-authority/peterborough,Peterborough City Council,Adult Social Care,Older People,Supplies and Services,09/03/2015 00:00,720567,877.8,REVENUE,Care UK Homecare Ltd,HOME CARE
Peterborough,http://opendatacommunities.org/id/unitary-authority/peterborough,Peterborough City Council,Adult Social Care,Older People,Supplies and Services,09/03/2015 00:00,720571,656.7,REVENUE,Care UK Homecare Ltd,HOME CARE
Peterborough,http://opendatacommunities.org/id/unitary-authority/peterborough,Peterborough City Council,Adult Social Care,Older People,Supplies and Services,09/03/2015 00:00,720578,2143.35,REVENUE,Allied Healthcare (UK) Ltd,HOME CARE
Peterborough,http://opendatacommunities.org/id/unitary-authority/peterborough,Peterborough City Council,More than one Service Area Category,More than one Service Division,Premises,09/03/2015 00:00,720632,2188.96,REVENUE,British Gas Business,ELECTRICITY
Peterborough,http://opendatacommunities.org/id/unitary-authority/peterborough,Peterborough City Council,Children's & Education Services - Education,Sure Start Children's Centres / Flying Start and Early Years,Supplies and Services,09/03/2015 00:00,720633,15084.5,REVENUE,Little Bees Pre-School,GRANT PAYMENT
Peterborough,http://opendatacommunities.org/id/unitary-authority/peterborough,Peterborough City Council,More than one Service Area Category,More than one Service Division,More than one Expenses Type,09/03/2015 00:00,720634,5463.6,"Mixture of Capital, Revenue and/or Balance Sheet",Optimum Plumbing & Heating Ltd,GRANT PAYMENT
Peterborough,http://opendatacommunities.org/id/unitary-authority/peterborough,Peterborough City Council,More than one Service Area Category,More than one Service Division,Premises,09/03/2015 00:00,720635,987.85,REVENUE,British Gas Business,ELECTRICITY
Peterborough,http://opendatacommunities.org/id/unitary-authority/peterborough,Peterborough City Council,More than one Service Area Category,More than one Service Division,More than one Expenses Type,09/03/2015 00:00,720636,5524,"Mixture of Capital, Revenue and/or Balance Sheet",Allworks Home Improvements Ltd,GRANT PAYMENT
Peterborough,http://opendatacommunities.org/id/unitary-authority/peterborough,Peterborough City Council,More than one Service Area Category,More than one Service Division,Premises,09/03/2015 00:00,720637,1044.52,REVENUE,British Gas Business,ELECTRICITY
Peterborough,http://opendatacommunities.org/id/unitary-authority/peterborough,Peterborough City Council,More than one Service Area Category,More than one Service Division,Premises,09/03/2015 00:00,720638,846.19,REVENUE,British Gas Business,ELECTRICITY
Peterborough,http://opendatacommunities.org/id/unitary-authority/peterborough,Peterborough City Council,Children's & Education Services - Children's Social Care,Sure Start Children's Centres / Flying Start and Early Years,Supplies and Services,09/03/2015 00:00,720654,1113.75,REVENUE,Anna-Ca-Soo Day Nursery,GRANT PAYMENT
Peterborough,http://opendatacommunities.org/id/unitary-authority/peterborough,Peterborough City Council,Adult Social Care,Adult Learning Disabilities,Supplies and Services,09/03/2015 00:00,720683,8752,REVENUE,Autism Care (UK) Ltd,RESIDENTIAL CARE
Peterborough,http://opendatacommunities.org/id/unitary-authority/peterborough,Peterborough City Council,Adult Social Care,Older People,Supplies and Services,09/03/2015 00:00,720684,1161.16,REVENUE,The Orders of St John Care Trust,RESIDENTIAL CARE
Peterborough,http://opendatacommunities.org/id/unitary-authority/peterborough,Peterborough City Council,Adult Social Care,Older People,Supplies and Services,09/03/2015 00:00,720685,1300.2,REVENUE,The Orders of St John Care Trust,RESIDENTIAL CARE
Peterborough,http://opendatacommunities.org/id/unitary-authority/peterborough,Peterborough City Council,Children's & Education Services - Children's Social Care,Children Looked After,Supplies and Services - Transfer Payments,09/03/2015 00:00,720729,3980,REVENUE,By The Bridge,BOARDING - OUT ALLOWANCES
Peterborough,http://opendatacommunities.org/id/unitary-authority/peterborough,Peterborough City Council,Adult Social Care,Older People,Supplies and Services,11/03/2015 00:00,680837,608.19,REVENUE,St Margarets Rest Home,RESIDENTIAL CARE
Peterborough,http://opendatacommunities.org/id/unitary-authority/peterborough,Peterborough City Council,Adult Social Care,Older People,Supplies and Services,11/03/2015 00:00,680973,769.13,REVENUE,MEARS GROUP,HOME CARE
Peterborough,http://opendatacommunities.org/id/unitary-authority/peterborough,Peterborough City Council,Adult Social Care,Older People,Supplies and Services,11/03/2015 00:00,686718,3617.33,REVENUE,St Margarets Rest Home,RESIDENTIAL CARE
Peterborough,http://opendatacommunities.org/id/unitary-authority/peterborough,Peterborough City Council,Adult Social Care,Older People,Supplies and Services,11/03/2015 00:00,695237,751.64,REVENUE,MEARS GROUP,HOME CARE
Peterborough,http://opendatacommunities.org/id/unitary-authority/peterborough,Peterborough City Council,Adult Social Care,Older People,Supplies and Services,11/03/2015 00:00,697086,1161.16,REVENUE,The Orders of St John Care Trust,RESIDENTIAL CARE
Peterborough,http://opendatacommunities.org/id/unitary-authority/peterborough,Peterborough City Council,Support Services,Support Services,Employees,11/03/2015 00:00,698351,2034,REVENUE,Sanctuary Personnel Ltd,EXTERNAL TEMPORARY STAFF
Peterborough,http://opendatacommunities.org/id/unitary-authority/peterborough,Peterborough City Council,Adult Social Care,Older People,Supplies and Services,11/03/2015 00:00,700508,575.32,REVENUE,Cambridgeshirehomecare,HOME CARE
Peterborough,http://opendatacommunities.org/id/unitary-authority/peterborough,Peterborough City Council,Highways and Transport Services,Traffic management & Road Safety,Supplies and Services,11/03/2015 00:00,701330,1800,REVENUE,Performance in Education,EDUCATION SECONDARY
Peterborough,http://opendatacommunities.org/id/unitary-authority/peterborough,Peterborough City Council,Adult Social Care,Older People,Supplies and Services,11/03/2015 00:00,704826,2183.22,REVENUE,MEARS GROUP,HOME CARE
Peterborough,http://opendatacommunities.org/id/unitary-authority/peterborough,Peterborough City Council,Adult Social Care,Older People,Supplies and Services,11/03/2015 00:00,704830,2264.08,REVENUE,MEARS GROUP,HOME CARE
Peterborough,http://opendatacommunities.org/id/unitary-authority/peterborough,Peterborough City Council,Children's & Education Services - Children's Social Care,Children Looked After,Supplies and Services - Transfer Payments,11/03/2015 00:00,706943,15060,REVENUE,Halliwell Homes Ltd,BOARDING - OUT ALLOWANCES
Peterborough,http://opendatacommunities.org/id/unitary-authority/peterborough,Peterborough City Council,Adult Social Care,Older People,Supplies and Services,11/03/2015 00:00,708401,1183.88,REVENUE,Country Court Care Homes Ltd,PROFESSIONAL SERVICES
Peterborough,http://opendatacommunities.org/id/unitary-authority/peterborough,Peterborough City Council,Non Distributed Cost,Pensions,Third Party Payments,11/03/2015 00:00,709557,48648.76,REVENUE,Cambridgeshire County Council,PENSIONS
Peterborough,http://opendatacommunities.org/id/unitary-authority/peterborough,Peterborough City Council,Adult Social Care,Older People,Supplies and Services,11/03/2015 00:00,710140,2065.56,REVENUE,Barchester Healthcare (Werrington Lodge),RESIDENTIAL CARE
